BODY,BODY NAME,ENTRY DATE,POSTING DATE,TRANSACTION NUMBER,THEIR REF,AMOUNT,SUPPLIER NAME,SUPPLIER CODE,EXPENSE AREA,EXPENSE TYPE,EXPENSE CODE
http://statistics.data.gov.uk/id/local-authority/12UE,Huntingdonshire District Council,19/07/2017,20/07/2017,213748,196729," 148,695.43 ",CAMBRIDGE CITY COUNCIL,CR017896,Imd Shared Service,Software,206
http://statistics.data.gov.uk/id/local-authority/12UE,Huntingdonshire District Council,19/07/2017,20/07/2017,213748,196729," 38,711.08 ",CAMBRIDGE CITY COUNCIL,CR017896,Imd Shared Service,Printers,208
http://statistics.data.gov.uk/id/local-authority/12UE,Huntingdonshire District Council,19/07/2017,20/07/2017,213748,196729, 15.02 ,CAMBRIDGE CITY COUNCIL,CR017896,Imd Shared Service,Equipment Maintenance,511
http://statistics.data.gov.uk/id/local-authority/12UE,Huntingdonshire District Council,19/07/2017,20/07/2017,213748,196729," 1,206.94 ",CAMBRIDGE CITY COUNCIL,CR017896,Imd Shared Service,Stationery,225
http://statistics.data.gov.uk/id/local-authority/12UE,Huntingdonshire District Council,19/07/2017,20/07/2017,213748,196729," 4,969.49 ",CAMBRIDGE CITY COUNCIL,CR017896,Imd Shared Service,Telephone &Mobile Phonecharges,240
http://statistics.data.gov.uk/id/local-authority/12UE,Huntingdonshire District Council,27/07/2017,31/07/2017,214394,196760," 111,473.67 ",CAMBRIDGE CITY COUNCIL,CR017896,B Regs Applications,Application Fee,A10
http://statistics.data.gov.uk/id/local-authority/12UE,Huntingdonshire District Council,27/07/2017,31/07/2017,214394,196760," 70,128.02 ",CAMBRIDGE CITY COUNCIL,CR017896,B Regs Applications,Inspection Fee,A11
http://statistics.data.gov.uk/id/local-authority/12UE,Huntingdonshire District Council,27/07/2017,31/07/2017,214394,196760," 1,571.67 ",CAMBRIDGE CITY COUNCIL,CR017896,B Regs Applications,Applications Partnership Fees,A66
http://statistics.data.gov.uk/id/local-authority/12UE,Huntingdonshire District Council,27/07/2017,31/07/2017,214394,196760, 486.00 ,CAMBRIDGE CITY COUNCIL,CR017896,B Regs Applications,Sales - Publications,A31
http://statistics.data.gov.uk/id/local-authority/12UE,Huntingdonshire District Council,19/07/2017,20/07/2017,213750,196730," 99,789.44 ",CAMBRIDGE CITY COUNCIL,CR017896,Imd Shared Service,Software,206
http://statistics.data.gov.uk/id/local-authority/12UE,Huntingdonshire District Council,19/07/2017,20/07/2017,213750,196730," 28,185.90 ",CAMBRIDGE CITY COUNCIL,CR017896,Imd Shared Service,Equipment Maintenance,511
http://statistics.data.gov.uk/id/local-authority/12UE,Huntingdonshire District Council,19/07/2017,20/07/2017,213750,196730," 23,088.46 ",CAMBRIDGE CITY COUNCIL,CR017896,Imd Shared Service,Telephone &Mobile Phonecharges,240
http://statistics.data.gov.uk/id/local-authority/12UE,Huntingdonshire District Council,14/07/2017,18/07/2017,213080,2997," 80,011.93 ",BURMOR CONSTRUCTION,CR032423,Ol Hdon Changing Facilities,Building Mtce,303
http://statistics.data.gov.uk/id/local-authority/12UE,Huntingdonshire District Council,06/07/2017,06/07/2017,212839,196553," 53,265.00 ",CAMBRIDGE CITY COUNCIL,CR017896,Legal,Client Contracts,779
http://statistics.data.gov.uk/id/local-authority/12UE,Huntingdonshire District Council,06/07/2017,06/07/2017,212845,196325," 51,933.00 ",CAMBRIDGE CITY COUNCIL,CR017896,Disabled Facilities Grants,Home Improvement Agency Fees,724
http://statistics.data.gov.uk/id/local-authority/12UE,Huntingdonshire District Council,20/07/2017,20/07/2017,213766,CAR PARKS," 17,108.00 ",WAITROSE,CR019599,St Neots Waitrose,Contribution (Paid Out),810
http://statistics.data.gov.uk/id/local-authority/12UE,Huntingdonshire District Council,20/07/2017,20/07/2017,213766,CAR PARKS," 24,922.00 ",WAITROSE,CR019599,St Ives Cattle Market (Wait),Contribution (Paid Out),810
http://statistics.data.gov.uk/id/local-authority/12UE,Huntingdonshire District Council,12/07/2017,20/07/2017,213250,9011682," 35,732.00 ",ADAM CONTINUITY LIMITED,CR424776,Scdc Recharge Invoices,Equipment Maintenance,511
http://statistics.data.gov.uk/id/local-authority/12UE,Huntingdonshire District Council,26/07/2017,27/07/2017,213241,OP/I800896," 29,747.32 ",PHOENIX SOFTWARE LTD,CR031918,Ict Capital Projects (Interim),Other I T Hardware,203
http://statistics.data.gov.uk/id/local-authority/12UE,Huntingdonshire District Council,12/07/2017,13/07/2017,213184,8160278," 27,813.22 ",CERTAS ENERGY T/A PACE FUELCARE,CR455975,Operations Diesel Stock,Stock Purchases,980
http://statistics.data.gov.uk/id/local-authority/12UE,Huntingdonshire District Council,12/07/2017,13/07/2017,213187,8274428," 26,991.30 ",CERTAS ENERGY T/A PACE FUELCARE,CR455975,Operations Diesel Stock,Stock Purchases,980
http://statistics.data.gov.uk/id/local-authority/12UE,Huntingdonshire District Council,12/07/2017,13/07/2017,213185,8224363," 26,962.80 ",CERTAS ENERGY T/A PACE FUELCARE,CR455975,Operations Diesel Stock,Stock Purchases,980
http://statistics.data.gov.uk/id/local-authority/12UE,Huntingdonshire District Council,26/07/2017,27/07/2017,214150,923469-081B," 25,000.00 ",VIRGIN MEDIA BUSINESS/CPSN,CR455148,Ict Capital Projects (Interim),Other I T Hardware,203
http://statistics.data.gov.uk/id/local-authority/12UE,Huntingdonshire District Council,11/07/2017,11/07/2017,213135,3235," 24,545.50 ",SCI PRINT LIMITED,CR416581,Parliamentary  Elections,Printing (External),220
http://statistics.data.gov.uk/id/local-authority/12UE,Huntingdonshire District Council,26/07/2017,27/07/2017,213640,OP/I800802," 24,072.68 ",PHOENIX SOFTWARE LTD,CR031918,Ict Capital Projects (Interim),Other I T Hardware,203
http://statistics.data.gov.uk/id/local-authority/12UE,Huntingdonshire District Council,18/07/2017,18/07/2017,213574,1616," 19,756.00 ",HD PROPERTY SERVICES,CR422148,Disabled Facilities Grants,Mandatory Grants,801
http://statistics.data.gov.uk/id/local-authority/12UE,Huntingdonshire District Council,18/07/2017,18/07/2017,212393,531437," 19,246.50 ",BSG PROPERTY SERVICES LTD,CR089905,Disabled Facilities Grants,Mandatory Grants,801
http://statistics.data.gov.uk/id/local-authority/12UE,Huntingdonshire District Council,25/07/2017,25/07/2017,214013,2017-0041," 14,997.00 ",REINVIGORATION LTD,CR423943,Transformation Programme,Consultants,711
http://statistics.data.gov.uk/id/local-authority/12UE,Huntingdonshire District Council,26/07/2017,27/07/2017,214132,9043650," 14,985.00 ",ADVANTAGE RESOURCING,CR424715,Imd Shared Service,Hired Staff,100
http://statistics.data.gov.uk/id/local-authority/12UE,Huntingdonshire District Council,14/07/2017,14/07/2017,213484,60069033," 14,565.20 ",CAMBRIDGESHIRE COUNTY COUNCIL,CR006678,Land Enquiry Con 29 Full,Charges (Income),A02
http://statistics.data.gov.uk/id/local-authority/12UE,Huntingdonshire District Council,13/07/2017,13/07/2017,213086,AC0214246," 14,540.55 ",ASHCO BUILDING & MAINTENANCE SERVICES LTD,CR422300,Disabled Facilities Grants,Mandatory Grants,801
http://statistics.data.gov.uk/id/local-authority/12UE,Huntingdonshire District Council,06/07/2017,06/07/2017,212829,SO85066041," 13,067.00 ",STANNAH LTD Ref(20HU025),CR000759,Disabled Facilities Grants,Mandatory Grants,801
http://statistics.data.gov.uk/id/local-authority/12UE,Huntingdonshire District Council,13/07/2017,13/07/2017,213053,976," 12,500.00 ",HACT,CR455657,Transportation Grants,Contribution (Paid Out),810
http://statistics.data.gov.uk/id/local-authority/12UE,Huntingdonshire District Council,10/07/2017,10/07/2017,213031,129453," 12,352.88 ",PETERBOROUGH CITY COUNCIL,CR000619,Housing Policy R&D,Hired Staff,100
http://statistics.data.gov.uk/id/local-authority/12UE,Huntingdonshire District Council,10/07/2017,10/07/2017,213038,DINV/222101," 11,751.29 ",SOUTH CAMBRIDGESHIRE DISTRICT COUNCIL,CR405127,Strategic Transformation,Consultants,711
http://statistics.data.gov.uk/id/local-authority/12UE,Huntingdonshire District Council,13/07/2017,13/07/2017,213288,AC0214266," 11,500.00 ",ASHCO BUILDING & MAINTENANCE SERVICES LTD,CR422300,Disabled Facilities Grants,Mandatory Grants,801
http://statistics.data.gov.uk/id/local-authority/12UE,Huntingdonshire District Council,05/07/2017,05/07/2017,212738,923469-081A, 526.08 ,VIRGIN MEDIA BUSINESS/CPSN,CR455148,Cctv Shared Service Hosting,I T Line Rental,248
http://statistics.data.gov.uk/id/local-authority/12UE,Huntingdonshire District Council,05/07/2017,05/07/2017,212738,923469-081A," 10,876.59 ",VIRGIN MEDIA BUSINESS/CPSN,CR455148,Imd Shared Service,I T Line Rental,248
http://statistics.data.gov.uk/id/local-authority/12UE,Huntingdonshire District Council,13/07/2017,13/07/2017,213076,RC - HDC014, 675.00 ,RENT CONNECT,CR424138,Homelessness,Bed & Breakfast Payment,818
http://statistics.data.gov.uk/id/local-authority/12UE,Huntingdonshire District Council,13/07/2017,13/07/2017,213076,RC - HDC014, 180.00 ,RENT CONNECT,CR424138,Homelessness,Bed & Breakfast Payment,818
http://statistics.data.gov.uk/id/local-authority/12UE,Huntingdonshire District Council,13/07/2017,13/07/2017,213076,RC - HDC014, 570.00 ,RENT CONNECT,CR424138,Homelessness,Bed & Breakfast Payment,818
http://statistics.data.gov.uk/id/local-authority/12UE,Huntingdonshire District Council,13/07/2017,13/07/2017,213076,RC - HDC014, 825.00 ,RENT CONNECT,CR424138,Homelessness,Bed & Breakfast Payment,818
http://statistics.data.gov.uk/id/local-authority/12UE,Huntingdonshire District Council,13/07/2017,13/07/2017,213076,RC - HDC014, 440.00 ,RENT CONNECT,CR424138,Homelessness,Bed & Breakfast Payment,818
http://statistics.data.gov.uk/id/local-authority/12UE,Huntingdonshire District Council,13/07/2017,13/07/2017,213076,RC - HDC014, 675.00 ,RENT CONNECT,CR424138,Homelessness,Bed & Breakfast Payment,818
http://statistics.data.gov.uk/id/local-authority/12UE,Huntingdonshire District Council,13/07/2017,13/07/2017,213076,RC - HDC014, 675.00 ,RENT CONNECT,CR424138,Homelessness,Bed & Breakfast Payment,818
http://statistics.data.gov.uk/id/local-authority/12UE,Huntingdonshire District Council,13/07/2017,13/07/2017,213076,RC - HDC014, 55.00 ,RENT CONNECT,CR424138,Homelessness,Bed & Breakfast Payment,818
http://statistics.data.gov.uk/id/local-authority/12UE,Huntingdonshire District Council,13/07/2017,13/07/2017,213076,RC - HDC014, 675.00 ,RENT CONNECT,CR424138,Homelessness,Bed & Breakfast Payment,818
http://statistics.data.gov.uk/id/local-authority/12UE,Huntingdonshire District Council,13/07/2017,13/07/2017,213076,RC - HDC014, 900.00 ,RENT CONNECT,CR424138,Homelessness,Bed & Breakfast Payment,818
http://statistics.data.gov.uk/id/local-authority/12UE,Huntingdonshire District Council,13/07/2017,13/07/2017,213076,RC - HDC014, 900.00 ,RENT CONNECT,CR424138,Homelessness,Bed & Breakfast Payment,818
http://statistics.data.gov.uk/id/local-authority/12UE,Huntingdonshire District Council,13/07/2017,13/07/2017,213076,RC - HDC014, 675.00 ,RENT CONNECT,CR424138,Homelessness,Bed & Breakfast Payment,818
http://statistics.data.gov.uk/id/local-authority/12UE,Huntingdonshire District Council,13/07/2017,13/07/2017,213076,RC - HDC014, 825.00 ,RENT CONNECT,CR424138,Homelessness,Bed & Breakfast Payment,818
http://statistics.data.gov.uk/id/local-authority/12UE,Huntingdonshire District Council,13/07/2017,13/07/2017,213076,RC - HDC014, 675.00 ,RENT CONNECT,CR424138,Homelessness,Bed & Breakfast Payment,818
http://statistics.data.gov.uk/id/local-authority/12UE,Huntingdonshire District Council,13/07/2017,13/07/2017,213076,RC - HDC014, 675.00 ,RENT CONNECT,CR424138,Homelessness,Bed & Breakfast Payment,818
http://statistics.data.gov.uk/id/local-authority/12UE,Huntingdonshire District Council,13/07/2017,13/07/2017,213076,RC - HDC014, 675.00 ,RENT CONNECT,CR424138,Homelessness,Bed & Breakfast Payment,818
http://statistics.data.gov.uk/id/local-authority/12UE,Huntingdonshire District Council,13/07/2017,13/07/2017,213076,RC - HDC014, 675.00 ,RENT CONNECT,CR424138,Homelessness,Bed & Breakfast Payment,818
http://statistics.data.gov.uk/id/local-authority/12UE,Huntingdonshire District Council,13/07/2017,13/07/2017,213076,RC - HDC014, 195.00 ,RENT CONNECT,CR424138,Homelessness,Bed & Breakfast Payment,818
http://statistics.data.gov.uk/id/local-authority/12UE,Huntingdonshire District Council,05/07/2017,06/07/2017,212740,108679/112578," 1,775.00 ",GALTEC SOLUTIONS LTD,CR423396,Ccity Recharge Invoices,Other I T Hardware,203
http://statistics.data.gov.uk/id/local-authority/12UE,Huntingdonshire District Council,05/07/2017,06/07/2017,212740,108679/112578," 9,025.00 ",GALTEC SOLUTIONS LTD,CR423396,Ccity Recharge Invoices,Other I T Hardware,203
http://statistics.data.gov.uk/id/local-authority/12UE,Huntingdonshire District Council,05/07/2017,05/07/2017,212736,M/AB044060," 9,754.46 ",CIVICA UK LTD,CR415826,Hdc Recharge Invoices,Software,206
http://statistics.data.gov.uk/id/local-authority/12UE,Huntingdonshire District Council,27/07/2017,27/07/2017,214176,59176," 9,500.00 ",BARKER STOREY MATTHEWS,CR400788,Finance,Consultants,711
http://statistics.data.gov.uk/id/local-authority/12UE,Huntingdonshire District Council,27/07/2017,27/07/2017,214383,17B/065," 4,690.00 ",FOCUS CONSULTANTS 2010 LLP,CR424641,Ol St Neots Pool Building,Consultants,711
http://statistics.data.gov.uk/id/local-authority/12UE,Huntingdonshire District Council,27/07/2017,27/07/2017,214383,17B/065," 4,690.00 ",FOCUS CONSULTANTS 2010 LLP,CR424641,Ol St Ives Burgess Hall,Consultants,711
http://statistics.data.gov.uk/id/local-authority/12UE,Huntingdonshire District Council,26/07/2017,27/07/2017,214135,90432442," 9,369.00 ",ADVANTAGE RESOURCING,CR424715,Imd Shared Service,Hired Staff,100
http://statistics.data.gov.uk/id/local-authority/12UE,Huntingdonshire District Council,26/07/2017,27/07/2017,214151,923469-081B, 301.95 ,VIRGIN MEDIA BUSINESS/CPSN,CR455148,Ict Capital Projects (Interim),Other I T Hardware,203
http://statistics.data.gov.uk/id/local-authority/12UE,Huntingdonshire District Council,26/07/2017,27/07/2017,214151,923469-081B," 9,000.00 ",VIRGIN MEDIA BUSINESS/CPSN,CR455148,Ict Capital Projects (Interim),Other I T Hardware,203
http://statistics.data.gov.uk/id/local-authority/12UE,Huntingdonshire District Council,05/07/2017,05/07/2017,613164,DR020175," 9,271.25 ",HELIX PROPERTY ADVISORS LTD,CR176540,Sales Ledger Refunds Control,Refunds,Z28
http://statistics.data.gov.uk/id/local-authority/12UE,Huntingdonshire District Council,12/07/2017,12/07/2017,213148,65912," 9,207.21 ",HAVEN POWER LTD,CR455940,Pathfinder House,Electricity,420
http://statistics.data.gov.uk/id/local-authority/12UE,Huntingdonshire District Council,31/07/2017,31/07/2017,214403,5807170658," 9,152.87 ",IBM UNITED KINGDOM LTD,CR482315,Hdc Recharge Invoices,Software,206
http://statistics.data.gov.uk/id/local-authority/12UE,Huntingdonshire District Council,31/07/2017,31/07/2017,214404,242095-126," 8,925.00 ",VIRGIN MEDIA,CR412057,Hdc Recharge Invoices,I T Line Rental,248
http://statistics.data.gov.uk/id/local-authority/12UE,Huntingdonshire District Council,21/07/2017,21/07/2017,213969,41102," 8,725.00 ",CLANPRESS KING'S LYNN LTD,CR413516,Leisure Centre Corporate Mngmt,Printing (Internal),S04
http://statistics.data.gov.uk/id/local-authority/12UE,Huntingdonshire District Council,10/07/2017,10/07/2017,213037,16061," 8,687.57 ",BUILDING SERVICES DESIGN - BSD,CR409263,Ol St Ives - Redevelopment,Building Construction,300
http://statistics.data.gov.uk/id/local-authority/12UE,Huntingdonshire District Council,06/07/2017,06/07/2017,212355,AC0214248," 7,809.48 ",ASHCO BUILDING & MAINTENANCE SERVICES LTD,CR422300,Disabled Facilities Grants,Mandatory Grants,801
http://statistics.data.gov.uk/id/local-authority/12UE,Huntingdonshire District Council,25/07/2017,25/07/2017,214088,C-0002553920," 7,433.00 ",COMPUTERSHARE VOUCHERS LTD,CR412205,Child Care Vouchers - Payroll,Deductions Paid To Third Party,26
http://statistics.data.gov.uk/id/local-authority/12UE,Huntingdonshire District Council,25/07/2017,25/07/2017,214088,C-0002553920, 260.16 ,COMPUTERSHARE VOUCHERS LTD,CR412205,Hr & Payroll Services,Childcare Admin Vouchers,144
http://statistics.data.gov.uk/id/local-authority/12UE,Huntingdonshire District Council,12/07/2017,12/07/2017,213152,65914," 7,621.86 ",HAVEN POWER LTD,CR455940,Swimming,Electricity,420
http://statistics.data.gov.uk/id/local-authority/12UE,Huntingdonshire District Council,03/07/2017,03/07/2017,212627,C-0002538089," 7,242.00 ",COMPUTERSHARE VOUCHERS LTD,CR412205,Child Care Vouchers - Payroll,Deductions Paid To Third Party,26
http://statistics.data.gov.uk/id/local-authority/12UE,Huntingdonshire District Council,03/07/2017,03/07/2017,212627,C-0002538089, 253.47 ,COMPUTERSHARE VOUCHERS LTD,CR412205,Hr & Payroll Services,Childcare Admin Vouchers,144
http://statistics.data.gov.uk/id/local-authority/12UE,Huntingdonshire District Council,12/07/2017,12/07/2017,213139,65912," 7,247.36 ",HAVEN POWER LTD,CR455940,Pathfinder House,Electricity,420
http://statistics.data.gov.uk/id/local-authority/12UE,Huntingdonshire District Council,19/07/2017,20/07/2017,213718,6003585594," 7,187.50 ",CAPITA BUSINESS SERVICES LTD,CR410639,Scdc Recharge Invoices,Software,206
http://statistics.data.gov.uk/id/local-authority/12UE,Huntingdonshire District Council,12/07/2017,20/07/2017,213249,D0051203, 630.00 ,SMARTER DIGITAL SOLUTIONS,CR424791,Ccity Recharge Invoices,I C T Services,731
http://statistics.data.gov.uk/id/local-authority/12UE,Huntingdonshire District Council,12/07/2017,20/07/2017,213249,D0051203," 6,300.00 ",SMARTER DIGITAL SOLUTIONS,CR424791,Ccity Recharge Invoices,I C T Services,731
http://statistics.data.gov.uk/id/local-authority/12UE,Huntingdonshire District Council,18/07/2017,18/07/2017,211023,63288," 6,739.00 ",GASWISE,CR423458,Disabled Facilities Grants,Mandatory Grants,801
http://statistics.data.gov.uk/id/local-authority/12UE,Huntingdonshire District Council,18/07/2017,18/07/2017,213578,531439," 6,547.00 ",BSG PROPERTY SERVICES LTD,CR089905,Disabled Facilities Grants,Mandatory Grants,801
http://statistics.data.gov.uk/id/local-authority/12UE,Huntingdonshire District Council,25/07/2017,25/07/2017,214089,17432477," 6,404.45 ",NORTH WEST ANGLIA NHS FOUNDATION TRUST,CR424716,Hr & Payroll Services,Medical Fees,734
http://statistics.data.gov.uk/id/local-authority/12UE,Huntingdonshire District Council,25/07/2017,25/07/2017,214020,160562 HCN," 6,320.00 ",WAYNE BINGHAM,CR405796,Disabled Facilities Grants,Mandatory Grants,801
http://statistics.data.gov.uk/id/local-authority/12UE,Huntingdonshire District Council,12/07/2017,20/07/2017,213236,463532," 6,187.60 ",STORM TECHNOLOGIES,CR480909,Imd Shared Service,Other I T Hardware,203
http://statistics.data.gov.uk/id/local-authority/12UE,Huntingdonshire District Council,05/07/2017,05/07/2017,212725,WN70315659," 6,000.00 ",CAPITA RESOURCING LTD,CR030165,Imd Shared Service,Hired Staff,100
http://statistics.data.gov.uk/id/local-authority/12UE,Huntingdonshire District Council,25/07/2017,25/07/2017,213983,10744934," 6,000.00 ",CAMBRIDGESHIRE COUNTY COUNCIL,CR006678,Community Safety,Contribution (Paid Out),810
http://statistics.data.gov.uk/id/local-authority/12UE,Huntingdonshire District Council,25/07/2017,25/07/2017,214014,DIHH/00003057," 5,972.56 ",LUMINUS HOMES,CR401276,Mobile Home Park,Management Charge,733
http://statistics.data.gov.uk/id/local-authority/12UE,Huntingdonshire District Council,06/07/2017,06/07/2017,212352,SI6779," 5,963.15 ",FOSTER PROPERTY MAINTENANCE LTD,CR412056,Disabled Facilities Grants,Mandatory Grants,801
http://statistics.data.gov.uk/id/local-authority/12UE,Huntingdonshire District Council,18/07/2017,18/07/2017,213289,S31430," 5,870.65 ",BSG PROPERTY SERVICES LTD,CR089905,Disabled Facilities Grants,Mandatory Grants,801
http://statistics.data.gov.uk/id/local-authority/12UE,Huntingdonshire District Council,13/07/2017,13/07/2017,213097,SI6937," 5,864.78 ",FOSTER PROPERTY MAINTENANCE LTD,CR412056,Disabled Facilities Grants,Mandatory Grants,801
http://statistics.data.gov.uk/id/local-authority/12UE,Huntingdonshire District Council,12/07/2017,12/07/2017,213149,65919," 5,749.26 ",HAVEN POWER LTD,CR455940,Site & Centre Management,Electricity,420
http://statistics.data.gov.uk/id/local-authority/12UE,Huntingdonshire District Council,25/07/2017,25/07/2017,211153,ACO214252," 5,424.72 ",ASHCO BUILDING & MAINTENANCE SERVICES LTD,CR422300,Disabled Facilities Grants,Mandatory Grants,801
http://statistics.data.gov.uk/id/local-authority/12UE,Huntingdonshire District Council,06/07/2017,06/07/2017,212436,AC0214257," 5,180.53 ",ASHCO BUILDING & MAINTENANCE SERVICES LTD,CR422300,Disabled Facilities Grants,Mandatory Grants,801
http://statistics.data.gov.uk/id/local-authority/12UE,Huntingdonshire District Council,25/07/2017,25/07/2017,209802,S30616," 5,070.00 ",BSG PROPERTY SERVICES LTD,CR089905,Disabled Facilities Grants,Mandatory Grants,801
http://statistics.data.gov.uk/id/local-authority/12UE,Huntingdonshire District Council,17/07/2017,17/07/2017,213573,IN235697," 5,050.00 ",PITNEY BOWES SOFTWARE EUROPE LTD,CR424001,Imd Shared Service,I C T Services,731
http://statistics.data.gov.uk/id/local-authority/12UE,Huntingdonshire District Council,12/07/2017,12/07/2017,213141,65914," 4,993.06 ",HAVEN POWER LTD,CR455940,Site & Centre Management,Electricity,420
http://statistics.data.gov.uk/id/local-authority/12UE,Huntingdonshire District Council,06/07/2017,06/07/2017,210212,1579," 4,946.00 ",HD PROPERTY SERVICES,CR422148,Disabled Facilities Grants,Mandatory Grants,801
http://statistics.data.gov.uk/id/local-authority/12UE,Huntingdonshire District Council,06/07/2017,06/07/2017,212832,398," 4,795.00 ",WAYNE BINGHAM,CR405796,Disabled Facilities Grants,Mandatory Grants,801
http://statistics.data.gov.uk/id/local-authority/12UE,Huntingdonshire District Council,12/07/2017,12/07/2017,213175,9184504," 4,786.54 ",CANON UK LTD,CR409013,Printing,Equipment Maintenance,511
http://statistics.data.gov.uk/id/local-authority/12UE,Huntingdonshire District Council,06/07/2017,06/07/2017,212849,AC0214260," 4,741.77 ",ASHCO BUILDING & MAINTENANCE SERVICES LTD,CR422300,Disabled Facilities Grants,Mandatory Grants,801
http://statistics.data.gov.uk/id/local-authority/12UE,Huntingdonshire District Council,06/07/2017,06/07/2017,212356,115388," 4,630.00 ",FELGAINS CARE & MOBILITY,CR411475,Disabled Facilities Grants,Mandatory Grants,801
http://statistics.data.gov.uk/id/local-authority/12UE,Huntingdonshire District Council,26/07/2017,27/07/2017,214136,90434173," 4,617.00 ",ADVANTAGE RESOURCING,CR424715,Imd Shared Service,Hired Staff,100
http://statistics.data.gov.uk/id/local-authority/12UE,Huntingdonshire District Council,25/07/2017,25/07/2017,214025,S31599," 4,598.50 ",BSG PROPERTY SERVICES LTD,CR089905,Disabled Facilities Grants,Mandatory Grants,801
http://statistics.data.gov.uk/id/local-authority/12UE,Huntingdonshire District Council,19/07/2017,20/07/2017,213683,SINV00111615, 57.75 ,BIST,CR422733,Imd Shared Service,Other I T Hardware,203
http://statistics.data.gov.uk/id/local-authority/12UE,Huntingdonshire District Council,19/07/2017,20/07/2017,213683,SINV00111615," 4,535.00 ",BIST,CR422733,Imd Shared Service,Other I T Hardware,203
http://statistics.data.gov.uk/id/local-authority/12UE,Huntingdonshire District Council,19/07/2017,20/07/2017,213684,SINV00111694, 57.75 ,BIST,CR422733,Imd Shared Service,Other I T Hardware,203
http://statistics.data.gov.uk/id/local-authority/12UE,Huntingdonshire District Council,19/07/2017,20/07/2017,213684,SINV00111694," 4,535.00 ",BIST,CR422733,Imd Shared Service,Other I T Hardware,203
http://statistics.data.gov.uk/id/local-authority/12UE,Huntingdonshire District Council,18/07/2017,18/07/2017,213292,S30617," 4,588.50 ",BSG PROPERTY SERVICES LTD,CR089905,Disabled Facilities Grants,Mandatory Grants,801
http://statistics.data.gov.uk/id/local-authority/12UE,Huntingdonshire District Council,06/07/2017,06/07/2017,212413,4028," 4,548.00 ",ACCESS & AUTOMATION LTD,CR423434,Disabled Facilities Grants,Mandatory Grants,801
http://statistics.data.gov.uk/id/local-authority/12UE,Huntingdonshire District Council,24/07/2017,24/07/2017,613676,IDB LEVY," 4,454.00 ",RAMSEY FIRST (HOLLOW) I.D.B.,CR000656,Ramsey 1st,Levies,861
http://statistics.data.gov.uk/id/local-authority/12UE,Huntingdonshire District Council,12/07/2017,12/07/2017,213162,65924," 4,321.43 ",HAVEN POWER LTD,CR455940,Eastfield House,Electricity,420
http://statistics.data.gov.uk/id/local-authority/12UE,Huntingdonshire District Council,10/07/2017,10/07/2017,213028,9256," 4,300.00 ",LATTENBURY SERVICES,CR406847,Watercourses,Sitework,359
http://statistics.data.gov.uk/id/local-authority/12UE,Huntingdonshire District Council,18/07/2017,18/07/2017,613480,23183," 4,249.00 ",PREMIER SERVICE AND INSTALLATION,CR453810,Disabled Facilities Grants,Mandatory Grants,801
http://statistics.data.gov.uk/id/local-authority/12UE,Huntingdonshire District Council,18/07/2017,18/07/2017,613481,23184," 4,249.00 ",PREMIER SERVICE AND INSTALLATION,CR453810,Disabled Facilities Grants,Mandatory Grants,801
http://statistics.data.gov.uk/id/local-authority/12UE,Huntingdonshire District Council,06/07/2017,06/07/2017,212843,1605," 4,221.00 ",HD PROPERTY SERVICES,CR422148,Disabled Facilities Grants,Mandatory Grants,801
http://statistics.data.gov.uk/id/local-authority/12UE,Huntingdonshire District Council,06/07/2017,06/07/2017,212274,IN0605764," 4,182.96 ",STAFFLINE GROUP,CR416827,Domestic Waste Collection,Hired Staff,100
http://statistics.data.gov.uk/id/local-authority/12UE,Huntingdonshire District Council,06/07/2017,06/07/2017,212434,603," 4,035.00 ",B P MORSE,CR030128,Disabled Facilities Grants,Mandatory Grants,801
http://statistics.data.gov.uk/id/local-authority/12UE,Huntingdonshire District Council,06/07/2017,06/07/2017,212282,IN00607400," 4,028.35 ",STAFFLINE GROUP,CR416827,Domestic Waste Collection,Hired Staff,100
http://statistics.data.gov.uk/id/local-authority/12UE,Huntingdonshire District Council,05/07/2017,06/07/2017,212300,SINV-109737," 3,996.10 ",GELPACK EXCELSIOR LIMITED,CR002966,Domestic Waste Collection,Refuse Sacks,552
http://statistics.data.gov.uk/id/local-authority/12UE,Huntingdonshire District Council,12/07/2017,12/07/2017,213154,65916," 3,952.91 ",HAVEN POWER LTD,CR455940,Site & Centre Management,Electricity,420
http://statistics.data.gov.uk/id/local-authority/12UE,Huntingdonshire District Council,18/07/2017,18/07/2017,213595,CE005370," 3,915.10 ",JLT SPECIALITY LTD,CR480345,Industrial Properties,Ins (Service Related),260
http://statistics.data.gov.uk/id/local-authority/12UE,Huntingdonshire District Council,19/07/2017,20/07/2017,213694,C/RB154157," 3,900.00 ",CIVICA UK LTD,CR415826,Scdc Recharge Invoices,Other I T Hardware,203
http://statistics.data.gov.uk/id/local-authority/12UE,Huntingdonshire District Council,05/07/2017,06/07/2017,212866,15837," 3,893.10 ",JADE SECURITY SERVICES LTD,CR422256,Car Parks Operational Mgt,Cash Collection,702
http://statistics.data.gov.uk/id/local-authority/12UE,Huntingdonshire District Council,27/07/2017,27/07/2017,213479,SINV-110294," 3,806.40 ",GELPACK EXCELSIOR LIMITED,CR002966,Recycling Collections,Refuse Sacks,552
http://statistics.data.gov.uk/id/local-authority/12UE,Huntingdonshire District Council,06/07/2017,06/07/2017,212351,SI6778," 3,760.43 ",FOSTER PROPERTY MAINTENANCE LTD,CR412056,Disabled Facilities Grants,Mandatory Grants,801
http://statistics.data.gov.uk/id/local-authority/12UE,Huntingdonshire District Council,05/07/2017,05/07/2017,212802,720126," 3,655.00 ",INTACEPT MANAGEMENT LIMITED,CR409084,St Neots Riverside,Sitework,359
http://statistics.data.gov.uk/id/local-authority/12UE,Huntingdonshire District Council,07/07/2017,07/07/2017,213012,1007700271," 3,575.00 ",HAYS,CR423917,Transformation Programme,Hired Staff,100
http://statistics.data.gov.uk/id/local-authority/12UE,Huntingdonshire District Council,27/07/2017,27/07/2017,214200,1007762874," 3,575.00 ",HAYS,CR423917,Transformation Programme,Hired Staff,100
http://statistics.data.gov.uk/id/local-authority/12UE,Huntingdonshire District Council,31/07/2017,31/07/2017,214409,1007722001," 3,575.00 ",HAYS,CR423917,Transformation Programme,Hired Staff,100
http://statistics.data.gov.uk/id/local-authority/12UE,Huntingdonshire District Council,05/07/2017,06/07/2017,212745,SINV00109682," 3,456.00 ",BIST,CR422733,Imd Shared Service,Other I T Hardware,203
http://statistics.data.gov.uk/id/local-authority/12UE,Huntingdonshire District Council,05/07/2017,06/07/2017,212758,SI-00022605," 3,384.66 ",ANYTIME LEISURE LTD T/A ORIGIN FITNESS,CR424720,Impressions,Equipment,500
http://statistics.data.gov.uk/id/local-authority/12UE,Huntingdonshire District Council,12/07/2017,12/07/2017,213142,65919," 3,200.24 ",HAVEN POWER LTD,CR455940,Site & Centre Management,Electricity,420
http://statistics.data.gov.uk/id/local-authority/12UE,Huntingdonshire District Council,13/07/2017,13/07/2017,212317,123350," 3,161.06 ",CALE ACCESS UK LTD,CR401137,Car Parks Operational Mgt,Car Park Machines,522
http://statistics.data.gov.uk/id/local-authority/12UE,Huntingdonshire District Council,12/07/2017,13/07/2017,213199,IN0605762," 3,145.42 ",STAFFLINE GROUP,CR416827,Recycling Collections,Hired Staff,100
http://statistics.data.gov.uk/id/local-authority/12UE,Huntingdonshire District Council,06/07/2017,06/07/2017,212835,AC0214259," 3,069.28 ",ASHCO BUILDING & MAINTENANCE SERVICES LTD,CR422300,Disabled Facilities Grants,Mandatory Grants,801
http://statistics.data.gov.uk/id/local-authority/12UE,Huntingdonshire District Council,05/07/2017,06/07/2017,212812,122737," 3,008.61 ",CALE ACCESS UK LTD,CR401137,Car Parks Operational Mgt,Equipment Maintenance,511
http://statistics.data.gov.uk/id/local-authority/12UE,Huntingdonshire District Council,10/07/2017,20/07/2017,213625,SIN084194," 3,000.50 ",QUADRANT SECURITY GROUP,CR027775,Cctv Shared Service Hosting,Equipment Maintenance,511
http://statistics.data.gov.uk/id/local-authority/12UE,Huntingdonshire District Council,20/07/2017,20/07/2017,212285,IN0607399," 2,969.53 ",STAFFLINE GROUP,CR416827,Domestic Waste Collection,Hired Staff,100
http://statistics.data.gov.uk/id/local-authority/12UE,Huntingdonshire District Council,20/07/2017,20/07/2017,212283,IN0607398," 2,939.51 ",STAFFLINE GROUP,CR416827,Recycling Collections,Hired Staff,100
http://statistics.data.gov.uk/id/local-authority/12UE,Huntingdonshire District Council,12/07/2017,12/07/2017,213140,65916," 2,937.66 ",HAVEN POWER LTD,CR455940,Site & Centre Management,Electricity,420
http://statistics.data.gov.uk/id/local-authority/12UE,Huntingdonshire District Council,19/07/2017,19/07/2017,213668,211687030," 2,904.20 ",SWALEC,CR407130,Site & Centre Management,Electricity,420
http://statistics.data.gov.uk/id/local-authority/12UE,Huntingdonshire District Council,25/07/2017,25/07/2017,214015,S085066404," 2,891.00 ",STANNAH LTD Ref(20HU025),CR000759,Disabled Facilities Grants,Mandatory Grants,801
http://statistics.data.gov.uk/id/local-authority/12UE,Huntingdonshire District Council,05/07/2017,06/07/2017,212647,305477," 2,888.50 ",DENNIS EAGLE LTD,CR000200,Domestic Waste Collection,Vehicle Parts & Fittings,625
http://statistics.data.gov.uk/id/local-authority/12UE,Huntingdonshire District Council,19/07/2017,19/07/2017,213667,481686634," 2,880.16 ",SWALEC,CR407130,Mobile Home Park,Electricity,420
http://statistics.data.gov.uk/id/local-authority/12UE,Huntingdonshire District Council,03/07/2017,03/07/2017,212628,1007635564," 2,860.00 ",HAYS,CR423917,Transformation Programme,Hired Staff,100
http://statistics.data.gov.uk/id/local-authority/12UE,Huntingdonshire District Council,12/07/2017,12/07/2017,213153,65924," 2,835.29 ",HAVEN POWER LTD,CR455940,Eastfield House,Electricity,420
http://statistics.data.gov.uk/id/local-authority/12UE,Huntingdonshire District Council,12/07/2017,12/07/2017,213172,12489090950," 2,803.02 ",E-ON ENERGY,CR416430,Site & Centre Management,Gas,421
http://statistics.data.gov.uk/id/local-authority/12UE,Huntingdonshire District Council,19/07/2017,20/07/2017,213505,9332," 2,800.00 ",LATTENBURY SERVICES,CR406847,Paxton Pits,Sitework,359
http://statistics.data.gov.uk/id/local-authority/12UE,Huntingdonshire District Council,20/07/2017,20/07/2017,613484,288, 245.00 ,COACH & HORSES,CR410824,Homelessness,Bed & Breakfast Payment,818
http://statistics.data.gov.uk/id/local-authority/12UE,Huntingdonshire District Council,20/07/2017,20/07/2017,613484,288, 280.00 ,COACH & HORSES,CR410824,Homelessness,Bed & Breakfast Payment,818
http://statistics.data.gov.uk/id/local-authority/12UE,Huntingdonshire District Council,20/07/2017,20/07/2017,613484,288, 245.00 ,COACH & HORSES,CR410824,Homelessness,Bed & Breakfast Payment,818
http://statistics.data.gov.uk/id/local-authority/12UE,Huntingdonshire District Council,20/07/2017,20/07/2017,613484,288, 245.00 ,COACH & HORSES,CR410824,Homelessness,Bed & Breakfast Payment,818
http://statistics.data.gov.uk/id/local-authority/12UE,Huntingdonshire District Council,20/07/2017,20/07/2017,613484,288, 350.00 ,COACH & HORSES,CR410824,Homelessness,Bed & Breakfast Payment,818
http://statistics.data.gov.uk/id/local-authority/12UE,Huntingdonshire District Council,20/07/2017,20/07/2017,613484,288, 245.00 ,COACH & HORSES,CR410824,Homelessness,Bed & Breakfast Payment,818
http://statistics.data.gov.uk/id/local-authority/12UE,Huntingdonshire District Council,20/07/2017,20/07/2017,613484,288, 245.00 ,COACH & HORSES,CR410824,Homelessness,Bed & Breakfast Payment,818
http://statistics.data.gov.uk/id/local-authority/12UE,Huntingdonshire District Council,20/07/2017,20/07/2017,613484,288, 350.00 ,COACH & HORSES,CR410824,Homelessness,Bed & Breakfast Payment,818
http://statistics.data.gov.uk/id/local-authority/12UE,Huntingdonshire District Council,20/07/2017,20/07/2017,613484,288, 350.00 ,COACH & HORSES,CR410824,Homelessness,Bed & Breakfast Payment,818
http://statistics.data.gov.uk/id/local-authority/12UE,Huntingdonshire District Council,20/07/2017,20/07/2017,613484,288, 245.00 ,COACH & HORSES,CR410824,Homelessness,Bed & Breakfast Payment,818
http://statistics.data.gov.uk/id/local-authority/12UE,Huntingdonshire District Council,13/07/2017,13/07/2017,613335,287, 210.00 ,COACH & HORSES,CR410824,Homelessness,Bed & Breakfast Payment,818
http://statistics.data.gov.uk/id/local-authority/12UE,Huntingdonshire District Council,13/07/2017,13/07/2017,613335,287, 280.00 ,COACH & HORSES,CR410824,Homelessness,Bed & Breakfast Payment,818
http://statistics.data.gov.uk/id/local-authority/12UE,Huntingdonshire District Council,13/07/2017,13/07/2017,613335,287, 245.00 ,COACH & HORSES,CR410824,Homelessness,Bed & Breakfast Payment,818
http://statistics.data.gov.uk/id/local-authority/12UE,Huntingdonshire District Council,13/07/2017,13/07/2017,613335,287, 245.00 ,COACH & HORSES,CR410824,Homelessness,Bed & Breakfast Payment,818
http://statistics.data.gov.uk/id/local-authority/12UE,Huntingdonshire District Council,13/07/2017,13/07/2017,613335,287, 350.00 ,COACH & HORSES,CR410824,Homelessness,Bed & Breakfast Payment,818
http://statistics.data.gov.uk/id/local-authority/12UE,Huntingdonshire District Council,13/07/2017,13/07/2017,613335,287, 245.00 ,COACH & HORSES,CR410824,Homelessness,Bed & Breakfast Payment,818
http://statistics.data.gov.uk/id/local-authority/12UE,Huntingdonshire District Council,13/07/2017,13/07/2017,613335,287, 245.00 ,COACH & HORSES,CR410824,Homelessness,Bed & Breakfast Payment,818
http://statistics.data.gov.uk/id/local-authority/12UE,Huntingdonshire District Council,13/07/2017,13/07/2017,613335,287, 350.00 ,COACH & HORSES,CR410824,Homelessness,Bed & Breakfast Payment,818
http://statistics.data.gov.uk/id/local-authority/12UE,Huntingdonshire District Council,13/07/2017,13/07/2017,613335,287, 350.00 ,COACH & HORSES,CR410824,Homelessness,Bed & Breakfast Payment,818
http://statistics.data.gov.uk/id/local-authority/12UE,Huntingdonshire District Council,13/07/2017,13/07/2017,613335,287, 245.00 ,COACH & HORSES,CR410824,Homelessness,Bed & Breakfast Payment,818
http://statistics.data.gov.uk/id/local-authority/12UE,Huntingdonshire District Council,19/07/2017,20/07/2017,213723,923186-066A," 2,751.03 ",VIRGIN MEDIA BUSINESS/CPSN,CR455148,Scdc Recharge Invoices,I T Line Rental,248
http://statistics.data.gov.uk/id/local-authority/12UE,Huntingdonshire District Council,19/07/2017,20/07/2017,213724,923186-067A," 2,751.03 ",VIRGIN MEDIA BUSINESS/CPSN,CR455148,Scdc Recharge Invoices,I T Line Rental,248
http://statistics.data.gov.uk/id/local-authority/12UE,Huntingdonshire District Council,19/07/2017,20/07/2017,213725,923186-068A," 2,751.03 ",VIRGIN MEDIA BUSINESS/CPSN,CR455148,Scdc Recharge Invoices,I T Line Rental,248
http://statistics.data.gov.uk/id/local-authority/12UE,Huntingdonshire District Council,19/07/2017,20/07/2017,213726,923186-069A," 2,751.03 ",VIRGIN MEDIA BUSINESS/CPSN,CR455148,Scdc Recharge Invoices,I T Line Rental,248
http://statistics.data.gov.uk/id/local-authority/12UE,Huntingdonshire District Council,05/07/2017,05/07/2017,212729,R021859," 2,675.00 ",PREMIER IT RECRUITMENT LTD,CR454029,Imd Shared Service,Hired Staff,100
http://statistics.data.gov.uk/id/local-authority/12UE,Huntingdonshire District Council,05/07/2017,05/07/2017,212730,R021927," 2,675.00 ",PREMIER IT RECRUITMENT LTD,CR454029,Imd Shared Service,Hired Staff,100
http://statistics.data.gov.uk/id/local-authority/12UE,Huntingdonshire District Council,12/07/2017,20/07/2017,213260,R022050," 2,675.00 ",PREMIER IT RECRUITMENT LTD,CR454029,Imd Shared Service,Hired Staff,100
http://statistics.data.gov.uk/id/local-authority/12UE,Huntingdonshire District Council,19/07/2017,20/07/2017,213717,R022192," 2,675.00 ",PREMIER IT RECRUITMENT LTD,CR454029,Imd Shared Service,Hired Staff,100
http://statistics.data.gov.uk/id/local-authority/12UE,Huntingdonshire District Council,26/07/2017,27/07/2017,214127,R022277," 2,675.00 ",PREMIER IT RECRUITMENT LTD,CR454029,Imd Shared Service,Hired Staff,100
http://statistics.data.gov.uk/id/local-authority/12UE,Huntingdonshire District Council,26/07/2017,27/07/2017,613689,289, 245.00 ,COACH & HORSES,CR410824,Homelessness,Bed & Breakfast Payment,818
http://statistics.data.gov.uk/id/local-authority/12UE,Huntingdonshire District Council,26/07/2017,27/07/2017,613689,289, 280.00 ,COACH & HORSES,CR410824,Homelessness,Bed & Breakfast Payment,818
http://statistics.data.gov.uk/id/local-authority/12UE,Huntingdonshire District Council,26/07/2017,27/07/2017,613689,289, 245.00 ,COACH & HORSES,CR410824,Homelessness,Bed & Breakfast Payment,818
http://statistics.data.gov.uk/id/local-authority/12UE,Huntingdonshire District Council,26/07/2017,27/07/2017,613689,289, 140.00 ,COACH & HORSES,CR410824,Homelessness,Bed & Breakfast Payment,818
http://statistics.data.gov.uk/id/local-authority/12UE,Huntingdonshire District Council,26/07/2017,27/07/2017,613689,289, 350.00 ,COACH & HORSES,CR410824,Homelessness,Bed & Breakfast Payment,818
http://statistics.data.gov.uk/id/local-authority/12UE,Huntingdonshire District Council,26/07/2017,27/07/2017,613689,289, 245.00 ,COACH & HORSES,CR410824,Homelessness,Bed & Breakfast Payment,818
http://statistics.data.gov.uk/id/local-authority/12UE,Huntingdonshire District Council,26/07/2017,27/07/2017,613689,289, 245.00 ,COACH & HORSES,CR410824,Homelessness,Bed & Breakfast Payment,818
http://statistics.data.gov.uk/id/local-authority/12UE,Huntingdonshire District Council,26/07/2017,27/07/2017,613689,289, 150.00 ,COACH & HORSES,CR410824,Homelessness,Bed & Breakfast Payment,818
http://statistics.data.gov.uk/id/local-authority/12UE,Huntingdonshire District Council,26/07/2017,27/07/2017,613689,289, 350.00 ,COACH & HORSES,CR410824,Homelessness,Bed & Breakfast Payment,818
http://statistics.data.gov.uk/id/local-authority/12UE,Huntingdonshire District Council,26/07/2017,27/07/2017,613689,289, 245.00 ,COACH & HORSES,CR410824,Homelessness,Bed & Breakfast Payment,818
http://statistics.data.gov.uk/id/local-authority/12UE,Huntingdonshire District Council,26/07/2017,27/07/2017,613689,289, 140.00 ,COACH & HORSES,CR410824,Homelessness,Bed & Breakfast Payment,818
http://statistics.data.gov.uk/id/local-authority/12UE,Huntingdonshire District Council,05/07/2017,05/07/2017,212724,125362," 2,625.00 ",IT TALENT SOLUTIONS LTD,CR482676,Imd Shared Service,Hired Staff,100
http://statistics.data.gov.uk/id/local-authority/12UE,Huntingdonshire District Council,12/07/2017,20/07/2017,213258,125446," 2,625.00 ",IT TALENT SOLUTIONS LTD,CR482676,Imd Shared Service,Hired Staff,100
http://statistics.data.gov.uk/id/local-authority/12UE,Huntingdonshire District Council,20/07/2017,20/07/2017,212277,IN0605763," 2,607.36 ",STAFFLINE GROUP,CR416827,Domestic Waste Collection,Hired Staff,100
http://statistics.data.gov.uk/id/local-authority/12UE,Huntingdonshire District Council,03/07/2017,03/07/2017,212626,136164," 2,600.00 ",CORNERSTONE BARRISTERS,CR455436,Local Plan Prep (Excl Inq),Consultants,711
http://statistics.data.gov.uk/id/local-authority/12UE,Huntingdonshire District Council,12/07/2017,13/07/2017,212779,428244," 2,600.00 ",HEASELL ELECTROMECHANICAL SERVICES LTD,CR422407,St Ivo - General Improve (Cs),Building Mtce,303
http://statistics.data.gov.uk/id/local-authority/12UE,Huntingdonshire District Council,05/07/2017,05/07/2017,212785,1007683465," 2,600.00 ",HAYS,CR423917,Property Development And Mgt,Hired Staff,100
http://statistics.data.gov.uk/id/local-authority/12UE,Huntingdonshire District Council,05/07/2017,05/07/2017,212787,1007660630," 2,600.00 ",HAYS,CR423917,Property Development And Mgt,Hired Staff,100
http://statistics.data.gov.uk/id/local-authority/12UE,Huntingdonshire District Council,05/07/2017,05/07/2017,212788,1007638050," 2,600.00 ",HAYS,CR423917,Property Development And Mgt,Hired Staff,100
http://statistics.data.gov.uk/id/local-authority/12UE,Huntingdonshire District Council,10/07/2017,10/07/2017,213036,1007698440," 2,600.00 ",HAYS,CR423917,Property Development And Mgt,Hired Staff,100
http://statistics.data.gov.uk/id/local-authority/12UE,Huntingdonshire District Council,04/07/2017,06/07/2017,212357,4611," 2,522.84 ",NOVUS COMPLIANCE SERVICES LTD,CR423524,Pathfinder House,Building Mtce,303
http://statistics.data.gov.uk/id/local-authority/12UE,Huntingdonshire District Council,05/07/2017,06/07/2017,212748,7014675," 2,500.00 ",IDOX,CR481134,Imd Shared Service,Training,130
http://statistics.data.gov.uk/id/local-authority/12UE,Huntingdonshire District Council,19/07/2017,19/07/2017,213687,1217," 2,478.33 ",CHIMES INTERNATIONAL ENTERTAINMENTS LTD,CR424673,Burgess Hall,Entertainments Inc Cable Tv,744
http://statistics.data.gov.uk/id/local-authority/12UE,Huntingdonshire District Council,12/07/2017,12/07/2017,213197,40927," 2,471.00 ",CLANPRESS KING'S LYNN LTD,CR413516,Leisure Centre Corporate Mngmt,Printing (Internal),S04
http://statistics.data.gov.uk/id/local-authority/12UE,Huntingdonshire District Council,12/07/2017,12/07/2017,213174,9184505," 2,457.42 ",CANON UK LTD,CR409013,Printing,Equipment Maintenance,511
http://statistics.data.gov.uk/id/local-authority/12UE,Huntingdonshire District Council,06/07/2017,06/07/2017,212837,20120," 2,447.10 ",M WATSON CONSTRUCTION LTD,CR480595,Disabled Facilities Grants,Mandatory Grants,801
http://statistics.data.gov.uk/id/local-authority/12UE,Huntingdonshire District Council,12/07/2017,20/07/2017,213244,OP/1797069," 2,232.00 ",PHOENIX SOFTWARE LTD,CR031918,Customer Service Centres,Software,206
http://statistics.data.gov.uk/id/local-authority/12UE,Huntingdonshire District Council,12/07/2017,20/07/2017,213244,OP/1797069, 148.80 ,PHOENIX SOFTWARE LTD,CR031918,Domestic Waste Collection,Software,206
http://statistics.data.gov.uk/id/local-authority/12UE,Huntingdonshire District Council,24/07/2017,27/07/2017,213986,IN16PS17003805, 241.94 ,WHISTL UK LTD,CR424061,Electoral Registration,Postage,231
http://statistics.data.gov.uk/id/local-authority/12UE,Huntingdonshire District Council,24/07/2017,27/07/2017,213986,IN16PS17003805, 942.92 ,WHISTL UK LTD,CR424061,Post Handling,Postage,231
http://statistics.data.gov.uk/id/local-authority/12UE,Huntingdonshire District Council,24/07/2017,27/07/2017,213986,IN16PS17003805," 1,187.08 ",WHISTL UK LTD,CR424061,Domestic Waste Collection,Postage,231
http://statistics.data.gov.uk/id/local-authority/12UE,Huntingdonshire District Council,10/07/2017,20/07/2017,213624,SIN084193," 2,367.36 ",QUADRANT SECURITY GROUP,CR027775,Cctv Shared Service Hosting,Equipment Maintenance,511
http://statistics.data.gov.uk/id/local-authority/12UE,Huntingdonshire District Council,06/07/2017,06/07/2017,613150,286, 280.00 ,COACH & HORSES,CR410824,Homelessness,Bed & Breakfast Payment,818
http://statistics.data.gov.uk/id/local-authority/12UE,Huntingdonshire District Council,06/07/2017,06/07/2017,613150,286, 245.00 ,COACH & HORSES,CR410824,Homelessness,Bed & Breakfast Payment,818
http://statistics.data.gov.uk/id/local-authority/12UE,Huntingdonshire District Council,06/07/2017,06/07/2017,613150,286, 350.00 ,COACH & HORSES,CR410824,Homelessness,Bed & Breakfast Payment,818
http://statistics.data.gov.uk/id/local-authority/12UE,Huntingdonshire District Council,06/07/2017,06/07/2017,613150,286, 245.00 ,COACH & HORSES,CR410824,Homelessness,Bed & Breakfast Payment,818
http://statistics.data.gov.uk/id/local-authority/12UE,Huntingdonshire District Council,06/07/2017,06/07/2017,613150,286, 150.00 ,COACH & HORSES,CR410824,Homelessness,Bed & Breakfast Payment,818
http://statistics.data.gov.uk/id/local-authority/12UE,Huntingdonshire District Council,06/07/2017,06/07/2017,613150,286, 245.00 ,COACH & HORSES,CR410824,Homelessness,Bed & Breakfast Payment,818
http://statistics.data.gov.uk/id/local-authority/12UE,Huntingdonshire District Council,06/07/2017,06/07/2017,613150,286, 140.00 ,COACH & HORSES,CR410824,Homelessness,Bed & Breakfast Payment,818
http://statistics.data.gov.uk/id/local-authority/12UE,Huntingdonshire District Council,06/07/2017,06/07/2017,613150,286, 150.00 ,COACH & HORSES,CR410824,Homelessness,Bed & Breakfast Payment,818
http://statistics.data.gov.uk/id/local-authority/12UE,Huntingdonshire District Council,06/07/2017,06/07/2017,613150,286, 350.00 ,COACH & HORSES,CR410824,Homelessness,Bed & Breakfast Payment,818
http://statistics.data.gov.uk/id/local-authority/12UE,Huntingdonshire District Council,06/07/2017,06/07/2017,613150,286, 140.00 ,COACH & HORSES,CR410824,Homelessness,Bed & Breakfast Payment,818
http://statistics.data.gov.uk/id/local-authority/12UE,Huntingdonshire District Council,06/07/2017,06/07/2017,613150,286, 70.00 ,COACH & HORSES,CR410824,Homelessness,Bed & Breakfast Payment,818
http://statistics.data.gov.uk/id/local-authority/12UE,Huntingdonshire District Council,19/07/2017,20/07/2017,213700,125499," 2,362.50 ",IT TALENT SOLUTIONS LTD,CR482676,Imd Shared Service,Hired Staff,100
http://statistics.data.gov.uk/id/local-authority/12UE,Huntingdonshire District Council,19/07/2017,19/07/2017,213548,17/18," 2,360.00 ",JBA CONSTRUCTION & MANAGEMENT SERVICES,CR416716,Ol Hdon Changing Facilities,Consultants,711
http://statistics.data.gov.uk/id/local-authority/12UE,Huntingdonshire District Council,25/07/2017,25/07/2017,214017,1646," 2,327.00 ",HD PROPERTY SERVICES,CR422148,Disabled Facilities Grants,Mandatory Grants,801
http://statistics.data.gov.uk/id/local-authority/12UE,Huntingdonshire District Council,13/07/2017,13/07/2017,213282,20408," 2,296.03 ",M WATSON CONSTRUCTION LTD,CR480595,Disabled Facilities Grants,Mandatory Grants,801
http://statistics.data.gov.uk/id/local-authority/12UE,Huntingdonshire District Council,13/07/2017,13/07/2017,213019,S30613," 2,266.00 ",BSG PROPERTY SERVICES LTD,CR089905,Disabled Facilities Grants,Mandatory Grants,801
http://statistics.data.gov.uk/id/local-authority/12UE,Huntingdonshire District Council,18/07/2017,18/07/2017,213612,HUN001/0076," 2,265.00 ",LGSS LAW,CR422022,Legal,Legal Fees,729
http://statistics.data.gov.uk/id/local-authority/12UE,Huntingdonshire District Council,12/07/2017,13/07/2017,213079,222115," 2,253.66 ",JORDAN FITNESS,CR413161,Impressions,Equipment,500
http://statistics.data.gov.uk/id/local-authority/12UE,Huntingdonshire District Council,19/07/2017,19/07/2017,213658,HDC067," 2,220.00 ",CFL ESTATE SERVICES,CR455208,Property Development And Mgt,Hired Staff,100
http://statistics.data.gov.uk/id/local-authority/12UE,Huntingdonshire District Council,11/07/2017,11/07/2017,213136,90301652," 2,189.00 ",FREETHS  LLP,CR480787,Committee Management,Enquiries,723
http://statistics.data.gov.uk/id/local-authority/12UE,Huntingdonshire District Council,19/07/2017,19/07/2017,213670,151678759," 2,183.11 ",SWALEC,CR407130,Site & Centre Management,Electricity,420
http://statistics.data.gov.uk/id/local-authority/12UE,Huntingdonshire District Council,17/07/2017,20/07/2017,213516,IN16PS17003535, 203.03 ,WHISTL UK LTD,CR424061,Electoral Registration,Postage,231
http://statistics.data.gov.uk/id/local-authority/12UE,Huntingdonshire District Council,17/07/2017,20/07/2017,213516,IN16PS17003535, 879.57 ,WHISTL UK LTD,CR424061,Post Handling,Postage,231
http://statistics.data.gov.uk/id/local-authority/12UE,Huntingdonshire District Council,17/07/2017,20/07/2017,213516,IN16PS17003535, 212.30 ,WHISTL UK LTD,CR424061,Benefits Management,Postage,231
http://statistics.data.gov.uk/id/local-authority/12UE,Huntingdonshire District Council,17/07/2017,20/07/2017,213516,IN16PS17003535, 716.92 ,WHISTL UK LTD,CR424061,Closedcounciltax Mgmt-Use Hb85,Postage,231
http://statistics.data.gov.uk/id/local-authority/12UE,Huntingdonshire District Council,17/07/2017,20/07/2017,213516,IN16PS17003535, 148.57 ,WHISTL UK LTD,CR424061,Domestic Waste Collection,Postage,231
http://statistics.data.gov.uk/id/local-authority/12UE,Huntingdonshire District Council,26/07/2017,27/07/2017,214138,90435944," 2,160.00 ",ADVANTAGE RESOURCING,CR424715,Imd Shared Service,Hired Staff,100
http://statistics.data.gov.uk/id/local-authority/12UE,Huntingdonshire District Council,26/07/2017,27/07/2017,214139,90437733," 2,160.00 ",ADVANTAGE RESOURCING,CR424715,Imd Shared Service,Hired Staff,100
http://statistics.data.gov.uk/id/local-authority/12UE,Huntingdonshire District Council,24/07/2017,27/07/2017,213988,9054790702," 1,176.79 ",ROYAL MAIL,CR027083,Electoral Registration,Postage,231
http://statistics.data.gov.uk/id/local-authority/12UE,Huntingdonshire District Council,24/07/2017,27/07/2017,213988,9054790702, 979.34 ,ROYAL MAIL,CR027083,Post Handling,Postage,231
http://statistics.data.gov.uk/id/local-authority/12UE,Huntingdonshire District Council,04/07/2017,04/07/2017,613153,PERSONAL DATA REDACTED," 2,110.00 ",SHARMAN QUINNEY RESIDENTIAL LETTINGS,CR424106,Rent Deposit- Advanced Rent,Cash Advance,6
http://statistics.data.gov.uk/id/local-authority/12UE,Huntingdonshire District Council,19/07/2017,20/07/2017,213692,13776," 2,102.00 ",ADVANCED POWER TECHNOLOGY LTD,CR423568,Scdc Recharge Invoices,Equipment Maintenance,511
http://statistics.data.gov.uk/id/local-authority/12UE,Huntingdonshire District Council,10/07/2017,10/07/2017,212247,LTHR44," 2,100.00 ",WILLOW HR LIMITED,CR422016,Hr & Payroll Services,Consultants,711
http://statistics.data.gov.uk/id/local-authority/12UE,Huntingdonshire District Council,26/07/2017,27/07/2017,214118,125571," 2,100.00 ",IT TALENT SOLUTIONS LTD,CR482676,Imd Shared Service,Hired Staff,100
http://statistics.data.gov.uk/id/local-authority/12UE,Huntingdonshire District Council,12/07/2017,12/07/2017,213165,12489088380," 2,094.09 ",E-ON ENERGY,CR416430,Swimming,Gas,421
http://statistics.data.gov.uk/id/local-authority/12UE,Huntingdonshire District Council,06/07/2017,06/07/2017,212823,966," 2,087.75 ",HACT,CR455657,Concessionary Fares,Contribution (Paid Out),810
http://statistics.data.gov.uk/id/local-authority/12UE,Huntingdonshire District Council,26/07/2017,27/07/2017,214164,PERSONAL DATA REDACTED," 2,052.86 ",LUMINUS HOMES,CR401276,Homelessness,Incentive Payment,816
http://statistics.data.gov.uk/id/local-authority/12UE,Huntingdonshire District Council,31/07/2017,31/07/2017,214406,0875_HDC," 2,025.00 ",CAMBRIDGE FILMWORKS LTD,CR424847,Transformation Programme,Photographic Services,739
http://statistics.data.gov.uk/id/local-authority/12UE,Huntingdonshire District Council,21/07/2017,21/07/2017,613674,ERS1701965," 1,542.86 ",ELECTORAL REFORM SERVICES,CR479981,Elections - Periodic Review,Other Office Expenses,295
http://statistics.data.gov.uk/id/local-authority/12UE,Huntingdonshire District Council,21/07/2017,21/07/2017,613674,ERS1701965, 479.40 ,ELECTORAL REFORM SERVICES,CR479981,Elections - Periodic Review,Other Office Expenses,295
http://statistics.data.gov.uk/id/local-authority/12UE,Huntingdonshire District Council,21/07/2017,21/07/2017,213961,65922," 2,014.52 ",HAVEN POWER LTD,CR455940,Site & Centre Management,Electricity,420
http://statistics.data.gov.uk/id/local-authority/12UE,Huntingdonshire District Council,26/07/2017,27/07/2017,214094,242160," 2,011.80 ",VIRGIN MEDIA,CR412057,Cctv Shared Service Hosting,Transmission Lines Rental,767
http://statistics.data.gov.uk/id/local-authority/12UE,Huntingdonshire District Council,18/07/2017,18/07/2017,213598,HUN001/0020," 2,000.20 ",LGSS LAW,CR422022,Legal,Legal Fees,729
http://statistics.data.gov.uk/id/local-authority/12UE,Huntingdonshire District Council,19/07/2017,20/07/2017,213722,C/KE154458," 2,000.00 ",CIVICA UK LTD,CR415826,Scdc Recharge Invoices,Software,206
http://statistics.data.gov.uk/id/local-authority/12UE,Huntingdonshire District Council,26/07/2017,27/07/2017,214124,R022158," 2,000.00 ",PREMIER IT RECRUITMENT LTD,CR454029,Ccity Recharge Invoices,Hired Staff,100
http://statistics.data.gov.uk/id/local-authority/12UE,Huntingdonshire District Council,13/07/2017,13/07/2017,213020,PI70003," 1,992.22 ",RULE & PARKER LTD,CR152340,Disabled Facilities Grants,Mandatory Grants,801
http://statistics.data.gov.uk/id/local-authority/12UE,Huntingdonshire District Council,26/07/2017,26/07/2017,213968,18," 1,980.00 ",RICHARD SISTROM PAINTING & DECORATING,CR422887,Ramsey L C - Gen Improve (Cs),Building Mtce,303
http://statistics.data.gov.uk/id/local-authority/12UE,Huntingdonshire District Council,05/07/2017,06/07/2017,212209,DE11049133," 1,967.41 ",DENNIS EAGLE LTD,CR000200,Domestic Waste Collection,Vehicle Parts & Fittings,625
http://statistics.data.gov.uk/id/local-authority/12UE,Huntingdonshire District Council,05/07/2017,06/07/2017,212752,7016513," 1,900.00 ",IDOX,CR481134,Imd Shared Service,Software,206
http://statistics.data.gov.uk/id/local-authority/12UE,Huntingdonshire District Council,05/07/2017,05/07/2017,212737,1260250112, 8.00 ,ORANGE AIRTIME,CR455799,Legal,Telephone &Mobile Phonecharges,240
http://statistics.data.gov.uk/id/local-authority/12UE,Huntingdonshire District Council,05/07/2017,05/07/2017,212737,1260250112, 50.00 ,ORANGE AIRTIME,CR455799,Cctv Shared Service Hosting,Telephone &Mobile Phonecharges,240
http://statistics.data.gov.uk/id/local-authority/12UE,Huntingdonshire District Council,05/07/2017,05/07/2017,212737,1260250112, 82.13 ,ORANGE AIRTIME,CR455799,Building Control,Telephone &Mobile Phonecharges,240
http://statistics.data.gov.uk/id/local-authority/12UE,Huntingdonshire District Council,05/07/2017,05/07/2017,212737,1260250112, 182.30 ,ORANGE AIRTIME,CR455799,Imd Shared Service,Telephone &Mobile Phonecharges,240
http://statistics.data.gov.uk/id/local-authority/12UE,Huntingdonshire District Council,05/07/2017,05/07/2017,212737,1260250112," 1,574.65 ",ORANGE AIRTIME,CR455799,Hdc Recharge Invoices,Telephone &Mobile Phonecharges,240
http://statistics.data.gov.uk/id/local-authority/12UE,Huntingdonshire District Council,26/07/2017,27/07/2017,214140,1261686290, 8.00 ,ORANGE AIRTIME,CR455799,Legal,Telephone &Mobile Phonecharges,240
http://statistics.data.gov.uk/id/local-authority/12UE,Huntingdonshire District Council,26/07/2017,27/07/2017,214140,1261686290, 50.00 ,ORANGE AIRTIME,CR455799,Cctv Shared Service Hosting,Telephone &Mobile Phonecharges,240
http://statistics.data.gov.uk/id/local-authority/12UE,Huntingdonshire District Council,26/07/2017,27/07/2017,214140,1261686290, 82.07 ,ORANGE AIRTIME,CR455799,Building Control,Telephone &Mobile Phonecharges,240
http://statistics.data.gov.uk/id/local-authority/12UE,Huntingdonshire District Council,26/07/2017,27/07/2017,214140,1261686290, 182.00 ,ORANGE AIRTIME,CR455799,Imd Shared Service,Telephone &Mobile Phonecharges,240
http://statistics.data.gov.uk/id/local-authority/12UE,Huntingdonshire District Council,26/07/2017,27/07/2017,214140,1261686290," 1,571.97 ",ORANGE AIRTIME,CR455799,Hdc Recharge Invoices,Telephone &Mobile Phonecharges,240
http://statistics.data.gov.uk/id/local-authority/12UE,Huntingdonshire District Council,26/07/2017,27/07/2017,214149,PSINV01933696," 1,890.00 ",CDW,CR423950,Imd Shared Service,Other I T Hardware,203
http://statistics.data.gov.uk/id/local-authority/12UE,Huntingdonshire District Council,10/07/2017,20/07/2017,213538,PN 1718/186," 1,873.00 ",APSE,CR479836,Head Of Community,Corporate Subscriptions,754
http://statistics.data.gov.uk/id/local-authority/12UE,Huntingdonshire District Council,19/07/2017,20/07/2017,213731,7.42878E+14, 5.75 ,VIRGIN MEDIA BUSINESS,CR033120,Member Allowances & Support,I T Line Rental,248
http://statistics.data.gov.uk/id/local-authority/12UE,Huntingdonshire District Council,19/07/2017,20/07/2017,213731,7.42878E+14," 1,021.35 ",VIRGIN MEDIA BUSINESS,CR033120,Imd Shared Service,Telephone &Mobile Phonecharges,240
http://statistics.data.gov.uk/id/local-authority/12UE,Huntingdonshire District Council,19/07/2017,20/07/2017,213731,7.42878E+14, 796.37 ,VIRGIN MEDIA BUSINESS,CR033120,Imd Shared Service,I T Line Rental,248
http://statistics.data.gov.uk/id/local-authority/12UE,Huntingdonshire District Council,19/07/2017,20/07/2017,213731,7.42878E+14, 1.80 ,VIRGIN MEDIA BUSINESS,CR033120,Site & Centre Management,Telephone &Mobile Phonecharges,240
http://statistics.data.gov.uk/id/local-authority/12UE,Huntingdonshire District Council,19/07/2017,20/07/2017,213731,7.42878E+14, 8.00 ,VIRGIN MEDIA BUSINESS,CR033120,Site & Centre Management,I T Line Rental,248
http://statistics.data.gov.uk/id/local-authority/12UE,Huntingdonshire District Council,05/07/2017,05/07/2017,212723,125396," 1,800.00 ",IT TALENT SOLUTIONS LTD,CR482676,Imd Shared Service,Hired Staff,100
http://statistics.data.gov.uk/id/local-authority/12UE,Huntingdonshire District Council,13/07/2017,13/07/2017,213281,20409," 1,787.32 ",M WATSON CONSTRUCTION LTD,CR480595,Disabled Facilities Grants,Mandatory Grants,801
http://statistics.data.gov.uk/id/local-authority/12UE,Huntingdonshire District Council,19/07/2017,20/07/2017,213697,91393496," 1,750.00 ",NORTHGATEPUBLIC SERVICES UK LTD,CR028925,Imd Shared Service,Consultants,711
http://statistics.data.gov.uk/id/local-authority/12UE,Huntingdonshire District Council,21/07/2017,21/07/2017,213971,40584," 1,748.00 ",ANGLIA PRINT SOLUTIONS,CR412118,Printing,Equipment Maintenance,511
http://statistics.data.gov.uk/id/local-authority/12UE,Huntingdonshire District Council,20/07/2017,20/07/2017,213568,IN0612367," 1,729.44 ",STAFFLINE GROUP,CR416827,Street Cleansing,Hired Staff,100
http://statistics.data.gov.uk/id/local-authority/12UE,Huntingdonshire District Council,20/07/2017,20/07/2017,213778,HDC 054," 1,724.35 ",C G UTILITIES,CR119758,Facilities,Consultants,711
http://statistics.data.gov.uk/id/local-authority/12UE,Huntingdonshire District Council,20/07/2017,20/07/2017,213567,IN0610432," 1,724.13 ",STAFFLINE GROUP,CR416827,Street Cleansing,Hired Staff,100
http://statistics.data.gov.uk/id/local-authority/12UE,Huntingdonshire District Council,21/07/2017,21/07/2017,213966,65922," 1,706.97 ",HAVEN POWER LTD,CR455940,Site & Centre Management,Electricity,420
http://statistics.data.gov.uk/id/local-authority/12UE,Huntingdonshire District Council,05/07/2017,05/07/2017,212726,LA441461," 1,704.50 ",L A INTERNATIONAL COMPUTER CONSULTANTS LTD,CR424731,Imd Shared Service,Hired Staff,100
http://statistics.data.gov.uk/id/local-authority/12UE,Huntingdonshire District Council,12/07/2017,20/07/2017,213254,LA442881," 1,704.50 ",L A INTERNATIONAL COMPUTER CONSULTANTS LTD,CR424731,Imd Shared Service,Hired Staff,100
http://statistics.data.gov.uk/id/local-authority/12UE,Huntingdonshire District Council,19/07/2017,20/07/2017,213714,LA444069," 1,704.50 ",L A INTERNATIONAL COMPUTER CONSULTANTS LTD,CR424731,Imd Shared Service,Hired Staff,100
http://statistics.data.gov.uk/id/local-authority/12UE,Huntingdonshire District Council,26/07/2017,27/07/2017,214106,LA455182," 1,704.50 ",L A INTERNATIONAL COMPUTER CONSULTANTS LTD,CR424731,Imd Shared Service,Hired Staff,100
http://statistics.data.gov.uk/id/local-authority/12UE,Huntingdonshire District Council,26/07/2017,27/07/2017,613685,2017/18 - 36," 1,700.00 ",OXMOOR COMMUNITY ACTIION GROUP,CR416130,Voluntary Sector Grants,Grants (Paid Out),800
http://statistics.data.gov.uk/id/local-authority/12UE,Huntingdonshire District Council,19/07/2017,19/07/2017,213482,672591," 1,572.44 ",LACONS,CR422174,Burgess Bar,Bar Provisions,558
http://statistics.data.gov.uk/id/local-authority/12UE,Huntingdonshire District Council,19/07/2017,19/07/2017,213482,672591, 94.44 ,LACONS,CR422174,Burgess Bar,Gas Cylinders (Incl. Bars),567
http://statistics.data.gov.uk/id/local-authority/12UE,Huntingdonshire District Council,12/07/2017,12/07/2017,213164,12489088110," 1,662.88 ",E-ON ENERGY,CR416430,Swimming,Gas,421
http://statistics.data.gov.uk/id/local-authority/12UE,Huntingdonshire District Council,18/07/2017,18/07/2017,213611,HUN001/0075," 1,650.00 ",LGSS LAW,CR422022,Legal,Legal Fees,729
http://statistics.data.gov.uk/id/local-authority/12UE,Huntingdonshire District Council,19/07/2017,20/07/2017,213680,SINV00111860, 11.00 ,BIST,CR422733,Hdc Recharge Invoices,Other I T Hardware,203
http://statistics.data.gov.uk/id/local-authority/12UE,Huntingdonshire District Council,19/07/2017,20/07/2017,213680,SINV00111860," 1,600.00 ",BIST,CR422733,Hdc Recharge Invoices,Other I T Hardware,203
http://statistics.data.gov.uk/id/local-authority/12UE,Huntingdonshire District Council,05/07/2017,06/07/2017,212877,27943," 1,571.81 ",M & N VEHICLE SERVICES,CR480661,Domestic Waste Collection,Vehicle Parts & Fittings,625
http://statistics.data.gov.uk/id/local-authority/12UE,Huntingdonshire District Council,17/07/2017,20/07/2017,213517,9185355," 1,567.50 ",CANON UK LTD,CR409013,Printing,Equipment Maintenance,511
http://statistics.data.gov.uk/id/local-authority/12UE,Huntingdonshire District Council,27/07/2017,31/07/2017,214391,1007739277," 1,525.00 ",HAYS,CR423917,Property Development And Mgt,Hired Staff,100
http://statistics.data.gov.uk/id/local-authority/12UE,Huntingdonshire District Council,27/07/2017,31/07/2017,214393,1007739278," 1,525.00 ",HAYS,CR423917,Property Development And Mgt,Hired Staff,100
http://statistics.data.gov.uk/id/local-authority/12UE,Huntingdonshire District Council,06/07/2017,06/07/2017,212881,90300648, 24.00 ,FREETHS  LLP,CR480787,Commercial Investment Strategy,Legal Fees,729
http://statistics.data.gov.uk/id/local-authority/12UE,Huntingdonshire District Council,06/07/2017,06/07/2017,212881,90300648," 1,500.00 ",FREETHS  LLP,CR480787,Commercial Investment Strategy,Legal Fees,729
http://statistics.data.gov.uk/id/local-authority/12UE,Huntingdonshire District Council,12/07/2017,12/07/2017,213156,74810," 1,500.00 ",MACDONALD & COMPANY FREELANCE LTD,CR424684,Property Development And Mgt,Hired Staff,100
http://statistics.data.gov.uk/id/local-authority/12UE,Huntingdonshire District Council,12/07/2017,12/07/2017,213157,I7786," 1,500.00 ",ZURICH MUNICIPAL,CR003638,Domestic Waste Collection,Insurance Excess,797
http://statistics.data.gov.uk/id/local-authority/12UE,Huntingdonshire District Council,27/07/2017,27/07/2017,214196,74939," 1,500.00 ",MACDONALD & COMPANY FREELANCE LTD,CR424684,Property Development And Mgt,Hired Staff,100
http://statistics.data.gov.uk/id/local-authority/12UE,Huntingdonshire District Council,26/07/2017,27/07/2017,613684,2017/18- 12," 1,500.00 ",MAGPAS AIR AMBULANCE,CR424841,Voluntary Sector Grants,Grants (Paid Out),800
http://statistics.data.gov.uk/id/local-authority/12UE,Huntingdonshire District Council,05/07/2017,06/07/2017,212765,102345," 1,485.00 ",MENERGA TECHNICAL SERVICES LTD,CR033494,Site & Centre Management,Building Mtce,303
http://statistics.data.gov.uk/id/local-authority/12UE,Huntingdonshire District Council,06/07/2017,06/07/2017,212816,19842," 1,473.23 ",KING STREET HOUSING SOCIETY,CR409301,Homelessness,Management Charge,733
http://statistics.data.gov.uk/id/local-authority/12UE,Huntingdonshire District Council,20/07/2017,20/07/2017,212713,10830197," 1,432.50 ",SHB HIRE LTD,CR416566,Domestic Waste Collection,Vehicle Hire,607
http://statistics.data.gov.uk/id/local-authority/12UE,Huntingdonshire District Council,05/07/2017,06/07/2017,212751,7016512," 1,425.00 ",IDOX,CR481134,Imd Shared Service,Software,206
http://statistics.data.gov.uk/id/local-authority/12UE,Huntingdonshire District Council,20/07/2017,20/07/2017,213639,IN0594997," 1,405.84 ",STAFFLINE GROUP,CR416827,Street Cleansing,Hired Staff,100
http://statistics.data.gov.uk/id/local-authority/12UE,Huntingdonshire District Council,05/07/2017,06/07/2017,212715,217363," 1,405.00 ",DCRS LTD,CR478074,Sawtry L C - Gen Improve (Cs),Equipment,500
http://statistics.data.gov.uk/id/local-authority/12UE,Huntingdonshire District Council,05/07/2017,05/07/2017,212722,125408," 1,400.00 ",IT TALENT SOLUTIONS LTD,CR482676,Imd Shared Service,Hired Staff,100
http://statistics.data.gov.uk/id/local-authority/12UE,Huntingdonshire District Council,17/07/2017,17/07/2017,213549,91393387," 1,400.00 ",NORTHGATEPUBLIC SERVICES UK LTD,CR028925,Benefits Management,Software,206
http://statistics.data.gov.uk/id/local-authority/12UE,Huntingdonshire District Council,19/07/2017,20/07/2017,213703,125492," 1,400.00 ",IT TALENT SOLUTIONS LTD,CR482676,Imd Shared Service,Hired Staff,100
http://statistics.data.gov.uk/id/local-authority/12UE,Huntingdonshire District Council,19/07/2017,20/07/2017,213706,125486," 1,400.00 ",IT TALENT SOLUTIONS LTD,CR482676,Imd Shared Service,Hired Staff,100
http://statistics.data.gov.uk/id/local-authority/12UE,Huntingdonshire District Council,20/07/2017,20/07/2017,212645,96343801, 413.36 ,TERBERG MATEC UK LTD,CR402183,Recycling Collections,Vehicle Parts & Fittings,625
http://statistics.data.gov.uk/id/local-authority/12UE,Huntingdonshire District Council,20/07/2017,20/07/2017,212645,96343801, 964.50 ,TERBERG MATEC UK LTD,CR402183,Domestic Waste Collection,Vehicle Parts & Fittings,625
http://statistics.data.gov.uk/id/local-authority/12UE,Huntingdonshire District Council,18/07/2017,18/07/2017,213602,HUN001/0034," 1,365.00 ",LGSS LAW,CR422022,Legal,Legal Fees,729
http://statistics.data.gov.uk/id/local-authority/12UE,Huntingdonshire District Council,12/07/2017,20/07/2017,213264,SLMR/00010867," 1,324.80 ",ORCHARD INFORMATION SYSTEMS LTD,CR424755,Scdc Recharge Invoices,Equipment Maintenance,511
http://statistics.data.gov.uk/id/local-authority/12UE,Huntingdonshire District Council,17/07/2017,20/07/2017,213518,IN16PS17003647, 69.28 ,WHISTL UK LTD,CR424061,Electoral Registration,Postage,231
http://statistics.data.gov.uk/id/local-authority/12UE,Huntingdonshire District Council,17/07/2017,20/07/2017,213518,IN16PS17003647, 820.66 ,WHISTL UK LTD,CR424061,Post Handling,Postage,231
http://statistics.data.gov.uk/id/local-authority/12UE,Huntingdonshire District Council,17/07/2017,20/07/2017,213518,IN16PS17003647, 199.70 ,WHISTL UK LTD,CR424061,Benefits Management,Postage,231
http://statistics.data.gov.uk/id/local-authority/12UE,Huntingdonshire District Council,17/07/2017,20/07/2017,213518,IN16PS17003647, 213.78 ,WHISTL UK LTD,CR424061,Closedcounciltax Mgmt-Use Hb85,Postage,231
http://statistics.data.gov.uk/id/local-authority/12UE,Huntingdonshire District Council,05/07/2017,06/07/2017,212750,7014991," 1,300.00 ",IDOX,CR481134,Imd Shared Service,Consultants,711
http://statistics.data.gov.uk/id/local-authority/12UE,Huntingdonshire District Council,13/07/2017,13/07/2017,213459,4924," 1,300.00 ",THE INFORMATION LAB,CR423551,Hr & Payroll Services,Training,130
http://statistics.data.gov.uk/id/local-authority/12UE,Huntingdonshire District Council,19/07/2017,20/07/2017,213720,17/003," 1,300.00 ",EDRM AT WORK,CR482294,Scdc Recharge Invoices,Consultants,711
http://statistics.data.gov.uk/id/local-authority/12UE,Huntingdonshire District Council,11/07/2017,11/07/2017,213054,15838, 306.90 ,JADE SECURITY SERVICES LTD,CR422256,Corporate Finance (Non Cm),Cash Collection,702
http://statistics.data.gov.uk/id/local-authority/12UE,Huntingdonshire District Council,11/07/2017,11/07/2017,213054,15838, 181.35 ,JADE SECURITY SERVICES LTD,CR422256,Site & Centre Management,Cash Collection,702
http://statistics.data.gov.uk/id/local-authority/12UE,Huntingdonshire District Council,11/07/2017,11/07/2017,213054,15838, 181.35 ,JADE SECURITY SERVICES LTD,CR422256,Site & Centre Management,Cash Collection,702
http://statistics.data.gov.uk/id/local-authority/12UE,Huntingdonshire District Council,11/07/2017,11/07/2017,213054,15838, 251.10 ,JADE SECURITY SERVICES LTD,CR422256,Site & Centre Management,Cash Collection,702
http://statistics.data.gov.uk/id/local-authority/12UE,Huntingdonshire District Council,11/07/2017,11/07/2017,213054,15838, 195.30 ,JADE SECURITY SERVICES LTD,CR422256,Site & Centre Management,Cash Collection,702
http://statistics.data.gov.uk/id/local-authority/12UE,Huntingdonshire District Council,11/07/2017,11/07/2017,213054,15838, 55.80 ,JADE SECURITY SERVICES LTD,CR422256,Site & Centre Management,Cash Collection,702
http://statistics.data.gov.uk/id/local-authority/12UE,Huntingdonshire District Council,11/07/2017,11/07/2017,213054,15838, 55.80 ,JADE SECURITY SERVICES LTD,CR422256,Site & Centre Management,Cash Collection,702
http://statistics.data.gov.uk/id/local-authority/12UE,Huntingdonshire District Council,11/07/2017,11/07/2017,213054,15838, 69.75 ,JADE SECURITY SERVICES LTD,CR422256,Hinchingbrooke Park Cafe,Cash Collection,702
http://statistics.data.gov.uk/id/local-authority/12UE,Huntingdonshire District Council,20/07/2017,20/07/2017,213465,157872," 1,296.00 ",TECALEMIT GARAGE EQUIPMENT CO LTD,CR477683,Vehicle Maintenance,Equipment Maintenance,511
http://statistics.data.gov.uk/id/local-authority/12UE,Huntingdonshire District Council,19/07/2017,20/07/2017,213458,102062," 1,242.60 ",BROOKES,CR422866,Pathfinder House,Catering,710
http://statistics.data.gov.uk/id/local-authority/12UE,Huntingdonshire District Council,05/07/2017,05/07/2017,212791,1007658930," 1,220.00 ",HAYS,CR423917,Property Development And Mgt,Hired Staff,100
http://statistics.data.gov.uk/id/local-authority/12UE,Huntingdonshire District Council,19/07/2017,19/07/2017,213305,GD601, 200.00 ,GREENDAY ENERGY LTD,CR422398,Site & Centre Management,Consultants,711
http://statistics.data.gov.uk/id/local-authority/12UE,Huntingdonshire District Council,19/07/2017,19/07/2017,213305,GD601, 400.00 ,GREENDAY ENERGY LTD,CR422398,Site & Centre Management,Consultants,711
http://statistics.data.gov.uk/id/local-authority/12UE,Huntingdonshire District Council,19/07/2017,19/07/2017,213305,GD601, 200.00 ,GREENDAY ENERGY LTD,CR422398,Site & Centre Management,Consultants,711
http://statistics.data.gov.uk/id/local-authority/12UE,Huntingdonshire District Council,19/07/2017,19/07/2017,213305,GD601, 200.00 ,GREENDAY ENERGY LTD,CR422398,Site & Centre Management,Consultants,711
http://statistics.data.gov.uk/id/local-authority/12UE,Huntingdonshire District Council,19/07/2017,19/07/2017,213305,GD601, 200.00 ,GREENDAY ENERGY LTD,CR422398,Site & Centre Management,Consultants,711
http://statistics.data.gov.uk/id/local-authority/12UE,Huntingdonshire District Council,17/07/2017,17/07/2017,613479,522642/64019324," 1,183.00 ",DENNIS EASTON FUNERAL SERVICE,CR094549,Burials Under Health Act,Funerals And Graves,717
http://statistics.data.gov.uk/id/local-authority/12UE,Huntingdonshire District Council,20/07/2017,20/07/2017,213566,IN0608757," 1,172.41 ",STAFFLINE GROUP,CR416827,Street Cleansing,Hired Staff,100
http://statistics.data.gov.uk/id/local-authority/12UE,Huntingdonshire District Council,24/07/2017,27/07/2017,213950,113128675," 1,162.50 ",KONE LIFTS LTD,CR000483,Pathfinder House,Plant & Equipment Maintenance,380
http://statistics.data.gov.uk/id/local-authority/12UE,Huntingdonshire District Council,10/07/2017,10/07/2017,213042,IOSINV013000," 1,145.00 ",INSTITUTE OF SWIMMING LTD,CR455603,Hr & Payroll Services,Training,130
http://statistics.data.gov.uk/id/local-authority/12UE,Huntingdonshire District Council,17/07/2017,20/07/2017,213178,9054704952, 54.72 ,ROYAL MAIL,CR027083,Electoral Registration,Postage,231
http://statistics.data.gov.uk/id/local-authority/12UE,Huntingdonshire District Council,17/07/2017,20/07/2017,213178,9054704952," 1,087.62 ",ROYAL MAIL,CR027083,Post Handling,Postage,231
http://statistics.data.gov.uk/id/local-authority/12UE,Huntingdonshire District Council,19/07/2017,20/07/2017,212648,DE11050237," 1,141.77 ",DENNIS EAGLE LTD,CR000200,Recycling Collections,Vehicle Parts & Fittings,625
http://statistics.data.gov.uk/id/local-authority/12UE,Huntingdonshire District Council,26/07/2017,27/07/2017,214117,125590," 1,120.00 ",IT TALENT SOLUTIONS LTD,CR482676,Imd Shared Service,Hired Staff,100
http://statistics.data.gov.uk/id/local-authority/12UE,Huntingdonshire District Council,26/07/2017,26/07/2017,214024,JL17/7/195," 1,119.00 ",J AND L SALES LIMITED,CR423146,Ol Hdon Changing Facilities,Building Mtce,303
http://statistics.data.gov.uk/id/local-authority/12UE,Huntingdonshire District Council,05/07/2017,05/07/2017,212727,LA441462," 1,110.00 ",L A INTERNATIONAL COMPUTER CONSULTANTS LTD,CR424731,Imd Shared Service,Hired Staff,100
http://statistics.data.gov.uk/id/local-authority/12UE,Huntingdonshire District Council,12/07/2017,20/07/2017,213255,LA442882," 1,110.00 ",L A INTERNATIONAL COMPUTER CONSULTANTS LTD,CR424731,Imd Shared Service,Hired Staff,100
http://statistics.data.gov.uk/id/local-authority/12UE,Huntingdonshire District Council,12/07/2017,20/07/2017,213256,LA443504," 1,110.00 ",L A INTERNATIONAL COMPUTER CONSULTANTS LTD,CR424731,Imd Shared Service,Hired Staff,100
http://statistics.data.gov.uk/id/local-authority/12UE,Huntingdonshire District Council,19/07/2017,19/07/2017,213674,11398240710," 1,104.79 ",E-ON ENERGY,CR416430,Cctv Huntingdonshire,Electricity,420
http://statistics.data.gov.uk/id/local-authority/12UE,Huntingdonshire District Council,06/07/2017,06/07/2017,212287,IN0607401," 1,098.14 ",STAFFLINE GROUP,CR416827,Street Cleansing,Hired Staff,100
http://statistics.data.gov.uk/id/local-authority/12UE,Huntingdonshire District Council,18/07/2017,18/07/2017,213585,HUN001/0001," 1,083.60 ",LGSS LAW,CR422022,Legal,Legal Fees,729
http://statistics.data.gov.uk/id/local-authority/12UE,Huntingdonshire District Council,18/07/2017,18/07/2017,213626,8342/22046," 1,078.13 ",ROOFING CONTRACTORS (CAMBRIDGE) LTD,CR422450,St Ives Bus Station,Building Mtce,303
http://statistics.data.gov.uk/id/local-authority/12UE,Huntingdonshire District Council,05/07/2017,06/07/2017,212755,INV10022, 110.00 ,SOCITM,CR403291,Hdc Recharge Invoices,Software,206
http://statistics.data.gov.uk/id/local-authority/12UE,Huntingdonshire District Council,05/07/2017,06/07/2017,212755,INV10022, 960.00 ,SOCITM,CR403291,Hdc Recharge Invoices,Software,206
http://statistics.data.gov.uk/id/local-authority/12UE,Huntingdonshire District Council,28/07/2017,28/07/2017,214400,D1705327P," 1,057.30 ",LEXISNEXIS,CR453991,Electoral Registration,Books & Publications,250
http://statistics.data.gov.uk/id/local-authority/12UE,Huntingdonshire District Council,19/07/2017,19/07/2017,212432,17725," 1,050.00 ",BIGPRINTING,CR416383,Leisure Centre Corporate Mngmt,Advertising/Promoting Services,255
http://statistics.data.gov.uk/id/local-authority/12UE,Huntingdonshire District Council,12/07/2017,20/07/2017,213247,91392132," 1,050.00 ",NORTHGATEPUBLIC SERVICES UK LTD,CR028925,Ccity Recharge Invoices,Software,206
http://statistics.data.gov.uk/id/local-authority/12UE,Huntingdonshire District Council,20/07/2017,20/07/2017,213708,Mar-17," 1,050.00 ",THE STATION HOTEL,CR453752,Homelessness,Bed & Breakfast Payment,818
http://statistics.data.gov.uk/id/local-authority/12UE,Huntingdonshire District Council,06/07/2017,06/07/2017,212279,IN0605765," 1,023.87 ",STAFFLINE GROUP,CR416827,Street Cleansing,Hired Staff,100
http://statistics.data.gov.uk/id/local-authority/12UE,Huntingdonshire District Council,19/07/2017,20/07/2017,213481,59203," 1,018.31 ",BEEBYS LIMITED,CR415822,Huntingdon Bus Station,Building Cleaning,440
http://statistics.data.gov.uk/id/local-authority/12UE,Huntingdonshire District Council,19/07/2017,20/07/2017,213476,S000047," 1,015.00 ",DTS SOLUTIONS (UK) LTD,CR001981,Arboricultural Team,Vehicle Parts & Fittings,625
http://statistics.data.gov.uk/id/local-authority/12UE,Huntingdonshire District Council,05/07/2017,06/07/2017,212813,193006," 1,012.50 ",CHEVIN FLEET SOLUTIONS,CR477454,Vehicle Maintenance,Vehicle Licence,609
http://statistics.data.gov.uk/id/local-authority/12UE,Huntingdonshire District Council,12/07/2017,20/07/2017,213248,INV13302," 1,005.00 ",HORNBILL SERVICE MANAGEMENT LIMITED,CR423491,Imd Shared Service,I C T Services,731
http://statistics.data.gov.uk/id/local-authority/12UE,Huntingdonshire District Council,10/07/2017,20/07/2017,212873,60190667 306589," 1,003.00 ",CENTRAL ENGLAND CO-OPERATIVE LTD,CR401059,Burials Under Health Act,Funerals And Graves,717
http://statistics.data.gov.uk/id/local-authority/12UE,Huntingdonshire District Council,19/07/2017,19/07/2017,213319,I168283," 1,002.18 ",OAKHAM ALES,CR422253,Burgess Bar,Bar Provisions,558
http://statistics.data.gov.uk/id/local-authority/12UE,Huntingdonshire District Council,13/07/2017,13/07/2017,213137,PERSONAL DATA REDACTED," 1,000.00 ",LUMINUS HOMES,CR401276,Homelessness,Incentive Payment,816
http://statistics.data.gov.uk/id/local-authority/12UE,Huntingdonshire District Council,13/07/2017,13/07/2017,213452,INV042351," 1,000.00 ",SAFETY MEDIA LTD,CR033676,Hr & Payroll Services,Training,130
http://statistics.data.gov.uk/id/local-authority/12UE,Huntingdonshire District Council,06/07/2017,06/07/2017,212675,173467, 988.60 ,HUNTINGDON TIMBER SUPPLIES,CR482513,Paxton Pits,Materials,550
http://statistics.data.gov.uk/id/local-authority/12UE,Huntingdonshire District Council,27/07/2017,27/07/2017,214170,41133, 716.00 ,CLANPRESS KING'S LYNN LTD,CR413516,Printing,Equipment Maintenance,511
http://statistics.data.gov.uk/id/local-authority/12UE,Huntingdonshire District Council,27/07/2017,27/07/2017,214170,41133, 272.00 ,CLANPRESS KING'S LYNN LTD,CR413516,Printing,Equipment Maintenance,511
http://statistics.data.gov.uk/id/local-authority/12UE,Huntingdonshire District Council,20/07/2017,20/07/2017,212669,362376, 987.55 ,THURLOW NUNN STANDEN LTD,CR001534,Grounds Maintenance,Vehicle Maintenance External,619
http://statistics.data.gov.uk/id/local-authority/12UE,Huntingdonshire District Council,24/07/2017,27/07/2017,213499,PSI1708574, 983.52 ,REESINK TURFCARE UK LTD,CR098282,Grounds Maintenance,Vehicle Parts & Fittings,625
http://statistics.data.gov.uk/id/local-authority/12UE,Huntingdonshire District Council,19/07/2017,19/07/2017,213095,428296, 972.00 ,HEASELL ELECTROMECHANICAL SERVICES LTD,CR422407,Site & Centre Management,Building Mtce,303
http://statistics.data.gov.uk/id/local-authority/12UE,Huntingdonshire District Council,07/07/2017,07/07/2017,613314,, 968.25 ,WARBOYS  PARISH COUNCIL,CR002490,Recycling Collections,Recycling Credits,A53
http://statistics.data.gov.uk/id/local-authority/12UE,Huntingdonshire District Council,04/07/2017,06/07/2017,212337,4613, 958.16 ,NOVUS COMPLIANCE SERVICES LTD,CR423524,Eastfield House,Building Mtce,303
http://statistics.data.gov.uk/id/local-authority/12UE,Huntingdonshire District Council,05/07/2017,06/07/2017,212749,7016069, 950.00 ,IDOX,CR481134,Land Charges Management,Consultants,711
http://statistics.data.gov.uk/id/local-authority/12UE,Huntingdonshire District Council,20/07/2017,20/07/2017,212718,10830201, 945.00 ,SHB HIRE LTD,CR416566,Street Cleansing,Vehicle Hire,607
http://statistics.data.gov.uk/id/local-authority/12UE,Huntingdonshire District Council,20/07/2017,20/07/2017,212720,10830203, 945.00 ,SHB HIRE LTD,CR416566,Domestic Waste Collection,Vehicle Hire,607
http://statistics.data.gov.uk/id/local-authority/12UE,Huntingdonshire District Council,18/07/2017,18/07/2017,213604,HUN001/0039, 945.00 ,LGSS LAW,CR422022,Legal,Legal Fees,729
http://statistics.data.gov.uk/id/local-authority/12UE,Huntingdonshire District Council,05/07/2017,06/07/2017,212753,82781, 923.00 ,UNINTERRUPTIBLE POWER SUPPLIES LTD,CR424763,Hdc Recharge Invoices,Equipment Maintenance,511
http://statistics.data.gov.uk/id/local-authority/12UE,Huntingdonshire District Council,26/07/2017,27/07/2017,214146,SINV00112829, 11.55 ,BIST,CR422733,Imd Shared Service,Other I T Hardware,203
http://statistics.data.gov.uk/id/local-authority/12UE,Huntingdonshire District Council,26/07/2017,27/07/2017,214146,SINV00112829, 907.00 ,BIST,CR422733,Imd Shared Service,Other I T Hardware,203
http://statistics.data.gov.uk/id/local-authority/12UE,Huntingdonshire District Council,05/07/2017,05/07/2017,212790,1007681031, 915.00 ,HAYS,CR423917,Property Development And Mgt,Hired Staff,100
http://statistics.data.gov.uk/id/local-authority/12UE,Huntingdonshire District Council,05/07/2017,05/07/2017,212792,100763678, 915.00 ,HAYS,CR423917,Property Development And Mgt,Hired Staff,100
http://statistics.data.gov.uk/id/local-authority/12UE,Huntingdonshire District Council,05/07/2017,05/07/2017,212793,1007636779, 915.00 ,HAYS,CR423917,Property Development And Mgt,Hired Staff,100
http://statistics.data.gov.uk/id/local-authority/12UE,Huntingdonshire District Council,05/07/2017,05/07/2017,212794,1007636778, 915.00 ,HAYS,CR423917,Property Development And Mgt,Hired Staff,100
http://statistics.data.gov.uk/id/local-authority/12UE,Huntingdonshire District Council,27/07/2017,31/07/2017,214392,100773976, 915.00 ,HAYS,CR423917,Property Development And Mgt,Hired Staff,100
http://statistics.data.gov.uk/id/local-authority/12UE,Huntingdonshire District Council,13/07/2017,13/07/2017,213049,275267I, 905.25 ,MEDWAY GALVANISING COMPANY LTD,CR410041,Parks & Open Spaces,Playground Equipment,360
http://statistics.data.gov.uk/id/local-authority/12UE,Huntingdonshire District Council,19/07/2017,20/07/2017,213682,SINV00111928, 800.00 ,BIST,CR422733,Scdc Recharge Invoices,Other I T Hardware,203
http://statistics.data.gov.uk/id/local-authority/12UE,Huntingdonshire District Council,19/07/2017,20/07/2017,213682,SINV00111928, 102.30 ,BIST,CR422733,Scdc Recharge Invoices,Other I T Hardware,203
http://statistics.data.gov.uk/id/local-authority/12UE,Huntingdonshire District Council,05/07/2017,05/07/2017,212336,124998, 900.00 ,IT TALENT SOLUTIONS LTD,CR482676,Imd Shared Service,Hired Staff,100
http://statistics.data.gov.uk/id/local-authority/12UE,Huntingdonshire District Council,05/07/2017,05/07/2017,212795,BC00269, 900.00 ,BARRY CORNELIUS ASSOCIATES,CR422523,Finance,Hired Staff,100
http://statistics.data.gov.uk/id/local-authority/12UE,Huntingdonshire District Council,12/07/2017,12/07/2017,213161,1033, 900.00 ,MIRAMAR ENGINEERING LTD,CR424694,St Ives Enterprise Centre,Hired Staff,100
http://statistics.data.gov.uk/id/local-authority/12UE,Huntingdonshire District Council,06/07/2017,06/07/2017,212353,63621, 897.00 ,GASWISE,CR423458,Disabled Facilities Grants,Mandatory Grants,801
http://statistics.data.gov.uk/id/local-authority/12UE,Huntingdonshire District Council,20/07/2017,20/07/2017,213059,414285, 888.50 ,SMI GROUP,CR423139,Domestic Waste Collection,Protective Clothing & Uniforms,163
http://statistics.data.gov.uk/id/local-authority/12UE,Huntingdonshire District Council,13/07/2017,13/07/2017,213267,989230, 888.38 ,MORGAN HUNT PUBLIC UK LTD,CR415693,Benefits Management,Hired Staff,100
http://statistics.data.gov.uk/id/local-authority/12UE,Huntingdonshire District Council,06/07/2017,06/07/2017,212830,399, 885.00 ,WAYNE BINGHAM,CR405796,Disabled Facilities Grants,Mandatory Grants,801
http://statistics.data.gov.uk/id/local-authority/12UE,Huntingdonshire District Council,19/07/2017,20/07/2017,213679,SINV00112082, 885.00 ,BIST,CR422733,Ccity Recharge Invoices,Other I T Hardware,203
http://statistics.data.gov.uk/id/local-authority/12UE,Huntingdonshire District Council,03/07/2017,03/07/2017,212632,986723, 876.53 ,MORGAN HUNT PUBLIC UK LTD,CR415693,Benefits Management,Hired Staff,100
http://statistics.data.gov.uk/id/local-authority/12UE,Huntingdonshire District Council,05/07/2017,05/07/2017,212815,988011, 876.53 ,MORGAN HUNT PUBLIC UK LTD,CR415693,Benefits Management,Hired Staff,100
http://statistics.data.gov.uk/id/local-authority/12UE,Huntingdonshire District Council,19/07/2017,19/07/2017,213754,990360, 876.53 ,MORGAN HUNT PUBLIC UK LTD,CR415693,Benefits Management,Hired Staff,100
http://statistics.data.gov.uk/id/local-authority/12UE,Huntingdonshire District Council,18/07/2017,18/07/2017,213597,HUN001/0018, 875.10 ,LGSS LAW,CR422022,Legal,Legal Fees,729
http://statistics.data.gov.uk/id/local-authority/12UE,Huntingdonshire District Council,03/07/2017,03/07/2017,212630,985260, 856.55 ,MORGAN HUNT PUBLIC UK LTD,CR415693,Benefits Management,Hired Staff,100
http://statistics.data.gov.uk/id/local-authority/12UE,Huntingdonshire District Council,10/07/2017,10/07/2017,213045,I02C00155840, 855.00 ,CENTRAL YMCA,CR424828,Hr & Payroll Services,Training,130
http://statistics.data.gov.uk/id/local-authority/12UE,Huntingdonshire District Council,28/07/2017,28/07/2017,214399,991494, 852.84 ,MORGAN HUNT PUBLIC UK LTD,CR415693,Benefits Management,Hired Staff,100
http://statistics.data.gov.uk/id/local-authority/12UE,Huntingdonshire District Council,24/07/2017,27/07/2017,213781,79934, 850.00 ,FIVEWAYS MUNICIPAL VEHICLE HIRE LTD,CR415496,Domestic Waste Collection,Vehicle Hire,607
http://statistics.data.gov.uk/id/local-authority/12UE,Huntingdonshire District Council,13/07/2017,13/07/2017,213271,989231, 847.08 ,MORGAN HUNT PUBLIC UK LTD,CR415693,Benefits Management,Hired Staff,100
http://statistics.data.gov.uk/id/local-authority/12UE,Huntingdonshire District Council,19/07/2017,19/07/2017,213449,82729954, 365.00 ,ARCHANT HERTS & CAMBS,CR415764,Leisure Centre Corporate Mngmt,Advertising/Promoting Services,255
http://statistics.data.gov.uk/id/local-authority/12UE,Huntingdonshire District Council,19/07/2017,19/07/2017,213449,82729954, 481.33 ,ARCHANT HERTS & CAMBS,CR415764,Burgess Hall,Advertising/Promoting Services,255
http://statistics.data.gov.uk/id/local-authority/12UE,Huntingdonshire District Council,05/07/2017,05/07/2017,212814,988012, 841.30 ,MORGAN HUNT PUBLIC UK LTD,CR415693,Benefits Management,Hired Staff,100
http://statistics.data.gov.uk/id/local-authority/12UE,Huntingdonshire District Council,19/07/2017,20/07/2017,213470,82736306, 836.80 ,ARCHANT HERTS AND CAMBS,CR403271,Domestic Waste Collection,Advertising/Promoting Services,255
http://statistics.data.gov.uk/id/local-authority/12UE,Huntingdonshire District Council,18/07/2017,18/07/2017,213600,HUN001/0025, 835.20 ,LGSS LAW,CR422022,Legal,Legal Fees,729
http://statistics.data.gov.uk/id/local-authority/12UE,Huntingdonshire District Council,05/07/2017,06/07/2017,212746,3441343, 835.00 ,INSIGHT DIRECT UK LTD,CR000242,Corporate Director (Services),Other I T Hardware,203
http://statistics.data.gov.uk/id/local-authority/12UE,Huntingdonshire District Council,06/07/2017,06/07/2017,212880,12988, 833.33 ,TESS ELECTRICAL MECHANICAL LTD,CR424815,Industrial Properties,Building Mtce,303
http://statistics.data.gov.uk/id/local-authority/12UE,Huntingdonshire District Council,28/07/2017,28/07/2017,214398,991495, 829.52 ,MORGAN HUNT PUBLIC UK LTD,CR415693,Benefits Management,Hired Staff,100
http://statistics.data.gov.uk/id/local-authority/12UE,Huntingdonshire District Council,06/07/2017,06/07/2017,212636,RC-HDC013, 825.00 ,RENT CONNECT,CR424138,Homelessness,Bed & Breakfast Payment,818
http://statistics.data.gov.uk/id/local-authority/12UE,Huntingdonshire District Council,05/07/2017,05/07/2017,212721,125377, 825.00 ,IT TALENT SOLUTIONS LTD,CR482676,Imd Shared Service,Hired Staff,100
http://statistics.data.gov.uk/id/local-authority/12UE,Huntingdonshire District Council,12/07/2017,20/07/2017,213257,125458, 825.00 ,IT TALENT SOLUTIONS LTD,CR482676,Imd Shared Service,Hired Staff,100
http://statistics.data.gov.uk/id/local-authority/12UE,Huntingdonshire District Council,25/07/2017,25/07/2017,214019,388, 822.00 ,WAYNE BINGHAM,CR405796,Disabled Facilities Grants,Mandatory Grants,801
http://statistics.data.gov.uk/id/local-authority/12UE,Huntingdonshire District Council,26/07/2017,27/07/2017,214144,SINV00112307, 11.55 ,BIST,CR422733,Imd Shared Service,Other I T Hardware,203
http://statistics.data.gov.uk/id/local-authority/12UE,Huntingdonshire District Council,26/07/2017,27/07/2017,214144,SINV00112307, 800.00 ,BIST,CR422733,Imd Shared Service,Other I T Hardware,203
http://statistics.data.gov.uk/id/local-authority/12UE,Huntingdonshire District Council,06/07/2017,06/07/2017,212652,60229063, 809.39 ,AEBI SCHMIDT,CR025706,Street Cleansing,Vehicle Parts & Fittings,625
http://statistics.data.gov.uk/id/local-authority/12UE,Huntingdonshire District Council,05/07/2017,06/07/2017,212741,SINV00110991, 800.00 ,BIST,CR422733,Hdc Recharge Invoices,Other I T Hardware,203
http://statistics.data.gov.uk/id/local-authority/12UE,Huntingdonshire District Council,05/07/2017,06/07/2017,212742,SINV00111288, 800.00 ,BIST,CR422733,Hdc Recharge Invoices,Other I T Hardware,203
http://statistics.data.gov.uk/id/local-authority/12UE,Huntingdonshire District Council,10/07/2017,10/07/2017,213030,S170055, 800.00 ,ENERGY MANAGERS ASSOCIATION,CR424775,Hr & Payroll Services,Training,130
http://statistics.data.gov.uk/id/local-authority/12UE,Huntingdonshire District Council,12/07/2017,20/07/2017,213245,SINV00111203, 800.00 ,BIST,CR422733,Ccity Recharge Invoices,Other I T Hardware,203
http://statistics.data.gov.uk/id/local-authority/12UE,Huntingdonshire District Council,26/07/2017,26/07/2017,214036,8349, 800.00 ,STARLITE ROADSHOW,CR024127,Burgess Hall,Entertainments Inc Cable Tv,744
http://statistics.data.gov.uk/id/local-authority/12UE,Huntingdonshire District Council,03/07/2017,03/07/2017,212631,985259, 793.62 ,MORGAN HUNT PUBLIC UK LTD,CR415693,Benefits Management,Hired Staff,100
http://statistics.data.gov.uk/id/local-authority/12UE,Huntingdonshire District Council,26/07/2017,26/07/2017,213613,38SI 3851262, 791.41 ,BRENNTAG UK LTD,CR015017,Swimming,Chemicals,551
http://statistics.data.gov.uk/id/local-authority/12UE,Huntingdonshire District Council,06/07/2017,06/07/2017,212827,2.5E+13, 788.40 ,HMRC - VALUATION OFFICE AGENCY,CR422786,Viability Assessments,Subcontractors,777
http://statistics.data.gov.uk/id/local-authority/12UE,Huntingdonshire District Council,19/07/2017,20/07/2017,213696,M/BR044955, 780.00 ,CIVICA UK LTD,CR415826,Scdc Recharge Invoices,Other I T Hardware,203
http://statistics.data.gov.uk/id/local-authority/12UE,Huntingdonshire District Council,26/07/2017,26/07/2017,214103,101695, 774.95 ,SPORTMAX,CR424813,Site & Centre Management,Materials For Resale,570
http://statistics.data.gov.uk/id/local-authority/12UE,Huntingdonshire District Council,11/07/2017,17/07/2017,213530,41082, 768.00 ,CLANPRESS KING'S LYNN LTD,CR413516,Car Parks Operational Mgt,Materials,550
http://statistics.data.gov.uk/id/local-authority/12UE,Huntingdonshire District Council,19/07/2017,19/07/2017,213621,2103763137, 8.96 ,BOOKER CASH AND CARRY,CR027611,Burgess Bar,Materials,550
http://statistics.data.gov.uk/id/local-authority/12UE,Huntingdonshire District Council,19/07/2017,19/07/2017,213621,2103763137, 488.01 ,BOOKER CASH AND CARRY,CR027611,Burgess Bar,Bar Provisions,558
http://statistics.data.gov.uk/id/local-authority/12UE,Huntingdonshire District Council,19/07/2017,19/07/2017,213621,2103763137, 205.75 ,BOOKER CASH AND CARRY,CR027611,Burgess Bar,Catering Materials,559
http://statistics.data.gov.uk/id/local-authority/12UE,Huntingdonshire District Council,19/07/2017,19/07/2017,213621,2103763137, 60.00 ,BOOKER CASH AND CARRY,CR027611,Burgess Bar,Confectionery,572
http://statistics.data.gov.uk/id/local-authority/12UE,Huntingdonshire District Council,13/07/2017,13/07/2017,213023,604, 760.00 ,B P MORSE,CR030128,Disabled Facilities Grants,Mandatory Grants,801
http://statistics.data.gov.uk/id/local-authority/12UE,Huntingdonshire District Council,05/07/2017,06/07/2017,212869,61520494, 755.08 ,JOHNSTON ENGINEERING LTD,CR029831,Street Cleansing,Vehicle Parts & Fittings,625
http://statistics.data.gov.uk/id/local-authority/12UE,Huntingdonshire District Council,20/07/2017,20/07/2017,213705,Apr-17, 750.00 ,THE STATION HOTEL,CR453752,Homelessness,Bed & Breakfast Payment,818
http://statistics.data.gov.uk/id/local-authority/12UE,Huntingdonshire District Council,26/07/2017,27/07/2017,214108,LA445183, 750.00 ,L A INTERNATIONAL COMPUTER CONSULTANTS LTD,CR424731,Imd Shared Service,Hired Staff,100
http://statistics.data.gov.uk/id/local-authority/12UE,Huntingdonshire District Council,12/07/2017,12/07/2017,213167,12489088700, 740.02 ,E-ON ENERGY,CR416430,Site & Centre Management,Gas,421
http://statistics.data.gov.uk/id/local-authority/12UE,Huntingdonshire District Council,12/07/2017,20/07/2017,213261,R022051, 740.00 ,PREMIER IT RECRUITMENT LTD,CR454029,Imd Shared Service,Hired Staff,100
http://statistics.data.gov.uk/id/local-authority/12UE,Huntingdonshire District Council,26/07/2017,27/07/2017,214129,R022278, 740.00 ,PREMIER IT RECRUITMENT LTD,CR454029,Imd Shared Service,Hired Staff,100
http://statistics.data.gov.uk/id/local-authority/12UE,Huntingdonshire District Council,26/07/2017,26/07/2017,214021,21519, 739.22 ,BH DOORS & ENGINEERING LTD,CR455707,Sawtry L C - Gen Improve (Cs),Building Mtce,303
http://statistics.data.gov.uk/id/local-authority/12UE,Huntingdonshire District Council,05/07/2017,06/07/2017,212754,82782, 738.00 ,UNINTERRUPTIBLE POWER SUPPLIES LTD,CR424763,Hdc Recharge Invoices,Equipment Maintenance,511
http://statistics.data.gov.uk/id/local-authority/12UE,Huntingdonshire District Council,19/07/2017,19/07/2017,213660,1704/49751, 730.00 ,GULLIVERS TRUCK HIRE LTD,CR477663,Domestic Waste Collection,Vehicle Hire,607
http://statistics.data.gov.uk/id/local-authority/12UE,Huntingdonshire District Council,19/07/2017,19/07/2017,213743,17767, 730.00 ,BIGPRINTING,CR416383,Leisure Centre Corporate Mngmt,Advertising/Promoting Services,255
http://statistics.data.gov.uk/id/local-authority/12UE,Huntingdonshire District Council,10/07/2017,10/07/2017,213035,T002198, 720.00 ,ZEBRA TRAINING SERVICES,CR411687,Hr & Payroll Services,Training,130
http://statistics.data.gov.uk/id/local-authority/12UE,Huntingdonshire District Council,24/07/2017,24/07/2017,214001,592/2017, 720.00 ,FRONTLINE CONSULTING ASSOCIATES,CR422858,Hr & Payroll Services,Training,130
http://statistics.data.gov.uk/id/local-authority/12UE,Huntingdonshire District Council,12/07/2017,20/07/2017,213211,3395894, 716.52 ,INSIGHT DIRECT UK LTD,CR000242,Ccity Recharge Invoices,Telephone &Mobile Phonecharges,240
http://statistics.data.gov.uk/id/local-authority/12UE,Huntingdonshire District Council,27/07/2017,27/07/2017,214199,1007762875, 715.00 ,HAYS,CR423917,Transformation Programme,Hired Staff,100
http://statistics.data.gov.uk/id/local-authority/12UE,Huntingdonshire District Council,12/07/2017,12/07/2017,213171,12489090790, 705.64 ,E-ON ENERGY,CR416430,Site & Centre Management,Gas,421
http://statistics.data.gov.uk/id/local-authority/12UE,Huntingdonshire District Council,13/07/2017,13/07/2017,613336,9228, 700.90 ,STEVES TAXIS & PRIVATE HIRE,CR155956,Homelessness,Travel Expenses,636
http://statistics.data.gov.uk/id/local-authority/12UE,Huntingdonshire District Council,06/07/2017,06/07/2017,212635,EC1706, 350.00 ,UKOS PROJECTS LTD,CR423164,Homelessness,Bed & Breakfast Payment,818
http://statistics.data.gov.uk/id/local-authority/12UE,Huntingdonshire District Council,06/07/2017,06/07/2017,212635,EC1706, 350.00 ,UKOS PROJECTS LTD,CR423164,Homelessness,Bed & Breakfast Payment,818
http://statistics.data.gov.uk/id/local-authority/12UE,Huntingdonshire District Council,13/07/2017,13/07/2017,213072,EC1707, 350.00 ,UKOS PROJECTS LTD,CR423164,Homelessness,Bed & Breakfast Payment,818
http://statistics.data.gov.uk/id/local-authority/12UE,Huntingdonshire District Council,13/07/2017,13/07/2017,213072,EC1707, 350.00 ,UKOS PROJECTS LTD,CR423164,Homelessness,Bed & Breakfast Payment,818
http://statistics.data.gov.uk/id/local-authority/12UE,Huntingdonshire District Council,20/07/2017,20/07/2017,213582,EC1708, 350.00 ,UKOS PROJECTS LTD,CR423164,Homelessness,Bed & Breakfast Payment,818
http://statistics.data.gov.uk/id/local-authority/12UE,Huntingdonshire District Council,20/07/2017,20/07/2017,213582,EC1708, 350.00 ,UKOS PROJECTS LTD,CR423164,Homelessness,Bed & Breakfast Payment,818
http://statistics.data.gov.uk/id/local-authority/12UE,Huntingdonshire District Council,26/07/2017,27/07/2017,214113,EC1709, 350.00 ,UKOS PROJECTS LTD,CR423164,Homelessness,Bed & Breakfast Payment,818
http://statistics.data.gov.uk/id/local-authority/12UE,Huntingdonshire District Council,26/07/2017,27/07/2017,214113,EC1709, 350.00 ,UKOS PROJECTS LTD,CR423164,Homelessness,Bed & Breakfast Payment,818
http://statistics.data.gov.uk/id/local-authority/12UE,Huntingdonshire District Council,26/07/2017,26/07/2017,214154,10020, 700.00 ,ROOF SAFETY SOLUTIONS LTD,CR478995,Site & Centre Management,Building Mtce,303
http://statistics.data.gov.uk/id/local-authority/12UE,Huntingdonshire District Council,12/07/2017,12/07/2017,213198,82739953, 699.99 ,ARCHANT COMMUNITY MEDIA LTD,CR452143,Planning Policy,Recruitment Costs,120
http://statistics.data.gov.uk/id/local-authority/12UE,Huntingdonshire District Council,20/07/2017,20/07/2017,212714,10830198, 697.50 ,SHB HIRE LTD,CR416566,Domestic Waste Collection,Vehicle Hire,607
http://statistics.data.gov.uk/id/local-authority/12UE,Huntingdonshire District Council,10/07/2017,10/07/2017,213043,M2485I, 695.00 ,COLLEGE OF PUBLIC SPEAKING,CR424829,Hr & Payroll Services,Training,130
http://statistics.data.gov.uk/id/local-authority/12UE,Huntingdonshire District Council,12/07/2017,13/07/2017,213091,4499331, 695.00 ,ESPO,CR006566,Site & Centre Management,Equipment,500
http://statistics.data.gov.uk/id/local-authority/12UE,Huntingdonshire District Council,26/07/2017,26/07/2017,214059,348153, 6.50 ,SOUTH LINCS FOOD SERVICE,CR033415,Hospitality,Materials,550
http://statistics.data.gov.uk/id/local-authority/12UE,Huntingdonshire District Council,26/07/2017,26/07/2017,214059,348153, 677.20 ,SOUTH LINCS FOOD SERVICE,CR033415,Hospitality,Catering Materials,559
http://statistics.data.gov.uk/id/local-authority/12UE,Huntingdonshire District Council,26/07/2017,26/07/2017,214059,348153, 9.76 ,SOUTH LINCS FOOD SERVICE,CR033415,Hospitality,Confectionery,572
http://statistics.data.gov.uk/id/local-authority/12UE,Huntingdonshire District Council,05/07/2017,06/07/2017,212316,108571/112435, 692.91 ,GALTEC SOLUTIONS LTD,CR423396,Financial Mgt System Replacmnt,Other I T Hardware,203
http://statistics.data.gov.uk/id/local-authority/12UE,Huntingdonshire District Council,18/07/2017,18/07/2017,213596,HUN001/0017, 690.00 ,LGSS LAW,CR422022,Legal,Legal Fees,729
http://statistics.data.gov.uk/id/local-authority/12UE,Huntingdonshire District Council,19/07/2017,20/07/2017,213716,R022193, 690.00 ,PREMIER IT RECRUITMENT LTD,CR454029,Imd Shared Service,Hired Staff,100
http://statistics.data.gov.uk/id/local-authority/12UE,Huntingdonshire District Council,20/07/2017,20/07/2017,212717,10830200, 685.90 ,SHB HIRE LTD,CR416566,Grounds Maintenance,Vehicle Hire,607
http://statistics.data.gov.uk/id/local-authority/12UE,Huntingdonshire District Council,13/07/2017,13/07/2017,212774,4254, 685.00 ,UNIVERSAL SAFETY SYSTEMS LTD,CR478208,Eastfield House,Plant & Equipment Maintenance,380
http://statistics.data.gov.uk/id/local-authority/12UE,Huntingdonshire District Council,19/07/2017,20/07/2017,213504,21936, 684.00 ,BEDFORD COLLEGE,CR005649,Arboricultural Team,Training,130
http://statistics.data.gov.uk/id/local-authority/12UE,Huntingdonshire District Council,04/07/2017,04/07/2017,212634,986724, 679.37 ,MORGAN HUNT PUBLIC UK LTD,CR415693,Benefits Management,Hired Staff,100
http://statistics.data.gov.uk/id/local-authority/12UE,Huntingdonshire District Council,27/07/2017,27/07/2017,214046,6611, 675.00 ,CAMBRIDGE FLAT ROOFING,CR479717,Pathfinder House,Building Mtce,303
http://statistics.data.gov.uk/id/local-authority/12UE,Huntingdonshire District Council,03/07/2017,06/07/2017,212622,900783473, 672.54 ,PORTAKABIN LTD,CR478566,Voluntary Sector Grants,Hire Of Rooms,411
http://statistics.data.gov.uk/id/local-authority/12UE,Huntingdonshire District Council,05/07/2017,06/07/2017,212705,9813, 165.00 ,ROGER WILSON ELECTRONICS,CR028041,Site & Centre Management,Building Mtce,303
http://statistics.data.gov.uk/id/local-authority/12UE,Huntingdonshire District Council,05/07/2017,06/07/2017,212705,9813, 35.00 ,ROGER WILSON ELECTRONICS,CR028041,Burgess Hall,Building Mtce,303
http://statistics.data.gov.uk/id/local-authority/12UE,Huntingdonshire District Council,05/07/2017,06/07/2017,212705,9813, 471.97 ,ROGER WILSON ELECTRONICS,CR028041,Site & Centre Management,Building Mtce,303
http://statistics.data.gov.uk/id/local-authority/12UE,Huntingdonshire District Council,19/07/2017,19/07/2017,213755,990361, 669.90 ,MORGAN HUNT PUBLIC UK LTD,CR415693,Benefits Management,Hired Staff,100
http://statistics.data.gov.uk/id/local-authority/12UE,Huntingdonshire District Council,19/07/2017,19/07/2017,213661,HDC068, 660.00 ,CFL ESTATE SERVICES,CR455208,Property Development And Mgt,Hired Staff,100
http://statistics.data.gov.uk/id/local-authority/12UE,Huntingdonshire District Council,26/07/2017,27/07/2017,613686,2017/18 - 18, 660.00 ,OFFORD VILLAGE HALL,CR406073,Voluntary Sector Grants,Grants (Paid Out),800
http://statistics.data.gov.uk/id/local-authority/12UE,Huntingdonshire District Council,18/07/2017,18/07/2017,213591,941403268, 657.75 ,SWALEC,CR407130,Paxton Pits,Electricity,420
http://statistics.data.gov.uk/id/local-authority/12UE,Huntingdonshire District Council,05/07/2017,06/07/2017,212701,6101757158, 656.44 ,LYRECO UK LTD,CR400700,Site & Centre Management,Cleaning Materials,443
http://statistics.data.gov.uk/id/local-authority/12UE,Huntingdonshire District Council,04/07/2017,06/07/2017,212879,72387, 650.00 ,BRITANNIA FIRE & SECURITY LTD,CR410090,Huntingdon Multi-Storey,Building Mtce,303
http://statistics.data.gov.uk/id/local-authority/12UE,Huntingdonshire District Council,19/07/2017,19/07/2017,213316,2103724773, 209.85 ,BOOKER CASH AND CARRY,CR027611,Burgess Bar,Materials,550
http://statistics.data.gov.uk/id/local-authority/12UE,Huntingdonshire District Council,19/07/2017,19/07/2017,213316,2103724773, 312.61 ,BOOKER CASH AND CARRY,CR027611,Burgess Bar,Bar Provisions,558
http://statistics.data.gov.uk/id/local-authority/12UE,Huntingdonshire District Council,19/07/2017,19/07/2017,213316,2103724773, 75.79 ,BOOKER CASH AND CARRY,CR027611,Burgess Bar,Catering Materials,559
http://statistics.data.gov.uk/id/local-authority/12UE,Huntingdonshire District Council,19/07/2017,19/07/2017,213316,2103724773, 50.35 ,BOOKER CASH AND CARRY,CR027611,Burgess Bar,Confectionery,572
http://statistics.data.gov.uk/id/local-authority/12UE,Huntingdonshire District Council,03/07/2017,17/07/2017,213527,9834, 648.00 ,ALPHAPRINT (COLCHESTER) LTD,CR422706,Domestic Waste Collection,Materials,550
http://statistics.data.gov.uk/id/local-authority/12UE,Huntingdonshire District Council,20/07/2017,20/07/2017,212716,10830199, 642.84 ,SHB HIRE LTD,CR416566,Grounds Maintenance,Vehicle Hire,607
http://statistics.data.gov.uk/id/local-authority/12UE,Huntingdonshire District Council,20/07/2017,20/07/2017,212719,10830202, 642.84 ,SHB HIRE LTD,CR416566,Grounds Maintenance,Vehicle Hire,607
http://statistics.data.gov.uk/id/local-authority/12UE,Huntingdonshire District Council,12/07/2017,13/07/2017,213112,3977, 637.78 ,ENDERSBY AWARDS,CR413209,Burgess Hall,Equipment,500
http://statistics.data.gov.uk/id/local-authority/12UE,Huntingdonshire District Council,19/07/2017,20/07/2017,213276,12709, 634.00 ,INNOVATIONS VISUAL COMMUNICATION SYSTEMS LTD,CR422257,Hdc Recharge Invoices,Building Mtce,303
http://statistics.data.gov.uk/id/local-authority/12UE,Huntingdonshire District Council,05/07/2017,06/07/2017,212312,4/27060, 630.00 ,D H M TRUCK & TACHOGRAPH CENTR,CR032254,Street Cleansing,Vehicle Parts & Fittings,625
http://statistics.data.gov.uk/id/local-authority/12UE,Huntingdonshire District Council,07/07/2017,07/07/2017,212281,371226896, 616.09 ,SWALEC,CR407130,St Ives Cattle Market (Hw),Electricity,420
http://statistics.data.gov.uk/id/local-authority/12UE,Huntingdonshire District Council,04/07/2017,06/07/2017,212196,PAX001, 615.80 ,NATURESPY,CR424802,Paxton Pits,Equipment,500
http://statistics.data.gov.uk/id/local-authority/12UE,Huntingdonshire District Council,26/07/2017,26/07/2017,213752,INV091415, 68.11 ,SLUSH PUPPIE LTD,CR455958,Hospitality,Materials,550
http://statistics.data.gov.uk/id/local-authority/12UE,Huntingdonshire District Council,26/07/2017,26/07/2017,213752,INV091415, 546.48 ,SLUSH PUPPIE LTD,CR455958,Hospitality,Catering Materials,559
http://statistics.data.gov.uk/id/local-authority/12UE,Huntingdonshire District Council,25/07/2017,25/07/2017,213730,INV576913, 425.00 ,CHARTERED INSTITUTE OF ENVIRONMENTAL HEALTH,CR002987,Food Safety General,Equipment,500
http://statistics.data.gov.uk/id/local-authority/12UE,Huntingdonshire District Council,25/07/2017,25/07/2017,213730,INV576913, 180.00 ,CHARTERED INSTITUTE OF ENVIRONMENTAL HEALTH,CR002987,Food Safety General,Books & Publications,250
http://statistics.data.gov.uk/id/local-authority/12UE,Huntingdonshire District Council,25/07/2017,25/07/2017,213730,INV576913, 5.25 ,CHARTERED INSTITUTE OF ENVIRONMENTAL HEALTH,CR002987,Food Safety General,Books & Publications,250
http://statistics.data.gov.uk/id/local-authority/12UE,Huntingdonshire District Council,19/07/2017,20/07/2017,213741,562669, 609.73 ,ECOCLEEN SERVICES LIMITED,CR406985,Godmanchester Pc,Building Cleaning,440
http://statistics.data.gov.uk/id/local-authority/12UE,Huntingdonshire District Council,20/07/2017,20/07/2017,213774,561012, 609.73 ,ECOCLEEN SERVICES LIMITED,CR406985,Bus Station Pc - Huntingdon,Building Cleaning,440
http://statistics.data.gov.uk/id/local-authority/12UE,Huntingdonshire District Council,24/07/2017,27/07/2017,214111,2014743, 605.42 ,BCW OFFICE PRODUCTS LTD,CR480889,St Ives Bank Holiday Market,Signs,565
http://statistics.data.gov.uk/id/local-authority/12UE,Huntingdonshire District Council,05/07/2017,05/07/2017,212728,R021858, 600.00 ,PREMIER IT RECRUITMENT LTD,CR454029,Imd Shared Service,Hired Staff,100
http://statistics.data.gov.uk/id/local-authority/12UE,Huntingdonshire District Council,19/07/2017,20/07/2017,213709,125510, 600.00 ,IT TALENT SOLUTIONS LTD,CR482676,Imd Shared Service,Hired Staff,100
http://statistics.data.gov.uk/id/local-authority/12UE,Huntingdonshire District Council,26/07/2017,26/07/2017,213960,503173, 300.00 ,KIDSCIENCE LTD,CR452703,Indoor Sports,Instructors/Tutors,720
http://statistics.data.gov.uk/id/local-authority/12UE,Huntingdonshire District Council,26/07/2017,26/07/2017,213960,503173, 300.00 ,KIDSCIENCE LTD,CR452703,Indoor Sports,Instructors/Tutors,720
http://statistics.data.gov.uk/id/local-authority/12UE,Huntingdonshire District Council,25/07/2017,26/07/2017,214031,159323, 600.00 ,CAMBRIDGESHIRE CHAMBERS OF COMMERCE,CR424609,Business & Enterprise Support,Corporate Subscriptions,754
http://statistics.data.gov.uk/id/local-authority/12UE,Huntingdonshire District Council,26/07/2017,27/07/2017,214121,125570, 600.00 ,IT TALENT SOLUTIONS LTD,CR482676,Imd Shared Service,Hired Staff,100
http://statistics.data.gov.uk/id/local-authority/12UE,Huntingdonshire District Council,10/07/2017,10/07/2017,213032,IOSINV013064, 598.00 ,INSTITUTE OF SWIMMING LTD,CR455603,Hr & Payroll Services,Training,130
http://statistics.data.gov.uk/id/local-authority/12UE,Huntingdonshire District Council,20/07/2017,20/07/2017,213123,913977, 15.92 ,KING BROS,CR411339,Hinchingbrooke Park Cafe,Cleaning Materials,443
http://statistics.data.gov.uk/id/local-authority/12UE,Huntingdonshire District Council,20/07/2017,20/07/2017,213123,913977, 581.76 ,KING BROS,CR411339,Hinchingbrooke Park Cafe,Catering Materials,559
http://statistics.data.gov.uk/id/local-authority/12UE,Huntingdonshire District Council,18/07/2017,18/07/2017,213588,HUN001/0008, 595.20 ,LGSS LAW,CR422022,Legal,Legal Fees,729
http://statistics.data.gov.uk/id/local-authority/12UE,Huntingdonshire District Council,19/07/2017,20/07/2017,213721,43210, 595.00 ,SDI,CR406453,Hdc Recharge Invoices,Registration Fee,748
http://statistics.data.gov.uk/id/local-authority/12UE,Huntingdonshire District Council,12/07/2017,20/07/2017,213259,R021998, 590.00 ,PREMIER IT RECRUITMENT LTD,CR454029,Imd Shared Service,Hired Staff,100
http://statistics.data.gov.uk/id/local-authority/12UE,Huntingdonshire District Council,26/07/2017,26/07/2017,214039,673798, 572.62 ,LACONS,CR422174,Hospitality,Bar Provisions,558
http://statistics.data.gov.uk/id/local-authority/12UE,Huntingdonshire District Council,26/07/2017,26/07/2017,214039,673798, 16.00 ,LACONS,CR422174,Hospitality,Gas Cylinders (Incl. Bars),567
http://statistics.data.gov.uk/id/local-authority/12UE,Huntingdonshire District Council,07/07/2017,07/07/2017,213021,35256, 586.96 ,MEYER SCOTT RECRUITMENT LIMITED,CR422369,Customer Service Centres,Hired Staff,100
http://statistics.data.gov.uk/id/local-authority/12UE,Huntingdonshire District Council,12/07/2017,13/07/2017,211581,60228481, 202.93 ,AEBI SCHMIDT,CR025706,Street Cleansing,Vehicle Parts & Fittings,625
http://statistics.data.gov.uk/id/local-authority/12UE,Huntingdonshire District Council,12/07/2017,13/07/2017,211581,60228481, 202.93 ,AEBI SCHMIDT,CR025706,Street Cleansing,Vehicle Parts & Fittings,625
http://statistics.data.gov.uk/id/local-authority/12UE,Huntingdonshire District Council,12/07/2017,13/07/2017,211581,60228481, 173.94 ,AEBI SCHMIDT,CR025706,Street Cleansing,Vehicle Parts & Fittings,625
http://statistics.data.gov.uk/id/local-authority/12UE,Huntingdonshire District Council,12/07/2017,13/07/2017,213087,9823, 9.83 ,ROGER WILSON ELECTRONICS,CR028041,Burgess Hall,Equipment,500
http://statistics.data.gov.uk/id/local-authority/12UE,Huntingdonshire District Council,12/07/2017,13/07/2017,213087,9823, 159.60 ,ROGER WILSON ELECTRONICS,CR028041,Burgess Hall,Materials,550
http://statistics.data.gov.uk/id/local-authority/12UE,Huntingdonshire District Council,12/07/2017,13/07/2017,213087,9823, 410.00 ,ROGER WILSON ELECTRONICS,CR028041,Site & Centre Management,Building Mtce,303
http://statistics.data.gov.uk/id/local-authority/12UE,Huntingdonshire District Council,27/07/2017,27/07/2017,214162,2017/057, 579.20 ,PRIMESIGHT  LTD,CR132710,Bus Shelters,Building Cleaning,440
http://statistics.data.gov.uk/id/local-authority/12UE,Huntingdonshire District Council,07/07/2017,07/07/2017,213025,714865, 72.00 ,CALLCREDIT LTD,CR455548,Finance,Enquiries,723
http://statistics.data.gov.uk/id/local-authority/12UE,Huntingdonshire District Council,07/07/2017,07/07/2017,213025,714865, 28.00 ,CALLCREDIT LTD,CR455548,Housing Needs & Resources,Enquiries,723
http://statistics.data.gov.uk/id/local-authority/12UE,Huntingdonshire District Council,07/07/2017,07/07/2017,213025,714865, 167.00 ,CALLCREDIT LTD,CR455548,Benefits Management,Enquiries,723
http://statistics.data.gov.uk/id/local-authority/12UE,Huntingdonshire District Council,07/07/2017,07/07/2017,213025,714865, 311.00 ,CALLCREDIT LTD,CR455548,Closedcounciltax Mgmt-Use Hb85,Enquiries,723
http://statistics.data.gov.uk/id/local-authority/12UE,Huntingdonshire District Council,20/07/2017,20/07/2017,213127,19522, 576.58 ,PILGRIM FOODSERVICE LTD,CR455695,Hinchingbrooke Park Cafe,Catering Materials,559
http://statistics.data.gov.uk/id/local-authority/12UE,Huntingdonshire District Council,10/07/2017,10/07/2017,613318,PERSONAL DATA REDACTED, 575.00 ,PERSONAL DATA REDACTED,CR088558,Rent Deposit- Advanced Rent,Cash Advance,6
http://statistics.data.gov.uk/id/local-authority/12UE,Huntingdonshire District Council,12/07/2017,12/07/2017,213210,279220, 574.00 ,WALKER FIRE UK LTD,CR455756,Huntingdon Multi-Storey,Plant & Equipment Maintenance,380
http://statistics.data.gov.uk/id/local-authority/12UE,Huntingdonshire District Council,11/07/2017,11/07/2017,213114,8783147, 163.20 ,PREMIER PAPER GROUP LTD,CR424769,Printing,Paper,562
http://statistics.data.gov.uk/id/local-authority/12UE,Huntingdonshire District Council,11/07/2017,11/07/2017,213114,8783147, 408.00 ,PREMIER PAPER GROUP LTD,CR424769,Printing,Paper,562
http://statistics.data.gov.uk/id/local-authority/12UE,Huntingdonshire District Council,18/07/2017,18/07/2017,213586,HUN001/0006, 570.00 ,LGSS LAW,CR422022,Legal,Legal Fees,729
http://statistics.data.gov.uk/id/local-authority/12UE,Huntingdonshire District Council,06/07/2017,06/07/2017,212221,38078, 569.48 ,TRINITY ENGINEERING & COMPONENT SUPPLIES LTD,CR455479,Vehicle Maintenance,Materials,550
http://statistics.data.gov.uk/id/local-authority/12UE,Huntingdonshire District Council,07/07/2017,07/07/2017,212280,121573804, 568.05 ,SWALEC,CR407130,Parks & Open Spaces,Electricity,420
http://statistics.data.gov.uk/id/local-authority/12UE,Huntingdonshire District Council,04/07/2017,04/07/2017,212637,PERSONAL DATA REDACTED, 560.00 ,LUMINUS HOMES,CR401276,Homelessness,Incentive Payment,816
http://statistics.data.gov.uk/id/local-authority/12UE,Huntingdonshire District Council,06/07/2017,06/07/2017,212373,531431, 552.00 ,BSG PROPERTY SERVICES LTD,CR089905,Disabled Facilities Grants,Mandatory Grants,801
http://statistics.data.gov.uk/id/local-authority/12UE,Huntingdonshire District Council,19/07/2017,19/07/2017,212781,409, 550.00 ,E J ENVIRONMENTAL DESIGN LTD,CR424005,Ol Hdon Changing Facilities,Building Mtce,303
http://statistics.data.gov.uk/id/local-authority/12UE,Huntingdonshire District Council,19/07/2017,20/07/2017,213701,125487, 550.00 ,IT TALENT SOLUTIONS LTD,CR482676,Imd Shared Service,Hired Staff,100
http://statistics.data.gov.uk/id/local-authority/12UE,Huntingdonshire District Council,07/07/2017,07/07/2017,613306,, 548.25 ,GODMANCHESTER PARISH COUNCIL,CR004360,Recycling Collections,Recycling Credits,A53
http://statistics.data.gov.uk/id/local-authority/12UE,Huntingdonshire District Council,04/07/2017,06/07/2017,212307,27830, 545.65 ,M & N VEHICLE SERVICES,CR480661,Domestic Waste Collection,Vehicle Parts & Fittings,625
http://statistics.data.gov.uk/id/local-authority/12UE,Huntingdonshire District Council,05/07/2017,05/07/2017,212308,72388, 541.00 ,BRITANNIA FIRE & SECURITY LTD,CR410090,Eastfield House,Building Mtce,303
http://statistics.data.gov.uk/id/local-authority/12UE,Huntingdonshire District Council,05/07/2017,06/07/2017,212808,1066, 540.00 ,ALPHA PARKING,CR422725,Car Parks Operational Mgt,Subcontractors,777
http://statistics.data.gov.uk/id/local-authority/12UE,Huntingdonshire District Council,06/07/2017,06/07/2017,212821,PERSONAL DATA REDACTED, 540.00 ,ALEXANDERS,CR415843,Homelessness,Removal/Storage,750
http://statistics.data.gov.uk/id/local-authority/12UE,Huntingdonshire District Council,11/07/2017,11/07/2017,213118,4449, 278.52 ,NEWLYN PLC,CR409114,Closedcounciltax Mgmt-Use Hb85,Bailiffs,703
http://statistics.data.gov.uk/id/local-authority/12UE,Huntingdonshire District Council,11/07/2017,11/07/2017,213118,4449, 255.68 ,NEWLYN PLC,CR409114,Closedcounciltax Mgmt-Use Hb85,Bailiffs,703
http://statistics.data.gov.uk/id/local-authority/12UE,Huntingdonshire District Council,05/07/2017,06/07/2017,212663,7080629593, 534.07 ,HONEYWELL NOVAR SYSTEMS,CR406826,Site & Centre Management,Fire & Security,450
http://statistics.data.gov.uk/id/local-authority/12UE,Huntingdonshire District Council,12/07/2017,13/07/2017,212703,6101757166, 532.48 ,LYRECO UK LTD,CR400700,Site & Centre Management,Cleaning Materials,443
http://statistics.data.gov.uk/id/local-authority/12UE,Huntingdonshire District Council,19/07/2017,20/07/2017,212760,17573, 17.50 ,ENVIROCURE LTD,CR424614,Eastfield House,Building Mtce,303
http://statistics.data.gov.uk/id/local-authority/12UE,Huntingdonshire District Council,19/07/2017,20/07/2017,212760,17573, 35.00 ,ENVIROCURE LTD,CR424614,Site & Centre Management,Building Mtce,303
http://statistics.data.gov.uk/id/local-authority/12UE,Huntingdonshire District Council,19/07/2017,20/07/2017,212760,17573, 52.50 ,ENVIROCURE LTD,CR424614,Site & Centre Management,Building Mtce,303
http://statistics.data.gov.uk/id/local-authority/12UE,Huntingdonshire District Council,19/07/2017,20/07/2017,212760,17573, 35.00 ,ENVIROCURE LTD,CR424614,Site & Centre Management,Building Mtce,303
http://statistics.data.gov.uk/id/local-authority/12UE,Huntingdonshire District Council,19/07/2017,20/07/2017,212760,17573, 35.00 ,ENVIROCURE LTD,CR424614,Site & Centre Management,Building Mtce,303
http://statistics.data.gov.uk/id/local-authority/12UE,Huntingdonshire District Council,19/07/2017,20/07/2017,212760,17573, 35.00 ,ENVIROCURE LTD,CR424614,Site & Centre Management,Building Mtce,303
http://statistics.data.gov.uk/id/local-authority/12UE,Huntingdonshire District Council,19/07/2017,20/07/2017,212760,17573, 35.00 ,ENVIROCURE LTD,CR424614,Site & Centre Management,Building Mtce,303
http://statistics.data.gov.uk/id/local-authority/12UE,Huntingdonshire District Council,19/07/2017,20/07/2017,212760,17573, 9.00 ,ENVIROCURE LTD,CR424614,Site & Centre Management,Building Mtce,303
http://statistics.data.gov.uk/id/local-authority/12UE,Huntingdonshire District Council,19/07/2017,20/07/2017,212760,17573, 17.50 ,ENVIROCURE LTD,CR424614,Hinchingbrooke Park Cafe,Building Mtce,303
http://statistics.data.gov.uk/id/local-authority/12UE,Huntingdonshire District Council,19/07/2017,20/07/2017,212760,17573, 35.00 ,ENVIROCURE LTD,CR424614,Paxton Pits,Building Mtce,303
http://statistics.data.gov.uk/id/local-authority/12UE,Huntingdonshire District Council,19/07/2017,20/07/2017,212760,17573, 9.00 ,ENVIROCURE LTD,CR424614,Parks & Open Spaces,Building Mtce,303
http://statistics.data.gov.uk/id/local-authority/12UE,Huntingdonshire District Council,19/07/2017,20/07/2017,212760,17573, 17.50 ,ENVIROCURE LTD,CR424614,Parks & Open Spaces,Building Mtce,303
http://statistics.data.gov.uk/id/local-authority/12UE,Huntingdonshire District Council,19/07/2017,20/07/2017,212760,17573, 17.50 ,ENVIROCURE LTD,CR424614,Parks & Open Spaces,Building Mtce,303
http://statistics.data.gov.uk/id/local-authority/12UE,Huntingdonshire District Council,19/07/2017,20/07/2017,212760,17573, 17.50 ,ENVIROCURE LTD,CR424614,Parks & Open Spaces,Building Mtce,303
http://statistics.data.gov.uk/id/local-authority/12UE,Huntingdonshire District Council,19/07/2017,20/07/2017,212760,17573, 160.50 ,ENVIROCURE LTD,CR424614,Pathfinder House,Building Mtce,303
http://statistics.data.gov.uk/id/local-authority/12UE,Huntingdonshire District Council,19/07/2017,20/07/2017,212047,4571, 525.69 ,NOVUS COMPLIANCE SERVICES LTD,CR423524,Site & Centre Management,Building Mtce,303
http://statistics.data.gov.uk/id/local-authority/12UE,Huntingdonshire District Council,28/07/2017,28/07/2017,613910,DR004108, 521.75 ,PERSONAL DATA REDACTED,CR151968,Sales Ledger Refunds Control,Refunds,Z28
http://statistics.data.gov.uk/id/local-authority/12UE,Huntingdonshire District Council,24/07/2017,27/07/2017,213957,915987, 507.98 ,KING BROS,CR411339,Hinchingbrooke Park Cafe,Catering Materials,559
http://statistics.data.gov.uk/id/local-authority/12UE,Huntingdonshire District Council,26/07/2017,26/07/2017,213938,428463, 502.50 ,HEASELL ELECTROMECHANICAL SERVICES LTD,CR422407,Site & Centre Management,Building Mtce,303
http://statistics.data.gov.uk/id/local-authority/12UE,Huntingdonshire District Council,12/07/2017,13/07/2017,213121,671364, 501.37 ,LACONS,CR422174,Hospitality,Bar Provisions,558
http://statistics.data.gov.uk/id/local-authority/12UE,Huntingdonshire District Council,12/07/2017,13/07/2017,212834,210140, 101.00 ,LEAD FORENSICS,CR423143,Leisure Centre Corporate Mngmt,Advertising/Promoting Services,255
http://statistics.data.gov.uk/id/local-authority/12UE,Huntingdonshire District Council,12/07/2017,13/07/2017,212834,210140, 100.00 ,LEAD FORENSICS,CR423143,Site & Centre Management,Advertising/Promoting Services,255
http://statistics.data.gov.uk/id/local-authority/12UE,Huntingdonshire District Council,12/07/2017,13/07/2017,212834,210140, 100.00 ,LEAD FORENSICS,CR423143,Site & Centre Management,Advertising/Promoting Services,255
http://statistics.data.gov.uk/id/local-authority/12UE,Huntingdonshire District Council,12/07/2017,13/07/2017,212834,210140, 100.00 ,LEAD FORENSICS,CR423143,Site & Centre Management,Advertising/Promoting Services,255
http://statistics.data.gov.uk/id/local-authority/12UE,Huntingdonshire District Council,12/07/2017,13/07/2017,212834,210140, 50.00 ,LEAD FORENSICS,CR423143,Site & Centre Management,Advertising/Promoting Services,255
http://statistics.data.gov.uk/id/local-authority/12UE,Huntingdonshire District Council,12/07/2017,13/07/2017,212834,210140, 50.00 ,LEAD FORENSICS,CR423143,Site & Centre Management,Advertising/Promoting Services,255
http://statistics.data.gov.uk/id/local-authority/12UE,Huntingdonshire District Council,19/07/2017,19/07/2017,212782,408, 500.00 ,E J ENVIRONMENTAL DESIGN LTD,CR424005,Ol Huntingdon Expansion,Building Mtce,303
http://statistics.data.gov.uk/id/local-authority/12UE,Huntingdonshire District Council,26/07/2017,27/07/2017,214133,PERSONAL DATA REDACTED, 500.00 ,BELVOIR LETTINGS,CR409608,Homelessness,Incentive Payment,816
http://statistics.data.gov.uk/id/local-authority/12UE,Huntingdonshire District Council,26/07/2017,27/07/2017,214134,PERSONAL DATA REDACTED, 500.00 ,BELVOIR LETTINGS,CR409608,Homelessness,Incentive Payment,816
http://statistics.data.gov.uk/id/local-authority/12UE,Huntingdonshire District Council,05/07/2017,06/07/2017,212698,6101757157, 498.08 ,LYRECO UK LTD,CR400700,Site & Centre Management,Cleaning Materials,443
http://statistics.data.gov.uk/id/local-authority/12UE,Huntingdonshire District Council,26/07/2017,26/07/2017,211865,51229, 495.00 ,TECHNICAL SURFACES LTD,CR031941,Outdoor Sports,Grounds Mtce Contractors,351
http://statistics.data.gov.uk/id/local-authority/12UE,Huntingdonshire District Council,05/07/2017,05/07/2017,212324,59099, 495.00 ,BEEBYS LIMITED,CR415822,Eastfield House,Building Cleaning,440
http://statistics.data.gov.uk/id/local-authority/12UE,Huntingdonshire District Council,19/07/2017,19/07/2017,213758,35351, 494.63 ,MEYER SCOTT RECRUITMENT LIMITED,CR422369,Customer Service Centres,Hired Staff,100
http://statistics.data.gov.uk/id/local-authority/12UE,Huntingdonshire District Council,03/07/2017,06/07/2017,212290,86683, 490.00 ,SHARPE PRITCHARD,CR480887,Street Trading/Consents,Legal Fees,729
http://statistics.data.gov.uk/id/local-authority/12UE,Huntingdonshire District Council,12/07/2017,13/07/2017,212276,IN0605940, 488.03 ,STAFFLINE GROUP,CR416827,Recycling Collections,Hired Staff,100
http://statistics.data.gov.uk/id/local-authority/12UE,Huntingdonshire District Council,20/07/2017,20/07/2017,212284,IN0607437, 488.03 ,STAFFLINE GROUP,CR416827,Recycling Collections,Hired Staff,100
http://statistics.data.gov.uk/id/local-authority/12UE,Huntingdonshire District Council,20/07/2017,20/07/2017,212286,IN0607436, 488.03 ,STAFFLINE GROUP,CR416827,Domestic Waste Collection,Hired Staff,100
http://statistics.data.gov.uk/id/local-authority/12UE,Huntingdonshire District Council,19/07/2017,20/07/2017,213711,6003594349, 487.50 ,CAPITA BUSINESS SERVICES LTD,CR410639,Scdc Recharge Invoices,Consultants,711
http://statistics.data.gov.uk/id/local-authority/12UE,Huntingdonshire District Council,11/07/2017,11/07/2017,213116,6938766, 329.70 ,ANTALIS LTD,CR479468,Printing,Paper,562
http://statistics.data.gov.uk/id/local-authority/12UE,Huntingdonshire District Council,11/07/2017,11/07/2017,213116,6938766, 80.12 ,ANTALIS LTD,CR479468,Printing,Paper,562
http://statistics.data.gov.uk/id/local-authority/12UE,Huntingdonshire District Council,11/07/2017,11/07/2017,213116,6938766, 76.40 ,ANTALIS LTD,CR479468,Printing,Paper,562
http://statistics.data.gov.uk/id/local-authority/12UE,Huntingdonshire District Council,12/07/2017,13/07/2017,212700,670124, 454.01 ,LACONS,CR422174,Hospitality,Bar Provisions,558
http://statistics.data.gov.uk/id/local-authority/12UE,Huntingdonshire District Council,12/07/2017,13/07/2017,212700,670124, 32.00 ,LACONS,CR422174,Hospitality,Gas Cylinders (Incl. Bars),567
http://statistics.data.gov.uk/id/local-authority/12UE,Huntingdonshire District Council,26/07/2017,26/07/2017,214035,9828, 479.98 ,ROGER WILSON ELECTRONICS,CR028041,Site & Centre Management,Building Mtce,303
http://statistics.data.gov.uk/id/local-authority/12UE,Huntingdonshire District Council,05/07/2017,06/07/2017,212757,BOOGIE 17.6.17, 478.43 ,STARLITE ROADSHOW,CR024127,Burgess Hall,Entertainments Inc Cable Tv,744
http://statistics.data.gov.uk/id/local-authority/12UE,Huntingdonshire District Council,25/07/2017,25/07/2017,214018,191198 (VAT), 475.60 ,T M BROWNE LTD,CR424796,Disabled Facilities Grants,Mandatory Grants,801
http://statistics.data.gov.uk/id/local-authority/12UE,Huntingdonshire District Council,12/07/2017,13/07/2017,212679,31911, 475.00 ,BRIDGE FIBRE LIMITED,CR424041,The Club Alconbury Weald,Building Mtce,303
http://statistics.data.gov.uk/id/local-authority/12UE,Huntingdonshire District Council,27/07/2017,27/07/2017,214384,181, 237.50 ,FOCUS CONSULTANTS 2010 LLP,CR424641,Ol St Neots Pool Building,Consultants,711
http://statistics.data.gov.uk/id/local-authority/12UE,Huntingdonshire District Council,27/07/2017,27/07/2017,214384,181, 237.50 ,FOCUS CONSULTANTS 2010 LLP,CR424641,Ol St Ives Burgess Hall,Consultants,711
http://statistics.data.gov.uk/id/local-authority/12UE,Huntingdonshire District Council,18/07/2017,18/07/2017,212033,134415, 474.00 ,NEWGATE (NEWARK) LIMITED,CR480024,Trade Refuse,Building Mtce,303
http://statistics.data.gov.uk/id/local-authority/12UE,Huntingdonshire District Council,19/07/2017,20/07/2017,213685,SINV00112238, 464.00 ,BIST,CR422733,Imd Shared Service,Software,206
http://statistics.data.gov.uk/id/local-authority/12UE,Huntingdonshire District Council,12/07/2017,12/07/2017,213158,280574, 462.13 ,FIRST RECRUITMENT GROUP LTD,CR424012,Finance,Hired Staff,100
http://statistics.data.gov.uk/id/local-authority/12UE,Huntingdonshire District Council,18/07/2017,18/07/2017,213599,281247, 462.13 ,FIRST RECRUITMENT GROUP LTD,CR424012,Finance,Hired Staff,100
http://statistics.data.gov.uk/id/local-authority/12UE,Huntingdonshire District Council,27/07/2017,27/07/2017,214177,281866, 462.13 ,FIRST RECRUITMENT GROUP LTD,CR424012,Finance,Hired Staff,100
http://statistics.data.gov.uk/id/local-authority/12UE,Huntingdonshire District Council,26/07/2017,26/07/2017,213579,672611, 460.72 ,LACONS,CR422174,Hospitality,Bar Provisions,558
http://statistics.data.gov.uk/id/local-authority/12UE,Huntingdonshire District Council,19/07/2017,20/07/2017,213734,661, 460.00 ,RUSTIC GARDEN FURNITURE LTD,CR424838,Hinchingbrooke Park Management,Materials,550
http://statistics.data.gov.uk/id/local-authority/12UE,Huntingdonshire District Council,06/07/2017,06/07/2017,212241,911904, 457.56 ,KING BROS,CR411339,Hinchingbrooke Park Cafe,Catering Materials,559
http://statistics.data.gov.uk/id/local-authority/12UE,Huntingdonshire District Council,20/07/2017,20/07/2017,213060,111824, 457.48 ,ARTHUR IBBETT LTD,CR000430,Grounds Maintenance,Materials,550
http://statistics.data.gov.uk/id/local-authority/12UE,Huntingdonshire District Council,05/07/2017,06/07/2017,212761,SL/1644, 450.00 ,LOCO TALENT LTD,CR424632,Burgess Hall,Entertainments Inc Cable Tv,744
http://statistics.data.gov.uk/id/local-authority/12UE,Huntingdonshire District Council,12/07/2017,20/07/2017,213252,71026012, 450.00 ,Q ASSOCIATES LIMITED,CR424807,Ccity Recharge Invoices,Equipment Maintenance,511
http://statistics.data.gov.uk/id/local-authority/12UE,Huntingdonshire District Council,19/07/2017,19/07/2017,213320,38SI 3850766, 448.50 ,BRENNTAG UK LTD,CR015017,Swimming,Chemicals,551
http://statistics.data.gov.uk/id/local-authority/12UE,Huntingdonshire District Council,18/07/2017,18/07/2017,213606,1026659, 445.00 ,CADLINE LTD,CR422192,Hr & Payroll Services,Training,130
http://statistics.data.gov.uk/id/local-authority/12UE,Huntingdonshire District Council,06/07/2017,06/07/2017,212243,912420, 444.68 ,KING BROS,CR411339,Hinchingbrooke Park Cafe,Catering Materials,559
http://statistics.data.gov.uk/id/local-authority/12UE,Huntingdonshire District Council,26/07/2017,26/07/2017,214023,88324910, 443.00 ,GEZE  UK LTD,CR417073,Site & Centre Management,Building Mtce,303
http://statistics.data.gov.uk/id/local-authority/12UE,Huntingdonshire District Council,24/07/2017,27/07/2017,213936,62532, 441.41 ,MASKEARAID LTD,CR033423,Pathfinder House,Cleaning Materials,443
http://statistics.data.gov.uk/id/local-authority/12UE,Huntingdonshire District Council,20/07/2017,20/07/2017,213490,4000004997, 440.31 ,1ST CHOICE RECRUITMENT,CR416849,Parks & Open Spaces,Hired Staff,100
http://statistics.data.gov.uk/id/local-authority/12UE,Huntingdonshire District Council,19/07/2017,19/07/2017,213756,90435944, 438.57 ,ADVANTAGE RESOURCING,CR424715,Customer Service Centres,Hired Staff,100
http://statistics.data.gov.uk/id/local-authority/12UE,Huntingdonshire District Council,06/07/2017,06/07/2017,212642,384/761, 437.50 ,JAZ YORKS LTD,CR160753,Homelessness,Bed & Breakfast Payment,818
http://statistics.data.gov.uk/id/local-authority/12UE,Huntingdonshire District Council,13/07/2017,13/07/2017,213065,384/768, 437.50 ,JAZ YORKS LTD,CR160753,Homelessness,Bed & Breakfast Payment,818
http://statistics.data.gov.uk/id/local-authority/12UE,Huntingdonshire District Council,20/07/2017,20/07/2017,213771,562574, 434.69 ,ECOCLEEN SERVICES LIMITED,CR406985,H'Brooke Countryside Centre,Building Cleaning,440
http://statistics.data.gov.uk/id/local-authority/12UE,Huntingdonshire District Council,19/07/2017,19/07/2017,213569,82531, 433.29 ,SNACKLINE DIRECT LTD,CR478090,Hospitality,Vending Materials,560
http://statistics.data.gov.uk/id/local-authority/12UE,Huntingdonshire District Council,20/07/2017,20/07/2017,213777,294036201, 431.37 ,ANGLIAN WATER,CR000071,Hinchingbrooke Park Management,Electricity,420
http://statistics.data.gov.uk/id/local-authority/12UE,Huntingdonshire District Council,19/07/2017,20/07/2017,213719,ARCMIN/99063846, 430.84 ,ADVANCED BUSINESS SOLUTIONS,CR032921,Hdc Recharge Invoices,Software,206
http://statistics.data.gov.uk/id/local-authority/12UE,Huntingdonshire District Council,10/07/2017,20/07/2017,212861,19246, 25.00 ,CAMPBELL ASSOCIATES,CR407137,Noise Control,Equipment Maintenance,511
http://statistics.data.gov.uk/id/local-authority/12UE,Huntingdonshire District Council,10/07/2017,20/07/2017,212861,19246, 150.00 ,CAMPBELL ASSOCIATES,CR407137,Noise Control,Equipment Maintenance,511
http://statistics.data.gov.uk/id/local-authority/12UE,Huntingdonshire District Council,10/07/2017,20/07/2017,212861,19246, 255.00 ,CAMPBELL ASSOCIATES,CR407137,Noise Control,Equipment Maintenance,511
http://statistics.data.gov.uk/id/local-authority/12UE,Huntingdonshire District Council,26/07/2017,26/07/2017,214100,101327, 429.25 ,SPORTMAX,CR424813,Site & Centre Management,Materials For Resale,570
http://statistics.data.gov.uk/id/local-authority/12UE,Huntingdonshire District Council,20/07/2017,20/07/2017,213179,4000004965, 429.02 ,1ST CHOICE RECRUITMENT,CR416849,Parks & Open Spaces,Hired Staff,100
http://statistics.data.gov.uk/id/local-authority/12UE,Huntingdonshire District Council,21/07/2017,21/07/2017,213970,6992327, 33.74 ,ANTALIS LTD,CR479468,Printing,Paper,562
http://statistics.data.gov.uk/id/local-authority/12UE,Huntingdonshire District Council,21/07/2017,21/07/2017,213970,6992327, 130.70 ,ANTALIS LTD,CR479468,Printing,Paper,562
http://statistics.data.gov.uk/id/local-authority/12UE,Huntingdonshire District Council,21/07/2017,21/07/2017,213970,6992327, 200.29 ,ANTALIS LTD,CR479468,Printing,Paper,562
http://statistics.data.gov.uk/id/local-authority/12UE,Huntingdonshire District Council,21/07/2017,21/07/2017,213970,6992327, 63.60 ,ANTALIS LTD,CR479468,Printing,Paper,562
http://statistics.data.gov.uk/id/local-authority/12UE,Huntingdonshire District Council,20/07/2017,20/07/2017,213188,38154, 428.09 ,TRINITY ENGINEERING & COMPONENT SUPPLIES LTD,CR455479,Vehicle Maintenance,Materials,550
http://statistics.data.gov.uk/id/local-authority/12UE,Huntingdonshire District Council,20/07/2017,20/07/2017,212278,IN0605939, 425.01 ,STAFFLINE GROUP,CR416827,Domestic Waste Collection,Hired Staff,100
http://statistics.data.gov.uk/id/local-authority/12UE,Huntingdonshire District Council,26/07/2017,27/07/2017,214109,PERSONAL DATA REDACTED, 420.00 ,FRESH START REMOVALS,CR487213,Homelessness,Removal/Storage,750
http://statistics.data.gov.uk/id/local-authority/12UE,Huntingdonshire District Council,20/07/2017,20/07/2017,212667,4000004936, 417.73 ,1ST CHOICE RECRUITMENT,CR416849,Facilities,Hired Staff,100
http://statistics.data.gov.uk/id/local-authority/12UE,Huntingdonshire District Council,05/07/2017,06/07/2017,212804,4000004904, 417.73 ,1ST CHOICE RECRUITMENT,CR416849,Development Management,Hired Staff,100
http://statistics.data.gov.uk/id/local-authority/12UE,Huntingdonshire District Council,20/07/2017,20/07/2017,213176,4000004964, 417.73 ,1ST CHOICE RECRUITMENT,CR416849,Facilities,Hired Staff,100
http://statistics.data.gov.uk/id/local-authority/12UE,Huntingdonshire District Council,19/07/2017,20/07/2017,213534,57441, 417.50 ,LANDMARK TRADING LTD,CR411433,Arboricultural Team,Protective Clothing & Uniforms,163
http://statistics.data.gov.uk/id/local-authority/12UE,Huntingdonshire District Council,26/07/2017,26/07/2017,214043,82745378, 154.88 ,ARCHANT HERTS & CAMBS,CR415764,Leisure Centre Corporate Mngmt,Advertising/Promoting Services,255
http://statistics.data.gov.uk/id/local-authority/12UE,Huntingdonshire District Council,26/07/2017,26/07/2017,214043,82745378, 256.33 ,ARCHANT HERTS & CAMBS,CR415764,Burgess Hall,Advertising/Promoting Services,255
http://statistics.data.gov.uk/id/local-authority/12UE,Huntingdonshire District Council,13/07/2017,13/07/2017,213101,INV000092, 410.00 ,SQUIRES & SON LTD,CR478185,Housing Private Sector Grants,Shared Service Savings,798
http://statistics.data.gov.uk/id/local-authority/12UE,Huntingdonshire District Council,12/07/2017,20/07/2017,213214,3395912, 409.44 ,INSIGHT DIRECT UK LTD,CR000242,Scdc Recharge Invoices,Telephone &Mobile Phonecharges,240
http://statistics.data.gov.uk/id/local-authority/12UE,Huntingdonshire District Council,26/07/2017,26/07/2017,213751,81804, 405.82 ,SNACKLINE DIRECT LTD,CR478090,Hospitality,Vending Materials,560
http://statistics.data.gov.uk/id/local-authority/12UE,Huntingdonshire District Council,19/07/2017,20/07/2017,213209,3413571, 405.00 ,INSIGHT DIRECT UK LTD,CR000242,Hdc Recharge Invoices,Other I T Hardware,203
http://statistics.data.gov.uk/id/local-authority/12UE,Huntingdonshire District Council,27/07/2017,27/07/2017,214180,4510536, 405.00 ,ESPO,CR006566,Paxton Pits,Equipment,500
http://statistics.data.gov.uk/id/local-authority/12UE,Huntingdonshire District Council,06/07/2017,06/07/2017,211333,704812, 403.81 ,ERNEST DOE & SONS,CR000261,Grounds Maintenance,Vehicle Accident Damage,623
http://statistics.data.gov.uk/id/local-authority/12UE,Huntingdonshire District Council,10/07/2017,10/07/2017,213044,17/85978, 400.00 ,POPPLESTON ALLEN TRAINING,CR455596,Hr & Payroll Services,Training,130
http://statistics.data.gov.uk/id/local-authority/12UE,Huntingdonshire District Council,13/07/2017,13/07/2017,213138,10743160, 400.00 ,CAMBRIDGESHIRE COUNTY COUNCIL,CR006678,Hr & Payroll Services,Training,130
http://statistics.data.gov.uk/id/local-authority/12UE,Huntingdonshire District Council,31/07/2017,31/07/2017,214401,104421, 400.00 ,LAVAT CONSULTING LTD T/A PSTAX,CR480410,Finance,Consultants,711
http://statistics.data.gov.uk/id/local-authority/12UE,Huntingdonshire District Council,06/07/2017,06/07/2017,212684,2103652750, 399.07 ,BOOKER CASH AND CARRY,CR027611,Hinchingbrooke Park Cafe,Catering Materials,559
http://statistics.data.gov.uk/id/local-authority/12UE,Huntingdonshire District Council,12/07/2017,12/07/2017,213201,24356, 396.50 ,B. S. GRAVES ELECTRICAL LTD,CR000363,St Ives Bus Station,Building Mtce,303
http://statistics.data.gov.uk/id/local-authority/12UE,Huntingdonshire District Council,19/07/2017,20/07/2017,212384,10832, 395.52 ,D B TRANSPORT SERVICES,CR405028,Closed Fraud Team-Use Hb85,Vehicle Parts & Fittings,625
http://statistics.data.gov.uk/id/local-authority/12UE,Huntingdonshire District Council,12/07/2017,12/07/2017,213212,280263, 395.00 ,WALKER FIRE UK LTD,CR455756,Huntingdon Multi-Storey,Plant & Equipment Maintenance,380
http://statistics.data.gov.uk/id/local-authority/12UE,Huntingdonshire District Council,18/07/2017,18/07/2017,213603,HUN001/0036, 390.00 ,LGSS LAW,CR422022,Legal,Legal Fees,729
http://statistics.data.gov.uk/id/local-authority/12UE,Huntingdonshire District Council,12/07/2017,13/07/2017,212771,855496, 388.90 ,J P LENNARD LTD,CR028595,Site & Centre Management,Equipment,500
http://statistics.data.gov.uk/id/local-authority/12UE,Huntingdonshire District Council,20/07/2017,20/07/2017,213182,60229326, 118.58 ,AEBI SCHMIDT,CR025706,Street Cleansing,Vehicle Parts & Fittings,625
http://statistics.data.gov.uk/id/local-authority/12UE,Huntingdonshire District Council,20/07/2017,20/07/2017,213182,60229326, 118.58 ,AEBI SCHMIDT,CR025706,Street Cleansing,Vehicle Parts & Fittings,625
http://statistics.data.gov.uk/id/local-authority/12UE,Huntingdonshire District Council,20/07/2017,20/07/2017,213182,60229326, 147.57 ,AEBI SCHMIDT,CR025706,Street Cleansing,Vehicle Parts & Fittings,625
http://statistics.data.gov.uk/id/local-authority/12UE,Huntingdonshire District Council,19/07/2017,20/07/2017,213506,57369, 383.87 ,LANDMARK TRADING LTD,CR411433,Arboricultural Team,Equipment,500
http://statistics.data.gov.uk/id/local-authority/12UE,Huntingdonshire District Council,19/07/2017,19/07/2017,213671,11458902300, 379.77 ,E-ON ENERGY,CR416430,Bus Shelters,Electricity,420
http://statistics.data.gov.uk/id/local-authority/12UE,Huntingdonshire District Council,10/07/2017,10/07/2017,613317,329854, 378.78 ,NORTHAMPTONSHIRE COUNTY COUNCIL,CR416282,Hr & Payroll Services,Consultants,711
http://statistics.data.gov.uk/id/local-authority/12UE,Huntingdonshire District Council,06/07/2017,06/07/2017,212220,38077, 378.26 ,TRINITY ENGINEERING & COMPONENT SUPPLIES LTD,CR455479,Vehicle Maintenance,Materials,550
http://statistics.data.gov.uk/id/local-authority/12UE,Huntingdonshire District Council,26/07/2017,26/07/2017,213937,10484673, 377.16 ,LUCOZADE RIBENA SUNTORY LTD,CR422660,Hospitality,Vending Materials,560
http://statistics.data.gov.uk/id/local-authority/12UE,Huntingdonshire District Council,19/07/2017,19/07/2017,213570,44041, 375.00 ,LAYTONDINGS ENTERTAINMENT LTD,CR412228,Burgess Hall,Entertainments Inc Cable Tv,744
http://statistics.data.gov.uk/id/local-authority/12UE,Huntingdonshire District Council,20/07/2017,20/07/2017,213630,384/773, 375.00 ,JAZ YORKS LTD,CR160753,Homelessness,Bed & Breakfast Payment,818
http://statistics.data.gov.uk/id/local-authority/12UE,Huntingdonshire District Council,05/07/2017,06/07/2017,212840,16305, 370.00 ,IAN'S TYRE & EXHAUST CENTRE,CR405836,Grounds Maintenance,Tyres,630
http://statistics.data.gov.uk/id/local-authority/12UE,Huntingdonshire District Council,27/07/2017,27/07/2017,214168,7006412, 263.76 ,ANTALIS LTD,CR479468,Printing,Paper,562
http://statistics.data.gov.uk/id/local-authority/12UE,Huntingdonshire District Council,27/07/2017,27/07/2017,214168,7006412, 61.75 ,ANTALIS LTD,CR479468,Printing,Paper,562
http://statistics.data.gov.uk/id/local-authority/12UE,Huntingdonshire District Council,27/07/2017,27/07/2017,214168,7006412, 43.93 ,ANTALIS LTD,CR479468,Printing,Paper,562
http://statistics.data.gov.uk/id/local-authority/12UE,Huntingdonshire District Council,13/07/2017,13/07/2017,213457,EF8679, 367.60 ,HAYMARKET MEDIA GROUP LTD,CR479500,Hr & Payroll Services,Training,130
http://statistics.data.gov.uk/id/local-authority/12UE,Huntingdonshire District Council,20/07/2017,20/07/2017,212304,240, 365.98 ,DMS HOME IMPROVEMENTS & ELECTRICAL,CR479202,Eastfield House,Building Mtce,303
http://statistics.data.gov.uk/id/local-authority/12UE,Huntingdonshire District Council,12/07/2017,12/07/2017,213168,12489088970, 364.91 ,E-ON ENERGY,CR416430,Site & Centre Management,Gas,421
http://statistics.data.gov.uk/id/local-authority/12UE,Huntingdonshire District Council,12/07/2017,12/07/2017,213173,13313569100, 364.72 ,E-ON ENERGY,CR416430,Pathfinder House,Gas,421
http://statistics.data.gov.uk/id/local-authority/12UE,Huntingdonshire District Council,12/07/2017,20/07/2017,213226,3357878, 360.00 ,INSIGHT DIRECT UK LTD,CR000242,Imd Shared Service,Other I T Hardware,203
http://statistics.data.gov.uk/id/local-authority/12UE,Huntingdonshire District Council,06/07/2017,06/07/2017,212042,115320, 105.00 ,BARTON PETROLEUM,CR409205,Recycling Collections,Vehicle Oil & Lubricants,626
http://statistics.data.gov.uk/id/local-authority/12UE,Huntingdonshire District Council,06/07/2017,06/07/2017,212042,115320, 245.00 ,BARTON PETROLEUM,CR409205,Domestic Waste Collection,Vehicle Oil & Lubricants,626
http://statistics.data.gov.uk/id/local-authority/12UE,Huntingdonshire District Council,26/07/2017,26/07/2017,213293,51570, 350.00 ,TECHNICAL SURFACES LTD,CR031941,Outdoor Sports,Grounds Mtce Contractors,351
http://statistics.data.gov.uk/id/local-authority/12UE,Huntingdonshire District Council,19/07/2017,19/07/2017,213666,51569, 350.00 ,TECHNICAL SURFACES LTD,CR031941,Outdoor Sports,Grounds Mtce Contractors,351
http://statistics.data.gov.uk/id/local-authority/12UE,Huntingdonshire District Council,19/07/2017,19/07/2017,213753,2841, 350.00 ,ENFORCEMENT BAILIFFS LTD,CR424835,Closedcounciltax Mgmt-Use Hb85,Legal Fees,729
http://statistics.data.gov.uk/id/local-authority/12UE,Huntingdonshire District Council,24/07/2017,24/07/2017,213984,INVOICE1, 350.00 ,PAUL STAINTON MEDIA LTD,CR424846,Managing Directors Team,Consultants,711
http://statistics.data.gov.uk/id/local-authority/12UE,Huntingdonshire District Council,06/07/2017,06/07/2017,211619,410526, 194.55 ,SMI GROUP,CR423139,Car Parks Operational Mgt,Protective Clothing & Uniforms,163
http://statistics.data.gov.uk/id/local-authority/12UE,Huntingdonshire District Council,06/07/2017,06/07/2017,211619,410526, 62.95 ,SMI GROUP,CR423139,Facilities,Protective Clothing & Uniforms,163
http://statistics.data.gov.uk/id/local-authority/12UE,Huntingdonshire District Council,06/07/2017,06/07/2017,211619,410526, 36.35 ,SMI GROUP,CR423139,Street Cleansing,Protective Clothing & Uniforms,163
http://statistics.data.gov.uk/id/local-authority/12UE,Huntingdonshire District Council,06/07/2017,06/07/2017,211619,410526, 55.35 ,SMI GROUP,CR423139,Markets Management,Protective Clothing & Uniforms,163
http://statistics.data.gov.uk/id/local-authority/12UE,Huntingdonshire District Council,06/07/2017,06/07/2017,212366,80061056, 348.62 ,CHASSIS-CAB LTD,CR422248,Street Cleansing,Vehicle Parts & Fittings,625
http://statistics.data.gov.uk/id/local-authority/12UE,Huntingdonshire District Council,06/07/2017,06/07/2017,212217,41155, 96.90 ,GROUNDSMAN,CR422159,Grounds Maintenance,Equipment,500
http://statistics.data.gov.uk/id/local-authority/12UE,Huntingdonshire District Council,06/07/2017,06/07/2017,212217,41155, 249.32 ,GROUNDSMAN,CR422159,Street Cleansing,Equipment,500
http://statistics.data.gov.uk/id/local-authority/12UE,Huntingdonshire District Council,20/07/2017,20/07/2017,213503,415787, 343.70 ,SMI GROUP,CR423139,Street Cleansing,Protective Clothing & Uniforms,163
http://statistics.data.gov.uk/id/local-authority/12UE,Huntingdonshire District Council,19/07/2017,20/07/2017,213486,562667, 343.53 ,ECOCLEEN SERVICES LIMITED,CR406985,Huntingdon Multi-Storey,Building Cleaning,440
http://statistics.data.gov.uk/id/local-authority/12UE,Huntingdonshire District Council,06/07/2017,06/07/2017,212294,705029, 342.55 ,ERNEST DOE & SONS,CR000261,Grounds Maintenance,Vehicle Accident Damage,623
http://statistics.data.gov.uk/id/local-authority/12UE,Huntingdonshire District Council,12/07/2017,12/07/2017,212780,88323921, 342.10 ,GEZE  UK LTD,CR417073,Huntingdon Multi-Storey,Building Mtce,303
http://statistics.data.gov.uk/id/local-authority/12UE,Huntingdonshire District Council,04/07/2017,06/07/2017,212323,1706/24320, 340.00 ,GULLIVERS TRUCK HIRE LTD,CR477663,Domestic Waste Collection,Vehicle Hire,607
http://statistics.data.gov.uk/id/local-authority/12UE,Huntingdonshire District Council,05/07/2017,06/07/2017,212825,1706/24883, 340.00 ,GULLIVERS TRUCK HIRE LTD,CR477663,Domestic Waste Collection,Vehicle Hire,607
http://statistics.data.gov.uk/id/local-authority/12UE,Huntingdonshire District Council,05/07/2017,06/07/2017,212826,1706/24598, 340.00 ,GULLIVERS TRUCK HIRE LTD,CR477663,Domestic Waste Collection,Vehicle Hire,607
http://statistics.data.gov.uk/id/local-authority/12UE,Huntingdonshire District Council,27/07/2017,27/07/2017,213480,1707/29214, 340.00 ,GULLIVERS TRUCK HIRE LTD,CR477663,Domestic Waste Collection,Vehicle Hire,607
http://statistics.data.gov.uk/id/local-authority/12UE,Huntingdonshire District Council,25/07/2017,25/07/2017,214016,1647, 340.00 ,HD PROPERTY SERVICES,CR422148,Housing Private Sector Grants,Shared Service Savings,798
http://statistics.data.gov.uk/id/local-authority/12UE,Huntingdonshire District Council,26/07/2017,26/07/2017,214079,299157, 18.00 ,WESTMINSTER FOODSERVICE,CR455156,Hospitality,Materials,550
http://statistics.data.gov.uk/id/local-authority/12UE,Huntingdonshire District Council,26/07/2017,26/07/2017,214079,299157, 187.46 ,WESTMINSTER FOODSERVICE,CR455156,Hospitality,Bar Provisions,558
http://statistics.data.gov.uk/id/local-authority/12UE,Huntingdonshire District Council,26/07/2017,26/07/2017,214079,299157, 126.30 ,WESTMINSTER FOODSERVICE,CR455156,Hospitality,Catering Materials,559
http://statistics.data.gov.uk/id/local-authority/12UE,Huntingdonshire District Council,06/07/2017,06/07/2017,212364,80061058, 322.33 ,CHASSIS-CAB LTD,CR422248,Street Cleansing,Vehicle Parts & Fittings,625
http://statistics.data.gov.uk/id/local-authority/12UE,Huntingdonshire District Council,26/07/2017,26/07/2017,214072,299581, 154.09 ,WESTMINSTER FOODSERVICE,CR455156,Hospitality,Bar Provisions,558
http://statistics.data.gov.uk/id/local-authority/12UE,Huntingdonshire District Council,26/07/2017,26/07/2017,214072,299581, 167.52 ,WESTMINSTER FOODSERVICE,CR455156,Hospitality,Catering Materials,559
http://statistics.data.gov.uk/id/local-authority/12UE,Huntingdonshire District Council,06/07/2017,06/07/2017,212252,DE11046644, 96.36 ,DENNIS EAGLE LTD,CR000200,Recycling Collections,Vehicle Parts & Fittings,625
http://statistics.data.gov.uk/id/local-authority/12UE,Huntingdonshire District Council,06/07/2017,06/07/2017,212252,DE11046644, 224.84 ,DENNIS EAGLE LTD,CR000200,Domestic Waste Collection,Vehicle Parts & Fittings,625
http://statistics.data.gov.uk/id/local-authority/12UE,Huntingdonshire District Council,06/07/2017,06/07/2017,212639,384/764, 320.84 ,JAZ YORKS LTD,CR160753,Homelessness,Bed & Breakfast Payment,818
http://statistics.data.gov.uk/id/local-authority/12UE,Huntingdonshire District Council,06/07/2017,06/07/2017,212640,384/763, 320.84 ,JAZ YORKS LTD,CR160753,Homelessness,Bed & Breakfast Payment,818
http://statistics.data.gov.uk/id/local-authority/12UE,Huntingdonshire District Council,13/07/2017,13/07/2017,213068,384/770, 320.84 ,JAZ YORKS LTD,CR160753,Homelessness,Bed & Breakfast Payment,818
http://statistics.data.gov.uk/id/local-authority/12UE,Huntingdonshire District Council,13/07/2017,13/07/2017,213070,384/771, 320.84 ,JAZ YORKS LTD,CR160753,Homelessness,Bed & Breakfast Payment,818
http://statistics.data.gov.uk/id/local-authority/12UE,Huntingdonshire District Council,26/07/2017,27/07/2017,214119,384/777, 320.84 ,JAZ YORKS LTD,CR160753,Homelessness,Bed & Breakfast Payment,818
http://statistics.data.gov.uk/id/local-authority/12UE,Huntingdonshire District Council,27/07/2017,27/07/2017,213477,2678363, 318.00 ,BERENDSEN,CR478298,Vehicle Maintenance,Vehicle Parts & Fittings,625
http://statistics.data.gov.uk/id/local-authority/12UE,Huntingdonshire District Council,12/07/2017,13/07/2017,212609,CIN000010686, 316.66 ,PRO DIRECT SPORT LIMITED,CR424792,Indoor Sports,Equipment,500
http://statistics.data.gov.uk/id/local-authority/12UE,Huntingdonshire District Council,21/07/2017,21/07/2017,213959,11398241360, 316.34 ,E-ON ENERGY,CR416430,Car Parks Operational Mgt,Electricity,420
http://statistics.data.gov.uk/id/local-authority/12UE,Huntingdonshire District Council,19/07/2017,19/07/2017,213539,22755, 316.00 ,SHOW & EVENT SECURITY,CR422363,Burgess Hall,Hired Staff,100
http://statistics.data.gov.uk/id/local-authority/12UE,Huntingdonshire District Council,11/07/2017,11/07/2017,213134,4467740, 312.00 ,ESPO,CR006566,Transformation - Business,Stationery,225
http://statistics.data.gov.uk/id/local-authority/12UE,Huntingdonshire District Council,05/07/2017,06/07/2017,212653,DE11050553, 310.68 ,DENNIS EAGLE LTD,CR000200,Domestic Waste Collection,Vehicle Parts & Fittings,625
http://statistics.data.gov.uk/id/local-authority/12UE,Huntingdonshire District Council,13/07/2017,13/07/2017,212309,268585I, 307.30 ,A C COMMERCIALS,CR000141,Domestic Waste Collection,Vehicle Parts & Fittings,625
http://statistics.data.gov.uk/id/local-authority/12UE,Huntingdonshire District Council,12/07/2017,12/07/2017,213169,12489089510, 306.57 ,E-ON ENERGY,CR416430,Site & Centre Management,Gas,421
http://statistics.data.gov.uk/id/local-authority/12UE,Huntingdonshire District Council,06/07/2017,06/07/2017,211547,DE11044850, 306.54 ,DENNIS EAGLE LTD,CR000200,Domestic Waste Collection,Vehicle Parts & Fittings,625
http://statistics.data.gov.uk/id/local-authority/12UE,Huntingdonshire District Council,05/07/2017,06/07/2017,212699,43893, 300.00 ,LAYTONDINGS ENTERTAINMENT LTD,CR412228,Burgess Hall,Entertainments Inc Cable Tv,744
http://statistics.data.gov.uk/id/local-authority/12UE,Huntingdonshire District Council,12/07/2017,20/07/2017,213263,M/KE044933, 300.00 ,CIVICA UK LTD,CR415826,Scdc Recharge Invoices,Software,206
http://statistics.data.gov.uk/id/local-authority/12UE,Huntingdonshire District Council,19/07/2017,19/07/2017,213322,SI-39, 300.00 ,DOWN FOR THE COUNT,CR424830,Burgess Hall,Entertainments Inc Cable Tv,744
http://statistics.data.gov.uk/id/local-authority/12UE,Huntingdonshire District Council,12/07/2017,13/07/2017,213237,298735, 164.28 ,WESTMINSTER FOODSERVICE,CR455156,Hospitality,Bar Provisions,558
http://statistics.data.gov.uk/id/local-authority/12UE,Huntingdonshire District Council,12/07/2017,13/07/2017,213237,298735, 132.52 ,WESTMINSTER FOODSERVICE,CR455156,Hospitality,Catering Materials,559
http://statistics.data.gov.uk/id/local-authority/12UE,Huntingdonshire District Council,19/07/2017,19/07/2017,213760,35315, 296.78 ,MEYER SCOTT RECRUITMENT LIMITED,CR422369,Customer Service Centres,Hired Staff,100
http://statistics.data.gov.uk/id/local-authority/12UE,Huntingdonshire District Council,26/07/2017,26/07/2017,214042,4521166, 120.07 ,ESPO,CR006566,Site & Centre Management,Cleaning Materials,443
http://statistics.data.gov.uk/id/local-authority/12UE,Huntingdonshire District Council,26/07/2017,26/07/2017,214042,4521166, 134.76 ,ESPO,CR006566,Site & Centre Management,Equipment,500
http://statistics.data.gov.uk/id/local-authority/12UE,Huntingdonshire District Council,26/07/2017,26/07/2017,214042,4521166, 19.50 ,ESPO,CR006566,Site & Centre Management,Materials,550
http://statistics.data.gov.uk/id/local-authority/12UE,Huntingdonshire District Council,26/07/2017,26/07/2017,214042,4521166, 22.18 ,ESPO,CR006566,Site & Centre Management,Stationery,225
http://statistics.data.gov.uk/id/local-authority/12UE,Huntingdonshire District Council,19/07/2017,19/07/2017,213715,SI480449-1, 148.25 ,RLSS DIRECT,CR401615,Site & Centre Management,Materials,550
http://statistics.data.gov.uk/id/local-authority/12UE,Huntingdonshire District Council,19/07/2017,19/07/2017,213715,SI480449-1, 148.25 ,RLSS DIRECT,CR401615,Site & Centre Management,Materials,550
http://statistics.data.gov.uk/id/local-authority/12UE,Huntingdonshire District Council,26/07/2017,26/07/2017,214087,2103797821, 195.20 ,BOOKER CASH AND CARRY,CR027611,Burgess Bar,Bar Provisions,558
http://statistics.data.gov.uk/id/local-authority/12UE,Huntingdonshire District Council,26/07/2017,26/07/2017,214087,2103797821, 101.19 ,BOOKER CASH AND CARRY,CR027611,Burgess Bar,Confectionery,572
http://statistics.data.gov.uk/id/local-authority/12UE,Huntingdonshire District Council,05/07/2017,05/07/2017,212801,44474, 294.00 ,DAL-ROD (CAMRIDGESHIRE),CR413675,Eastfield House,Building Mtce,303
http://statistics.data.gov.uk/id/local-authority/12UE,Huntingdonshire District Council,18/07/2017,18/07/2017,213627,44501, 294.00 ,DAL-ROD (CAMRIDGESHIRE),CR413675,Bus Station Pc - Huntingdon,Building Mtce,303
http://statistics.data.gov.uk/id/local-authority/12UE,Huntingdonshire District Council,20/07/2017,20/07/2017,207963,147698, 290.00 ,SILVER SHIELD WINDSCREENS,CR024745,Domestic Waste Collection,Vehicle Parts & Fittings,625
http://statistics.data.gov.uk/id/local-authority/12UE,Huntingdonshire District Council,06/07/2017,06/07/2017,212683,537, 290.00 ,BODY MECHANICS,CR422101,Hinchingbrooke Park Management,Equipment Maintenance,511
http://statistics.data.gov.uk/id/local-authority/12UE,Huntingdonshire District Council,26/07/2017,26/07/2017,214152,05/05/2017, 290.00 ,HARLEQUIN COSTUME HIRE,CR006741,Burgess Hall,Materials,550
http://statistics.data.gov.uk/id/local-authority/12UE,Huntingdonshire District Council,19/07/2017,19/07/2017,213663,12-May-17, 288.00 ,GULLIVERS TRUCK HIRE LTD,CR477663,Domestic Waste Collection,Vehicle Hire,607
http://statistics.data.gov.uk/id/local-authority/12UE,Huntingdonshire District Council,26/07/2017,26/07/2017,213767,62560, 83.86 ,MASKEARAID LTD,CR033423,Impressions,Cleaning Materials,443
http://statistics.data.gov.uk/id/local-authority/12UE,Huntingdonshire District Council,26/07/2017,26/07/2017,213767,62560, 203.00 ,MASKEARAID LTD,CR033423,Site & Centre Management,Cleaning Materials,443
http://statistics.data.gov.uk/id/local-authority/12UE,Huntingdonshire District Council,12/07/2017,13/07/2017,213009,0010476046/9027, 286.48 ,LUCOZADE RIBENA SUNTORY LTD,CR422660,Hospitality,Vending Materials,560
http://statistics.data.gov.uk/id/local-authority/12UE,Huntingdonshire District Council,06/07/2017,06/07/2017,212857,298274, 164.28 ,WESTMINSTER FOODSERVICE,CR455156,Hospitality,Bar Provisions,558
http://statistics.data.gov.uk/id/local-authority/12UE,Huntingdonshire District Council,06/07/2017,06/07/2017,212857,298274, 121.99 ,WESTMINSTER FOODSERVICE,CR455156,Hospitality,Catering Materials,559
http://statistics.data.gov.uk/id/local-authority/12UE,Huntingdonshire District Council,13/07/2017,13/07/2017,212776,4253, 285.00 ,UNIVERSAL SAFETY SYSTEMS LTD,CR478208,Pathfinder House,Plant & Equipment Maintenance,380
http://statistics.data.gov.uk/id/local-authority/12UE,Huntingdonshire District Council,19/07/2017,20/07/2017,213744,8056704101, 284.40 ,ANGLIAN WATER,CR000071,Site & Centre Management,Water & Sewerage,432
http://statistics.data.gov.uk/id/local-authority/12UE,Huntingdonshire District Council,27/07/2017,27/07/2017,214184,2103760115, 37.67 ,BOOKER CASH AND CARRY,CR027611,Hinchingbrooke Park Cafe,Materials,550
http://statistics.data.gov.uk/id/local-authority/12UE,Huntingdonshire District Council,27/07/2017,27/07/2017,214184,2103760115, 245.18 ,BOOKER CASH AND CARRY,CR027611,Hinchingbrooke Park Cafe,Catering Materials,559
http://statistics.data.gov.uk/id/local-authority/12UE,Huntingdonshire District Council,20/07/2017,20/07/2017,213189,38155, 282.70 ,TRINITY ENGINEERING & COMPONENT SUPPLIES LTD,CR455479,Vehicle Maintenance,Materials,550
http://statistics.data.gov.uk/id/local-authority/12UE,Huntingdonshire District Council,25/07/2017,25/07/2017,214051,90437733, 282.69 ,ADVANTAGE RESOURCING,CR424715,Customer Service Centres,Hired Staff,100
http://statistics.data.gov.uk/id/local-authority/12UE,Huntingdonshire District Council,24/07/2017,27/07/2017,214110,2014745, 281.90 ,BCW OFFICE PRODUCTS LTD,CR480889,St Neots Riverside,Signs,565
http://statistics.data.gov.uk/id/local-authority/12UE,Huntingdonshire District Council,10/07/2017,10/07/2017,213034,B1213/8, 280.00 ,TREVOR ROBERTS ASSOCIATES,CR028712,Hr & Payroll Services,Training,130
http://statistics.data.gov.uk/id/local-authority/12UE,Huntingdonshire District Council,12/07/2017,13/07/2017,211546,60228528, 279.04 ,AEBI SCHMIDT,CR025706,Street Cleansing,Vehicle Parts & Fittings,625
http://statistics.data.gov.uk/id/local-authority/12UE,Huntingdonshire District Council,20/07/2017,20/07/2017,213279,196628, 277.40 ,ATE,CR401360,Grounds Maintenance,Vehicle Parts & Fittings,625
http://statistics.data.gov.uk/id/local-authority/12UE,Huntingdonshire District Council,13/07/2017,13/07/2017,213456,2189, 275.00 ,CIEEM,CR424833,Hr & Payroll Services,Training,130
http://statistics.data.gov.uk/id/local-authority/12UE,Huntingdonshire District Council,20/07/2017,20/07/2017,213190,38156, 274.88 ,TRINITY ENGINEERING & COMPONENT SUPPLIES LTD,CR455479,Vehicle Maintenance,Materials,550
http://statistics.data.gov.uk/id/local-authority/12UE,Huntingdonshire District Council,26/07/2017,26/07/2017,213942,INV091596, 273.24 ,SLUSH PUPPIE LTD,CR455958,Hospitality,Catering Materials,559
http://statistics.data.gov.uk/id/local-authority/12UE,Huntingdonshire District Council,19/07/2017,20/07/2017,213507,57443, 270.90 ,LANDMARK TRADING LTD,CR411433,Arboricultural Team,Equipment,500
http://statistics.data.gov.uk/id/local-authority/12UE,Huntingdonshire District Council,12/07/2017,13/07/2017,212836,1037, 267.20 ,MIRAMAR ENGINEERING LTD,CR424694,Site & Centre Management,Building Mtce,303
http://statistics.data.gov.uk/id/local-authority/12UE,Huntingdonshire District Council,12/07/2017,13/07/2017,213269,346492, 86.28 ,SOUTH LINCS FOOD SERVICE,CR033415,Hospitality,Materials,550
http://statistics.data.gov.uk/id/local-authority/12UE,Huntingdonshire District Council,12/07/2017,13/07/2017,213269,346492, 2.85 ,SOUTH LINCS FOOD SERVICE,CR033415,Hospitality,Bar Provisions,558
http://statistics.data.gov.uk/id/local-authority/12UE,Huntingdonshire District Council,12/07/2017,13/07/2017,213269,346492, 177.15 ,SOUTH LINCS FOOD SERVICE,CR033415,Hospitality,Catering Materials,559
http://statistics.data.gov.uk/id/local-authority/12UE,Huntingdonshire District Council,06/07/2017,06/07/2017,212638,384/765, 262.50 ,JAZ YORKS LTD,CR160753,Homelessness,Bed & Breakfast Payment,818
http://statistics.data.gov.uk/id/local-authority/12UE,Huntingdonshire District Council,06/07/2017,06/07/2017,212641,384/762, 262.50 ,JAZ YORKS LTD,CR160753,Homelessness,Bed & Breakfast Payment,818
http://statistics.data.gov.uk/id/local-authority/12UE,Huntingdonshire District Council,13/07/2017,13/07/2017,213062,384/772, 262.50 ,JAZ YORKS LTD,CR160753,Homelessness,Bed & Breakfast Payment,818
http://statistics.data.gov.uk/id/local-authority/12UE,Huntingdonshire District Council,13/07/2017,13/07/2017,213064,384/767, 262.50 ,JAZ YORKS LTD,CR160753,Homelessness,Bed & Breakfast Payment,818
http://statistics.data.gov.uk/id/local-authority/12UE,Huntingdonshire District Council,13/07/2017,13/07/2017,213066,384/769, 262.50 ,JAZ YORKS LTD,CR160753,Homelessness,Bed & Breakfast Payment,818
http://statistics.data.gov.uk/id/local-authority/12UE,Huntingdonshire District Council,20/07/2017,20/07/2017,213631,384/772, 262.50 ,JAZ YORKS LTD,CR160753,Homelessness,Bed & Breakfast Payment,818
http://statistics.data.gov.uk/id/local-authority/12UE,Huntingdonshire District Council,20/07/2017,20/07/2017,213632,384/765, 262.50 ,JAZ YORKS LTD,CR160753,Homelessness,Bed & Breakfast Payment,818
http://statistics.data.gov.uk/id/local-authority/12UE,Huntingdonshire District Council,20/07/2017,20/07/2017,213633,384/760, 262.50 ,JAZ YORKS LTD,CR160753,Homelessness,Bed & Breakfast Payment,818
http://statistics.data.gov.uk/id/local-authority/12UE,Huntingdonshire District Council,26/07/2017,27/07/2017,214114,384/774, 262.50 ,JAZ YORKS LTD,CR160753,Homelessness,Bed & Breakfast Payment,818
http://statistics.data.gov.uk/id/local-authority/12UE,Huntingdonshire District Council,26/07/2017,27/07/2017,214115,384/775, 262.50 ,JAZ YORKS LTD,CR160753,Homelessness,Bed & Breakfast Payment,818
http://statistics.data.gov.uk/id/local-authority/12UE,Huntingdonshire District Council,26/07/2017,27/07/2017,214116,384/776, 262.50 ,JAZ YORKS LTD,CR160753,Homelessness,Bed & Breakfast Payment,818
http://statistics.data.gov.uk/id/local-authority/12UE,Huntingdonshire District Council,26/07/2017,27/07/2017,214120,384/778, 262.50 ,JAZ YORKS LTD,CR160753,Homelessness,Bed & Breakfast Payment,818
http://statistics.data.gov.uk/id/local-authority/12UE,Huntingdonshire District Council,26/07/2017,27/07/2017,214122,384/779, 262.50 ,JAZ YORKS LTD,CR160753,Homelessness,Bed & Breakfast Payment,818
http://statistics.data.gov.uk/id/local-authority/12UE,Huntingdonshire District Council,26/07/2017,27/07/2017,214125,384/781, 262.50 ,JAZ YORKS LTD,CR160753,Homelessness,Bed & Breakfast Payment,818
http://statistics.data.gov.uk/id/local-authority/12UE,Huntingdonshire District Council,26/07/2017,27/07/2017,214128,384/783, 262.50 ,JAZ YORKS LTD,CR160753,Homelessness,Bed & Breakfast Payment,818
http://statistics.data.gov.uk/id/local-authority/12UE,Huntingdonshire District Council,20/07/2017,20/07/2017,213773,80062240, 260.55 ,CHASSIS-CAB LTD,CR422248,Street Cleansing,Vehicle Parts & Fittings,625
http://statistics.data.gov.uk/id/local-authority/12UE,Huntingdonshire District Council,13/07/2017,13/07/2017,213092,2103711493, 5.98 ,BOOKER CASH AND CARRY,CR027611,Hinchingbrooke Park Cafe,Materials,550
http://statistics.data.gov.uk/id/local-authority/12UE,Huntingdonshire District Council,13/07/2017,13/07/2017,213092,2103711493, 254.41 ,BOOKER CASH AND CARRY,CR027611,Hinchingbrooke Park Cafe,Catering Materials,559
http://statistics.data.gov.uk/id/local-authority/12UE,Huntingdonshire District Council,19/07/2017,20/07/2017,213300,58004208, 260.17 ,MARSHALL MOTOR GROUP LTD,CR009641,Street Cleansing,Vehicle Parts & Fittings,625
http://statistics.data.gov.uk/id/local-authority/12UE,Huntingdonshire District Council,13/07/2017,13/07/2017,213251,6956531, 259.50 ,ANTALIS LTD,CR479468,Printing,Paper,562
http://statistics.data.gov.uk/id/local-authority/12UE,Huntingdonshire District Council,19/07/2017,19/07/2017,213616,82037, 51.96 ,SNACKLINE DIRECT LTD,CR478090,Hospitality,Bar Provisions,558
http://statistics.data.gov.uk/id/local-authority/12UE,Huntingdonshire District Council,19/07/2017,19/07/2017,213616,82037, 55.77 ,SNACKLINE DIRECT LTD,CR478090,Hospitality,Catering Materials,559
http://statistics.data.gov.uk/id/local-authority/12UE,Huntingdonshire District Council,19/07/2017,19/07/2017,213616,82037, 151.67 ,SNACKLINE DIRECT LTD,CR478090,Hospitality,Confectionery,572
http://statistics.data.gov.uk/id/local-authority/12UE,Huntingdonshire District Council,24/07/2017,27/07/2017,214130,CD970063735, 258.00 ,OMEGA RED GROUP,CR411029,Eastfield House,Plant & Equipment Maintenance,380
http://statistics.data.gov.uk/id/local-authority/12UE,Huntingdonshire District Council,12/07/2017,13/07/2017,212841,82736296, 38.72 ,ARCHANT HERTS & CAMBS,CR415764,Site & Centre Management,Advertising/Promoting Services,255
http://statistics.data.gov.uk/id/local-authority/12UE,Huntingdonshire District Council,12/07/2017,13/07/2017,212841,82736296, 38.72 ,ARCHANT HERTS & CAMBS,CR415764,Site & Centre Management,Advertising/Promoting Services,255
http://statistics.data.gov.uk/id/local-authority/12UE,Huntingdonshire District Council,12/07/2017,13/07/2017,212841,82736296, 101.45 ,ARCHANT HERTS & CAMBS,CR415764,Burgess Hall,Advertising/Promoting Services,255
http://statistics.data.gov.uk/id/local-authority/12UE,Huntingdonshire District Council,12/07/2017,13/07/2017,212841,82736296, 38.72 ,ARCHANT HERTS & CAMBS,CR415764,Site & Centre Management,Advertising/Promoting Services,255
http://statistics.data.gov.uk/id/local-authority/12UE,Huntingdonshire District Council,12/07/2017,13/07/2017,212841,82736296, 19.36 ,ARCHANT HERTS & CAMBS,CR415764,Site & Centre Management,Advertising/Promoting Services,255
http://statistics.data.gov.uk/id/local-authority/12UE,Huntingdonshire District Council,12/07/2017,13/07/2017,212841,82736296, 19.36 ,ARCHANT HERTS & CAMBS,CR415764,Site & Centre Management,Advertising/Promoting Services,255
http://statistics.data.gov.uk/id/local-authority/12UE,Huntingdonshire District Council,07/07/2017,07/07/2017,213015,801225389, 255.42 ,SWALEC,CR407130,St Ives Gatehouses/Octagon,Electricity,420
http://statistics.data.gov.uk/id/local-authority/12UE,Huntingdonshire District Council,12/07/2017,13/07/2017,212768,SIV195464, 255.38 ,LES MILLS UK,CR025826,Indoor Sports,Licences,730
http://statistics.data.gov.uk/id/local-authority/12UE,Huntingdonshire District Council,18/07/2017,18/07/2017,213609,HUN001/0034, 255.00 ,LGSS LAW,CR422022,Legal,Legal Fees,729
http://statistics.data.gov.uk/id/local-authority/12UE,Huntingdonshire District Council,07/07/2017,07/07/2017,213026,1.21227E+12, 254.83 ,SWALEC,CR407130,Customer Service Centres,Electricity,420
http://statistics.data.gov.uk/id/local-authority/12UE,Huntingdonshire District Council,04/07/2017,04/07/2017,212691,B030717, 252.72 ,JACOBS,CR422350,Closedcounciltax Mgmt-Use Hb85,Bailiffs,703
http://statistics.data.gov.uk/id/local-authority/12UE,Huntingdonshire District Council,05/07/2017,06/07/2017,212702,22700, 252.25 ,SHOW & EVENT SECURITY,CR422363,Burgess Hall,Hired Staff,100
http://statistics.data.gov.uk/id/local-authority/12UE,Huntingdonshire District Council,26/07/2017,26/07/2017,214095,349480, 21.42 ,SOUTH LINCS FOOD SERVICE,CR033415,Hospitality,Materials,550
http://statistics.data.gov.uk/id/local-authority/12UE,Huntingdonshire District Council,26/07/2017,26/07/2017,214095,349480, 46.61 ,SOUTH LINCS FOOD SERVICE,CR033415,Hospitality,Bar Provisions,558
http://statistics.data.gov.uk/id/local-authority/12UE,Huntingdonshire District Council,26/07/2017,26/07/2017,214095,349480, 182.98 ,SOUTH LINCS FOOD SERVICE,CR033415,Hospitality,Catering Materials,559
http://statistics.data.gov.uk/id/local-authority/12UE,Huntingdonshire District Council,26/07/2017,26/07/2017,214092,352804, 3.19 ,SOUTH LINCS FOOD SERVICE,CR033415,Hospitality,Cleaning Materials,443
http://statistics.data.gov.uk/id/local-authority/12UE,Huntingdonshire District Council,26/07/2017,26/07/2017,214092,352804, 0.99 ,SOUTH LINCS FOOD SERVICE,CR033415,Hospitality,Materials,550
http://statistics.data.gov.uk/id/local-authority/12UE,Huntingdonshire District Council,26/07/2017,26/07/2017,214092,352804, 2.85 ,SOUTH LINCS FOOD SERVICE,CR033415,Hospitality,Bar Provisions,558
http://statistics.data.gov.uk/id/local-authority/12UE,Huntingdonshire District Council,26/07/2017,26/07/2017,214092,352804, 243.47 ,SOUTH LINCS FOOD SERVICE,CR033415,Hospitality,Catering Materials,559
http://statistics.data.gov.uk/id/local-authority/12UE,Huntingdonshire District Council,10/07/2017,10/07/2017,213040,50389, 250.00 ,CHARTERED INSTITUTE OF INTERNAL AUDITORS,CR401510,Hr & Payroll Services,Hired Staff,100
http://statistics.data.gov.uk/id/local-authority/12UE,Huntingdonshire District Council,19/07/2017,20/07/2017,213478,122758, 250.00 ,GOVNET COMMUNICATIONS,CR405771,Head Of Operations,Training,130
http://statistics.data.gov.uk/id/local-authority/12UE,Huntingdonshire District Council,19/07/2017,19/07/2017,213764,527917, 250.00 ,ALERE TOXICOLOGY PLC,CR423561,Hr & Payroll Services,Laboratory Services,725
http://statistics.data.gov.uk/id/local-authority/12UE,Huntingdonshire District Council,11/07/2017,11/07/2017,213056,REFUND,-402.50 ,BEEBYS LIMITED,CR415822,Huntingdon Bus Station,Building Cleaning,440
http://statistics.data.gov.uk/id/local-authority/12UE,Huntingdonshire District Council,06/07/2017,06/07/2017,212293,705349,-403.81 ,ERNEST DOE & SONS,CR000261,Grounds Maintenance,Vehicle Accident Damage,623
http://statistics.data.gov.uk/id/local-authority/12UE,Huntingdonshire District Council,10/07/2017,10/07/2017,613323,,"-1,880.00 ",HMCTS,CR030090,N D R  Management,Legal Fees,729
http://statistics.data.gov.uk/id/local-authority/12UE,Huntingdonshire District Council,10/07/2017,10/07/2017,613324,PERSONAL DATA REDACTED,"-2,110.00 ",SHARMAN QUINNEY RESIDENTIAL LETTINGS,CR424106,Rent Deposit- Advanced Rent,Cash Advance,6
http://statistics.data.gov.uk/id/local-authority/12UE,Huntingdonshire District Council,21/07/2017,21/07/2017,213965,65922,"-2,545.79 ",HAVEN POWER LTD,CR455940,Site & Centre Management,Electricity,420
http://statistics.data.gov.uk/id/local-authority/12UE,Huntingdonshire District Council,12/07/2017,12/07/2017,213145,65916,"-2,962.30 ",HAVEN POWER LTD,CR455940,Site & Centre Management,Electricity,420
http://statistics.data.gov.uk/id/local-authority/12UE,Huntingdonshire District Council,12/07/2017,12/07/2017,213146,65919,"-3,226.47 ",HAVEN POWER LTD,CR455940,Site & Centre Management,Electricity,420
http://statistics.data.gov.uk/id/local-authority/12UE,Huntingdonshire District Council,12/07/2017,12/07/2017,213163,65924,"-4,337.17 ",HAVEN POWER LTD,CR455940,Eastfield House,Electricity,420
http://statistics.data.gov.uk/id/local-authority/12UE,Huntingdonshire District Council,12/07/2017,12/07/2017,213144,65914,"-5,039.60 ",HAVEN POWER LTD,CR455940,Swimming,Electricity,420
http://statistics.data.gov.uk/id/local-authority/12UE,Huntingdonshire District Council,12/07/2017,12/07/2017,213143,65912,"-7,287.15 ",HAVEN POWER LTD,CR455940,Pathfinder House,Electricity,420
